Unique Ref No,Vendor Name,Subject Mapping 1 (Higher level),Subject Mapping 2 (lower level),Subjective  Desc,Net amount,Capital/Revenue,GL Posting Date,Directorate
WC44 - 0001,11KBW,Supplies & Services,Other Supplies & Services,63116-EXTERNAL BARRISTERS-SERVICES-FEES,"1,300.00",Revenue,08/05/2014,Neighbourhood Services
WC44 - 0002,1ST HAND CARE LTD,Third Party Payments,Private Contractor Fees,73372-DOMICILIARY CARE,"11,583.47",Revenue,28/05/2014,Social Care & Inclusion
WC44 - 0003,39 ESSEX STREET LLP PFA,Supplies & Services,Other Supplies & Services,63116-EXTERNAL BARRISTERS-SERVICES-FEES,"1,848.00",Revenue,12/05/2014,Neighbourhood Services
WC44 - 0004,39 ESSEX STREET LLP PFA,Supplies & Services,Other Supplies & Services,63116-EXTERNAL BARRISTERS-SERVICES-FEES,"1,875.00",Revenue,16/05/2014,Resources
WC44 - 0005,A 1 EAGLE TAXIS,Transport,Hire,52000-WITH DRIVER-HIRE OF VEHICLES,"1,610.00",Revenue,08/05/2014,Childrens
WC44 - 0006,A 2 Z TAXIS (A2Z CARS),Transport,Hire,52000-WITH DRIVER-HIRE OF VEHICLES,288.00,Revenue,28/05/2014,Childrens
WC44 - 0007,A 2 Z TAXIS (A2Z CARS),Transport,Hire,52000-WITH DRIVER-HIRE OF VEHICLES,336.00,Revenue,28/05/2014,Childrens
WC44 - 0008,A 2 Z TAXIS (A2Z CARS),Transport,Hire,52000-WITH DRIVER-HIRE OF VEHICLES,360.00,Revenue,28/05/2014,Childrens
WC44 - 0009,A 2 Z TAXIS (A2Z CARS),Transport,Hire,52000-WITH DRIVER-HIRE OF VEHICLES,480.00,Revenue,28/05/2014,Childrens
WC44 - 0010,A 2 Z TAXIS (A2Z CARS),Transport,Hire,52000-WITH DRIVER-HIRE OF VEHICLES,480.00,Revenue,28/05/2014,Childrens
WC44 - 0011,A 2 Z TAXIS (A2Z CARS),Transport,Hire,52000-WITH DRIVER-HIRE OF VEHICLES,580.56,Revenue,28/05/2014,Childrens
WC44 - 0012,A 2 Z TAXIS (A2Z CARS),Transport,Hire,52000-WITH DRIVER-HIRE OF VEHICLES,745.92,Revenue,28/05/2014,Childrens
WC44 - 0013,A D T FIRE AND SECURITY PLC,Third Party Payments,Private Contractor Fees,63239-EXTERNAL WORKS-PAYMENT TO CONTRACTOR,849.15,Revenue,28/05/2014,Childrens
WC44 - 0014,A D T FIRE AND SECURITY PLC,Third Party Payments,Private Contractor Fees,73025-PROFESSIONAL SERVICES-PRIV CONTRACTOR & OTHER AGENCIES,"1,012.14",Revenue,08/05/2014,Neighbourhood Services
WC44 - 0015,A D T FIRE AND SECURITY PLC,Third Party Payments,Private Contractor Fees,73025-PROFESSIONAL SERVICES-PRIV CONTRACTOR & OTHER AGENCIES,"3,036.41",Revenue,12/05/2014,Neighbourhood Services
WC44 - 0016,A D T FIRE AND SECURITY PLC,Supplies & Services,"Equip,Furniture & Materials",60008-MAINTENANCE-FURNITURE & EQUIPMENT,"4,050.00",Revenue,02/05/2014,Social Care & Inclusion
WC44 - 0017,A F BLAKEMORE & SON LTD,Supplies & Services,Provisions,61305-CATERING,455.69,Revenue,21/05/2014,Neighbourhood Services
WC44 - 0018,A F BLAKEMORE & SON LTD,Supplies & Services,Provisions,61016-FOOD AND BEVERAGES-PROVISIONS,522.62,Revenue,21/05/2014,Neighbourhood Services
WC44 - 0019,A F BLAKEMORE & SON LTD,Supplies & Services,Provisions,61305-CATERING,728.10,Revenue,21/05/2014,Neighbourhood Services
WC44 - 0020,A F BLAKEMORE & SON LTD,Supplies & Services,Provisions,61016-FOOD AND BEVERAGES-PROVISIONS,267.93,Revenue,08/05/2014,Social Care & Inclusion
WC44 - 0021,A F BLAKEMORE & SON LTD,Supplies & Services,Provisions,61016-FOOD AND BEVERAGES-PROVISIONS,305.15,Revenue,08/05/2014,Social Care & Inclusion
WC44 - 0022,A F BLAKEMORE & SON LTD,Supplies & Services,Provisions,61006-FRUIT & VEGETABLES OTHER-PROVISIONS,383.22,Revenue,27/05/2014,Social Care & Inclusion
WC44 - 0023,A F BLAKEMORE & SON LTD,Supplies & Services,Provisions,61006-FRUIT & VEGETABLES OTHER-PROVISIONS,783.85,Revenue,27/05/2014,Social Care & Inclusion
WC44 - 0024,A F BLAKEMORE & SON LTD,Supplies & Services,Provisions,61305-CATERING,930.33,Revenue,12/05/2014,Social Care & Inclusion
WC44 - 0025,REDACTED,Third Party Payments,Private Contractor Fees,74006-HOLIDAY/CHRISTMAS ALLOWANCE-FOSTER CARERS-OTH AGENCY PROVISION,333.92,Revenue,12/05/2014,Childrens
WC44 - 0026,REDACTED,Third Party Payments,Private Contractor Fees,74006-HOLIDAY/CHRISTMAS ALLOWANCE-FOSTER CARERS-OTH AGENCY PROVISION,417.56,Revenue,12/05/2014,Childrens
WC44 - 0027,REDACTED,Supplies & Services,Other Supplies & Services,62515-MISCELLANEOUS SUPPLIES,896.24,Revenue,26/05/2014,Childrens
WC44 - 0028,REDACTED,Third Party Payments,Private Contractor Fees,74006-HOLIDAY/CHRISTMAS ALLOWANCE-FOSTER CARERS-OTH AGENCY PROVISION,968.32,Revenue,26/05/2014,Childrens
WC44 - 0029,A WALKER & SONS,Third Party Payments,Private Contractor Fees,73025-PROFESSIONAL SERVICES-PRIV CONTRACTOR & OTHER AGENCIES,365.00,Revenue,08/05/2014,Regeneration
WC44 - 0030,A1 ABLEWELL TAXIS,Transport,Hire,52000-WITH DRIVER-HIRE OF VEHICLES,460.00,Revenue,16/05/2014,Childrens
WC44 - 0031,A1 ABLEWELL TAXIS,Transport,Hire,52000-WITH DRIVER-HIRE OF VEHICLES,480.00,Revenue,16/05/2014,Childrens
WC44 - 0032,A1 ABLEWELL TAXIS,Transport,Hire,52000-WITH DRIVER-HIRE OF VEHICLES,580.00,Revenue,16/05/2014,Childrens
WC44 - 0033,AA CARS,Transport,Hire,52000-WITH DRIVER-HIRE OF VEHICLES,288.00,Revenue,09/05/2014,Childrens
WC44 - 0034,AA CARS,Transport,Hire,52000-WITH DRIVER-HIRE OF VEHICLES,340.56,Revenue,09/05/2014,Childrens
WC44 - 0035,AA CARS,Transport,Hire,52000-WITH DRIVER-HIRE OF VEHICLES,348.00,Revenue,09/05/2014,Childrens
WC44 - 0036,AA CARS,Transport,Hire,52000-WITH DRIVER-HIRE OF VEHICLES,504.00,Revenue,15/05/2014,Childrens
WC44 - 0037,AA CARS,Transport,Hire,52000-WITH DRIVER-HIRE OF VEHICLES,595.98,Revenue,15/05/2014,Childrens
WC44 - 0038,AA CARS,Transport,Hire,52000-WITH DRIVER-HIRE OF VEHICLES,609.00,Revenue,15/05/2014,Childrens
WC44 - 0039,AA CARS,Transport,Hire,52000-WITH DRIVER-HIRE OF VEHICLES,"1,170.00",Revenue,15/05/2014,Childrens
WC44 - 0040,AA CARS,Transport,Hire,52000-WITH DRIVER-HIRE OF VEHICLES,"1,215.00",Revenue,09/05/2014,Childrens
WC44 - 0041,AAA BEE JAY TRAVEL,Transport,Hire,52000-WITH DRIVER-HIRE OF VEHICLES,250.00,Revenue,09/05/2014,Childrens
WC44 - 0042,AAA BEE JAY TRAVEL,Transport,Hire,52000-WITH DRIVER-HIRE OF VEHICLES,250.00,Revenue,23/05/2014,Childrens
WC44 - 0043,AAA BEE JAY TRAVEL,Transport,Hire,52000-WITH DRIVER-HIRE OF VEHICLES,288.00,Revenue,16/05/2014,Childrens
WC44 - 0044,AAA BEE JAY TRAVEL,Transport,Hire,52000-WITH DRIVER-HIRE OF VEHICLES,290.00,Revenue,09/05/2014,Childrens
WC44 - 0045,AAA BEE JAY TRAVEL,Transport,Hire,52000-WITH DRIVER-HIRE OF VEHICLES,290.00,Revenue,23/05/2014,Childrens
WC44 - 0046,AAA BEE JAY TRAVEL,Transport,Hire,52000-WITH DRIVER-HIRE OF VEHICLES,300.00,Revenue,02/05/2014,Childrens
WC44 - 0047,AAA BEE JAY TRAVEL,Transport,Hire,52000-WITH DRIVER-HIRE OF VEHICLES,328.00,Revenue,16/05/2014,Childrens
WC44 - 0048,AAA BEE JAY TRAVEL,Transport,Hire,52000-WITH DRIVER-HIRE OF VEHICLES,360.00,Revenue,09/05/2014,Childrens
WC44 - 0049,AAA BEE JAY TRAVEL,Transport,Hire,52000-WITH DRIVER-HIRE OF VEHICLES,360.00,Revenue,23/05/2014,Childrens
WC44 - 0050,AAA BEE JAY TRAVEL,Transport,Hire,52000-WITH DRIVER-HIRE OF VEHICLES,410.00,Revenue,09/05/2014,Childrens
WC44 - 0051,AAA BEE JAY TRAVEL,Transport,Hire,52000-WITH DRIVER-HIRE OF VEHICLES,410.00,Revenue,23/05/2014,Childrens
WC44 - 0052,AAA BEE JAY TRAVEL,Transport,Hire,52000-WITH DRIVER-HIRE OF VEHICLES,450.00,Revenue,01/05/2014,Childrens
WC44 - 0053,AAA BEE JAY TRAVEL,Transport,Hire,52000-WITH DRIVER-HIRE OF VEHICLES,450.00,Revenue,01/05/2014,Childrens
WC44 - 0054,AAA BEE JAY TRAVEL,Transport,Hire,52000-WITH DRIVER-HIRE OF VEHICLES,450.00,Revenue,01/05/2014,Childrens
WC44 - 0055,AAA BEE JAY TRAVEL,Transport,Hire,52000-WITH DRIVER-HIRE OF VEHICLES,480.00,Revenue,14/05/2014,Childrens
WC44 - 0056,AAA BEE JAY TRAVEL,Transport,Hire,52000-WITH DRIVER-HIRE OF VEHICLES,480.00,Revenue,14/05/2014,Childrens
WC44 - 0057,AAA BEE JAY TRAVEL,Transport,Hire,52000-WITH DRIVER-HIRE OF VEHICLES,540.00,Revenue,14/05/2014,Childrens
WC44 - 0058,AAA BEE JAY TRAVEL,Transport,Hire,52000-WITH DRIVER-HIRE OF VEHICLES,570.00,Revenue,15/05/2014,Childrens
WC44 - 0059,REDACTED,Transfer Payments,Transfer Payments,76422-DIRECT PAYMENTS TO SOCIAL SERVICES CLIENTS,"1,282.03",Revenue,13/05/2014,Childrens
WC44 - 0060,ABACUS FOSTERING LTD,Third Party Payments,Private Contractor Fees,74037-INDEPENDENT FOSTER CARE-OTH AGENCY PROVISION,"3,728.70",Revenue,09/05/2014,Childrens
WC44 - 0061,ABACUS FOSTERING LTD,Third Party Payments,Private Contractor Fees,74037-INDEPENDENT FOSTER CARE-OTH AGENCY PROVISION,"3,852.99",Revenue,20/05/2014,Childrens
WC44 - 0062,REDACTED,Third Party Payments,Private Contractor Fees,74006-HOLIDAY/CHRISTMAS ALLOWANCE-FOSTER CARERS-OTH AGENCY PROVISION,719.33,Revenue,12/05/2014,Childrens
WC44 - 0063,ABBEVILLE RCH LTD,Third Party Payments,Private Contractor Fees,73373-RESIDENTIAL & NURSING CARE PLACEMENTS,"1,399.28",Revenue,06/05/2014,Social Care & Inclusion
WC44 - 0064,ABBEY COURT NURSING & RESIDEN,Third Party Payments,Private Contractor Fees,73373-RESIDENTIAL & NURSING CARE PLACEMENTS,"1,494.00",Revenue,27/05/2014,Social Care & Inclusion
WC44 - 0065,ABBEY COURT NURSING & RESIDEN,Third Party Payments,Private Contractor Fees,73373-RESIDENTIAL & NURSING CARE PLACEMENTS,"1,494.00",Revenue,27/05/2014,Social Care & Inclusion
WC44 - 0066,ABBEY COURT NURSING & RESIDEN,Third Party Payments,Private Contractor Fees,73373-RESIDENTIAL & NURSING CARE PLACEMENTS,"1,494.00",Revenue,27/05/2014,Social Care & Inclusion
WC44 - 0067,ABBEY COURT NURSING & RESIDEN,Third Party Payments,Private Contractor Fees,73373-RESIDENTIAL & NURSING CARE PLACEMENTS,"1,522.44",Revenue,27/05/2014,Social Care & Inclusion
WC44 - 0068,ABBEYMERE CARE CENTRE,Third Party Payments,Private Contractor Fees,73373-RESIDENTIAL & NURSING CARE PLACEMENTS,"1,528.87",Revenue,13/05/2014,Social Care & Inclusion
WC44 - 0069,ABC DAY NURSERY (WILLENHALL) LIMITED,Third Party Payments,Grants to Other Orgs,66505-OTHER-GRANTS TO OTHER ORGS,"14,787.36",Revenue,07/05/2014,Childrens
WC44 - 0070,ABC FOSTERING,Third Party Payments,Private Contractor Fees,74037-INDEPENDENT FOSTER CARE-OTH AGENCY PROVISION,"3,239.50",Revenue,13/05/2014,Childrens
WC44 - 0071,ABC FOSTERING,Third Party Payments,Private Contractor Fees,74037-INDEPENDENT FOSTER CARE-OTH AGENCY PROVISION,"3,410.00",Revenue,13/05/2014,Childrens
WC44 - 0072,ABC TEACHERS LIMITED,Third Party Payments,Grants to Other Orgs,66502-TOP UP FUNDING -GRANTS TO SCHOOLS,340.00,Revenue,02/05/2014,Childrens
WC44 - 0073,ABC TEACHERS LIMITED,Third Party Payments,Grants to Other Orgs,66502-TOP UP FUNDING -GRANTS TO SCHOOLS,360.00,Revenue,28/05/2014,Childrens
WC44 - 0074,ABC TEACHERS LIMITED,Third Party Payments,Grants to Other Orgs,66502-TOP UP FUNDING -GRANTS TO SCHOOLS,425.00,Revenue,28/05/2014,Childrens
WC44 - 0075,ABC TEACHERS LIMITED,Third Party Payments,Grants to Other Orgs,66502-TOP UP FUNDING -GRANTS TO SCHOOLS,450.00,Revenue,23/05/2014,Childrens
WC44 - 0076,ABEL ALARM CO LTD,Premises,Premises-Repairs & Maintenance,"40000-REPAIRS,ALTERATIONS & MAINTENANCE-PREM",335.00,Revenue,01/05/2014,Resources
WC44 - 0077,ABEL ALARM CO LTD,Premises,Premises-Repairs & Maintenance,"40000-REPAIRS,ALTERATIONS & MAINTENANCE-PREM",335.00,Revenue,06/05/2014,Resources
WC44 - 0078,REDACTED,Transfer Payments,Transfer Payments,76422-DIRECT PAYMENTS TO SOCIAL SERVICES CLIENTS,"2,357.99",Revenue,13/05/2014,Social Care & Inclusion
WC44 - 0079,ACCESS CONTROL SOLUTIONS (UK) LTD,Premises,Premises-Repairs & Maintenance,"40000-REPAIRS,ALTERATIONS & MAINTENANCE-PREM","15,880.00",Revenue,12/05/2014,Regeneration
WC44 - 0080,ACCORD HOUSING ASSOCIATION  LTD,Third Party Payments,Private Contractor Fees,73373-RESIDENTIAL & NURSING CARE PLACEMENTS,"4,490.79",Revenue,20/05/2014,Social Care & Inclusion
WC44 - 0081,ACCORD HOUSING ASSOCIATION  LTD,Third Party Payments,Private Contractor Fees,73373-RESIDENTIAL & NURSING CARE PLACEMENTS,"4,490.79",Revenue,20/05/2014,Social Care & Inclusion
WC44 - 0082,ACCORD HOUSING ASSOCIATION  LTD,Third Party Payments,Private Contractor Fees,73373-RESIDENTIAL & NURSING CARE PLACEMENTS,"4,490.79",Revenue,20/05/2014,Social Care & Inclusion
WC44 - 0083,ACCORD HOUSING ASSOCIATION  LTD,Third Party Payments,Private Contractor Fees,73373-RESIDENTIAL & NURSING CARE PLACEMENTS,"4,490.79",Revenue,20/05/2014,Social Care & Inclusion
WC44 - 0084,ACCORD HOUSING ASSOCIATION  LTD,Third Party Payments,Private Contractor Fees,73373-RESIDENTIAL & NURSING CARE PLACEMENTS,"4,640.48",Revenue,06/05/2014,Social Care & Inclusion
WC44 - 0085,ACCORD HOUSING ASSOCIATION  LTD,Third Party Payments,Private Contractor Fees,73373-RESIDENTIAL & NURSING CARE PLACEMENTS,"4,640.48",Revenue,06/05/2014,Social Care & Inclusion
WC44 - 0086,ACCORD HOUSING ASSOCIATION  LTD,Third Party Payments,Private Contractor Fees,73374-SUPPORTED & OTHER ACCOMMODATION,"6,154.40",Revenue,28/05/2014,Social Care & Inclusion
WC44 - 0087,ACCORD HOUSING ASSOCIATION  LTD,Third Party Payments,Private Contractor Fees,73374-SUPPORTED & OTHER ACCOMMODATION,"6,154.40",Revenue,28/05/2014,Social Care & Inclusion
WC44 - 0088,ACCORD HOUSING ASSOCIATION  LTD,Third Party Payments,Private Contractor Fees,73373-RESIDENTIAL & NURSING CARE PLACEMENTS,"6,267.69",Revenue,20/05/2014,Social Care & Inclusion
WC44 - 0089,ACCORD HOUSING ASSOCIATION  LTD,Third Party Payments,Private Contractor Fees,73373-RESIDENTIAL & NURSING CARE PLACEMENTS,"6,267.69",Revenue,20/05/2014,Social Care & Inclusion
WC44 - 0090,ACCORD HOUSING ASSOCIATION  LTD,Third Party Payments,Private Contractor Fees,73373-RESIDENTIAL & NURSING CARE PLACEMENTS,"6,267.69",Revenue,20/05/2014,Social Care & Inclusion
WC44 - 0091,ACCORD HOUSING ASSOCIATION  LTD,Third Party Payments,Private Contractor Fees,73374-SUPPORTED & OTHER ACCOMMODATION,"9,067.75",Revenue,28/05/2014,Social Care & Inclusion
WC44 - 0092,ACCORD HOUSING ASSOCIATION  LTD,Premises,Rent,43000-RENTS,"11,407.00",Revenue,13/05/2014,Social Care & Inclusion
WC44 - 0093,ACCORD HOUSING ASSOCIATION  LTD,Third Party Payments,Private Contractor Fees,73374-SUPPORTED & OTHER ACCOMMODATION,"11,471.25",Revenue,28/05/2014,Social Care & Inclusion
WC44 - 0094,ACCORD HOUSING ASSOCIATION  LTD,Third Party Payments,Private Contractor Fees,73367-BLOCK SUBSIDY-SUPPORTING PEOPLE,"19,885.71",Revenue,09/05/2014,Social Care & Inclusion
WC44 - 0095,ACE CARE AGENCY,Third Party Payments,Private Contractor Fees,73372-DOMICILIARY CARE,500.85,Revenue,14/05/2014,Social Care & Inclusion
WC44 - 0096,ACE CARE AGENCY,Third Party Payments,Private Contractor Fees,73372-DOMICILIARY CARE,542.35,Revenue,14/05/2014,Social Care & Inclusion
WC44 - 0097,ACE CARE AGENCY,Third Party Payments,Private Contractor Fees,73372-DOMICILIARY CARE,566.58,Revenue,06/05/2014,Social Care & Inclusion
WC44 - 0098,ACE CARE AGENCY,Third Party Payments,Private Contractor Fees,73372-DOMICILIARY CARE,902.59,Revenue,14/05/2014,Social Care & Inclusion
WC44 - 0099,ACE RADIO CARS,Transport,Hire,52000-WITH DRIVER-HIRE OF VEHICLES,360.00,Revenue,09/05/2014,Childrens
WC44 - 0100,ACE RADIO CARS,Transport,Hire,52000-WITH DRIVER-HIRE OF VEHICLES,550.00,Revenue,09/05/2014,Childrens
WC44 - 0101,ACE RADIO CARS,Transport,Hire,52000-WITH DRIVER-HIRE OF VEHICLES,672.00,Revenue,09/05/2014,Childrens
WC44 - 0102,ACE REMOVALS,Transfer Payments,Transfer Payments,76000-TRANSFER PAYMENTS - SOCIAL SERVICES CLIENTS,385.00,Revenue,12/05/2014,Childrens
WC44 - 0103,ACEPAY LTD (COTTAGE NUR HOME),Third Party Payments,Private Contractor Fees,73373-RESIDENTIAL & NURSING CARE PLACEMENTS,"-10,587.90",Revenue,13/05/2014,Social Care & Inclusion
WC44 - 0104,ACEPAY LTD (COTTAGE NUR HOME),Third Party Payments,Private Contractor Fees,73373-RESIDENTIAL & NURSING CARE PLACEMENTS,483.29,Revenue,13/05/2014,Social Care & Inclusion
WC44 - 0105,ACEPAY LTD (COTTAGE NUR HOME),Third Party Payments,Private Contractor Fees,73373-RESIDENTIAL & NURSING CARE PLACEMENTS,"1,449.87",Revenue,13/05/2014,Social Care & Inclusion
WC44 - 0106,ACEPAY LTD (COTTAGE NUR HOME),Third Party Payments,Private Contractor Fees,73373-RESIDENTIAL & NURSING CARE PLACEMENTS,"1,449.87",Revenue,13/05/2014,Social Care & Inclusion
WC44 - 0107,ACEPAY LTD (COTTAGE NUR HOME),Third Party Payments,Private Contractor Fees,73373-RESIDENTIAL & NURSING CARE PLACEMENTS,"1,460.40",Revenue,06/05/2014,Social Care & Inclusion
WC44 - 0108,ACEPAY LTD (COTTAGE NUR HOME),Third Party Payments,Private Contractor Fees,73373-RESIDENTIAL & NURSING CARE PLACEMENTS,"1,460.40",Revenue,06/05/2014,Social Care & Inclusion
WC44 - 0109,ACEPAY LTD (COTTAGE NUR HOME),Third Party Payments,Private Contractor Fees,73373-RESIDENTIAL & NURSING CARE PLACEMENTS,"1,460.40",Revenue,27/05/2014,Social Care & Inclusion
WC44 - 0110,ACEPAY LTD (COTTAGE NUR HOME),Third Party Payments,Private Contractor Fees,73373-RESIDENTIAL & NURSING CARE PLACEMENTS,"1,460.40",Revenue,27/05/2014,Social Care & Inclusion
WC44 - 0111,ACEPAY LTD (COTTAGE NUR HOME),Third Party Payments,Private Contractor Fees,73373-RESIDENTIAL & NURSING CARE PLACEMENTS,"1,933.16",Revenue,06/05/2014,Social Care & Inclusion
WC44 - 0112,ACEPAY LTD (COTTAGE NUR HOME),Third Party Payments,Private Contractor Fees,73373-RESIDENTIAL & NURSING CARE PLACEMENTS,"1,933.16",Revenue,06/05/2014,Social Care & Inclusion
WC44 - 0113,ACEPAY LTD (COTTAGE NUR HOME),Third Party Payments,Private Contractor Fees,73373-RESIDENTIAL & NURSING CARE PLACEMENTS,"1,933.16",Revenue,06/05/2014,Social Care & Inclusion
WC44 - 0114,ACEPAY LTD (COTTAGE NUR HOME),Third Party Payments,Private Contractor Fees,73373-RESIDENTIAL & NURSING CARE PLACEMENTS,"1,933.16",Revenue,06/05/2014,Social Care & Inclusion
WC44 - 0115,ACEPAY LTD (COTTAGE NUR HOME),Third Party Payments,Private Contractor Fees,73373-RESIDENTIAL & NURSING CARE PLACEMENTS,"1,933.16",Revenue,06/05/2014,Social Care & Inclusion
WC44 - 0116,ACEPAY LTD (COTTAGE NUR HOME),Third Party Payments,Private Contractor Fees,73373-RESIDENTIAL & NURSING CARE PLACEMENTS,"1,933.16",Revenue,06/05/2014,Social Care & Inclusion
WC44 - 0117,ACEPAY LTD (COTTAGE NUR HOME),Third Party Payments,Private Contractor Fees,73373-RESIDENTIAL & NURSING CARE PLACEMENTS,"1,933.16",Revenue,13/05/2014,Social Care & Inclusion
WC44 - 0118,ACEPAY LTD (COTTAGE NUR HOME),Third Party Payments,Private Contractor Fees,73373-RESIDENTIAL & NURSING CARE PLACEMENTS,"1,933.16",Revenue,27/05/2014,Social Care & Inclusion
WC44 - 0119,ACEPAY LTD (COTTAGE NUR HOME),Third Party Payments,Private Contractor Fees,73373-RESIDENTIAL & NURSING CARE PLACEMENTS,"1,933.16",Revenue,27/05/2014,Social Care & Inclusion
WC44 - 0120,ACEPAY LTD (COTTAGE NUR HOME),Third Party Payments,Private Contractor Fees,73373-RESIDENTIAL & NURSING CARE PLACEMENTS,"1,933.16",Revenue,27/05/2014,Social Care & Inclusion
WC44 - 0121,ACEPAY LTD (COTTAGE NUR HOME),Third Party Payments,Private Contractor Fees,73373-RESIDENTIAL & NURSING CARE PLACEMENTS,"1,933.16",Revenue,27/05/2014,Social Care & Inclusion
WC44 - 0122,ACEPAY LTD (COTTAGE NUR HOME),Third Party Payments,Private Contractor Fees,73373-RESIDENTIAL & NURSING CARE PLACEMENTS,"1,933.16",Revenue,27/05/2014,Social Care & Inclusion
WC44 - 0123,ACEPAY LTD (COTTAGE NUR HOME),Third Party Payments,Private Contractor Fees,73373-RESIDENTIAL & NURSING CARE PLACEMENTS,"1,933.16",Revenue,27/05/2014,Social Care & Inclusion
WC44 - 0124,ACEPAY LTD (COTTAGE NUR HOME),Third Party Payments,Private Contractor Fees,73373-RESIDENTIAL & NURSING CARE PLACEMENTS,"1,979.20",Revenue,06/05/2014,Social Care & Inclusion
WC44 - 0125,ACEPAY LTD (COTTAGE NUR HOME),Third Party Payments,Private Contractor Fees,73373-RESIDENTIAL & NURSING CARE PLACEMENTS,"1,979.20",Revenue,06/05/2014,Social Care & Inclusion
WC44 - 0126,ACEPAY LTD (COTTAGE NUR HOME),Third Party Payments,Private Contractor Fees,73373-RESIDENTIAL & NURSING CARE PLACEMENTS,"1,979.20",Revenue,06/05/2014,Social Care & Inclusion
WC44 - 0127,ACEPAY LTD (COTTAGE NUR HOME),Third Party Payments,Private Contractor Fees,73373-RESIDENTIAL & NURSING CARE PLACEMENTS,"1,979.20",Revenue,27/05/2014,Social Care & Inclusion
WC44 - 0128,ACEPAY LTD (COTTAGE NUR HOME),Third Party Payments,Private Contractor Fees,73373-RESIDENTIAL & NURSING CARE PLACEMENTS,"2,372.32",Revenue,06/05/2014,Social Care & Inclusion
WC44 - 0129,ACEPAY LTD (COTTAGE NUR HOME),Third Party Payments,Private Contractor Fees,73373-RESIDENTIAL & NURSING CARE PLACEMENTS,"2,372.32",Revenue,27/05/2014,Social Care & Inclusion
WC44 - 0130,ACEPAY LTD (COTTAGE NUR HOME),Third Party Payments,Private Contractor Fees,73373-RESIDENTIAL & NURSING CARE PLACEMENTS,"14,488.17",Revenue,13/05/2014,Social Care & Inclusion
WC44 - 0131,ACEPAY LTD (COTTAGE NUR HOME),Third Party Payments,Private Contractor Fees,73373-RESIDENTIAL & NURSING CARE PLACEMENTS,"16,984.19",Revenue,13/05/2014,Social Care & Inclusion
WC44 - 0132,ACIVICO LTD,Supplies & Services,Services,63102-CONSULTANTS FEES - CORPORATE,"2,000.00",Revenue,13/05/2014,Regeneration
WC44 - 0133,ACORN CARE LTD,Third Party Payments,Private Contractor Fees,73373-RESIDENTIAL & NURSING CARE PLACEMENTS,"14,840.32",Revenue,13/05/2014,Social Care & Inclusion
WC44 - 0134,ACORN FOSTERING SERVICES LTD,Third Party Payments,Private Contractor Fees,74037-INDEPENDENT FOSTER CARE-OTH AGENCY PROVISION,"3,300.00",Revenue,14/05/2014,Childrens
WC44 - 0135,ACORN HOUSE FOSTERING SERVICES LTD,Third Party Payments,Private Contractor Fees,74037-INDEPENDENT FOSTER CARE-OTH AGENCY PROVISION,"3,343.50",Revenue,01/05/2014,Childrens
WC44 - 0136,ACORN HOUSE FOSTERING SERVICES LTD,Third Party Payments,Private Contractor Fees,74037-INDEPENDENT FOSTER CARE-OTH AGENCY PROVISION,"3,411.90",Revenue,01/05/2014,Childrens
WC44 - 0137,ACORN REST HOME,Third Party Payments,Private Contractor Fees,73373-RESIDENTIAL & NURSING CARE PLACEMENTS,"1,460.40",Revenue,13/05/2014,Social Care & Inclusion
WC44 - 0138,ACORNS CHILDRENS HOSPICE TRUST,Supplies & Services,Services,63000-PROFESSIONAL FEES AND SERVICES,750.00,Revenue,07/05/2014,Childrens
WC44 - 0139,ACORNS CHILDRENS HOSPICE TRUST,Supplies & Services,Services,63000-PROFESSIONAL FEES AND SERVICES,750.00,Revenue,08/05/2014,Childrens
WC44 - 0140,ACTION DIGITAL MEDIA LTD,Supplies & Services,"Printing, Stationery & Office Exp",62000-EXTERNAL PRINTING SERVICES,507.45,Revenue,01/05/2014,Neighbourhood Services
WC44 - 0141,ACTION FOR CHILDREN,Transfer Payments,Transfer Payments,74009-ADOPTION ALLOWANCE,825.00,Revenue,02/05/2014,Childrens
WC44 - 0142,ACTION FOR CHILDREN,Third Party Payments,Private Contractor Fees,74037-INDEPENDENT FOSTER CARE-OTH AGENCY PROVISION,"3,518.85",Revenue,14/05/2014,Childrens
WC44 - 0143,ACTION FOR CHILDREN,Supplies & Services,Services,63000-PROFESSIONAL FEES AND SERVICES,"25,374.31",Revenue,27/05/2014,Childrens
WC44 - 0144,ACTION ON HEARING LOSS,Third Party Payments,Private Contractor Fees,73374-SUPPORTED & OTHER ACCOMMODATION,479.28,Revenue,01/05/2014,Social Care & Inclusion
WC44 - 0145,ACTION ON HEARING LOSS,Third Party Payments,Private Contractor Fees,73374-SUPPORTED & OTHER ACCOMMODATION,479.28,Revenue,07/05/2014,Social Care & Inclusion
WC44 - 0146,ACTION ON HEARING LOSS,Third Party Payments,Private Contractor Fees,70000-SOCIAL SERVICES-FEES TO VOLUNTARY BODIES,"25,664.06",Revenue,07/05/2014,Social Care & Inclusion
WC44 - 0147,REDACTED,Supplies & Services,Services,63000-PROFESSIONAL FEES AND SERVICES,540.00,Revenue,08/05/2014,Neighbourhood Services
WC44 - 0148,REDACTED,Transfer Payments,Transfer Payments,76422-DIRECT PAYMENTS TO SOCIAL SERVICES CLIENTS,487.60,Revenue,13/05/2014,Childrens
WC44 - 0149,REDACTED,Transfer Payments,Transfer Payments,76422-DIRECT PAYMENTS TO SOCIAL SERVICES CLIENTS,384.00,Revenue,13/05/2014,Social Care & Inclusion
WC44 - 0150,REDACTED,Transfer Payments,Transfer Payments,76422-DIRECT PAYMENTS TO SOCIAL SERVICES CLIENTS,731.00,Revenue,13/05/2014,Social Care & Inclusion
WC44 - 0151,ADMIRAL SELF STORAGE LTD,Supplies & Services,Services,63000-PROFESSIONAL FEES AND SERVICES,915.11,Revenue,15/05/2014,Neighbourhood Services
WC44 - 0152,ADOPTION UK,Supplies & Services,Communications & Computing,68001-PUBLICITY & ADVERTISING (NOT STAFF ADVERTISING),426.75,Revenue,08/05/2014,Childrens
WC44 - 0153,REDACTED,Third Party Payments,Private Contractor Fees,74510-RESIDENTS ORDERS,"1,168.32",Revenue,19/05/2014,Childrens
WC44 - 0154,ADS ELECTRICAL & HIGHWAY SERVICES LTD,Supplies & Services,Services,63000-PROFESSIONAL FEES AND SERVICES,250.00,Revenue,02/05/2014,Neighbourhood Services
WC44 - 0155,ADVANCE HEALTH CARE (UK) LTD,Employees,Agency,34305-AGENCY STAFF-EMPLOYEES,"1,686.25",Revenue,01/05/2014,Social Care & Inclusion
WC44 - 0156,ADVANCE HEALTH CARE (UK) LTD,Employees,Agency,34305-AGENCY STAFF-EMPLOYEES,"5,964.00",Revenue,01/05/2014,Social Care & Inclusion
WC44 - 0157,ADVANCE HEALTH CARE (UK) LTD,Employees,Agency,34305-AGENCY STAFF-EMPLOYEES,"6,276.40",Revenue,01/05/2014,Social Care & Inclusion
WC44 - 0158,ADVANCE HEALTH CARE (UK) LTD,Employees,Agency,34305-AGENCY STAFF-EMPLOYEES,"6,390.00",Revenue,01/05/2014,Social Care & Inclusion
WC44 - 0159,ADVANCE HEALTH CARE (UK) LTD,Third Party Payments,Private Contractor Fees,73372-DOMICILIARY CARE,"9,113.24",Revenue,28/05/2014,Social Care & Inclusion
WC44 - 0160,ADVANCED CHILDCARE LTD,Third Party Payments,Private Contractor Fees,74036-EXTERNAL RESIDENTIAL CARE-OTH AGENCY PROVISION,"2,571.30",Revenue,02/05/2014,Childrens
WC44 - 0161,ADVANCED CHILDCARE LTD,Third Party Payments,Private Contractor Fees,74036-EXTERNAL RESIDENTIAL CARE-OTH AGENCY PROVISION,"13,877.10",Revenue,01/05/2014,Childrens
WC44 - 0162,ADVANCED CONTRACTS (MIDLANDS) LTD,Premises,Premises-Repairs & Maintenance,"40000-REPAIRS,ALTERATIONS & MAINTENANCE-PREM",300.00,Revenue,09/05/2014,Regeneration
WC44 - 0163,ADVANCED CONTRACTS (MIDLANDS) LTD,Premises,Premises-Repairs & Maintenance,"40000-REPAIRS,ALTERATIONS & MAINTENANCE-PREM",485.00,Revenue,14/05/2014,Regeneration
WC44 - 0164,ADVANCED CONTRACTS (MIDLANDS) LTD,Premises,Premises-Repairs & Maintenance,"40000-REPAIRS,ALTERATIONS & MAINTENANCE-PREM",674.00,Revenue,28/05/2014,Regeneration
WC44 - 0165,ADVANCED CONTRACTS (MIDLANDS) LTD,Premises,Premises-Repairs & Maintenance,"40000-REPAIRS,ALTERATIONS & MAINTENANCE-PREM",723.40,Revenue,20/05/2014,Regeneration
WC44 - 0166,ADVANCED CONTRACTS (MIDLANDS) LTD,Premises,Premises-Repairs & Maintenance,"40000-REPAIRS,ALTERATIONS & MAINTENANCE-PREM",755.00,Revenue,15/05/2014,Regeneration
WC44 - 0167,ADVANCED CONTRACTS (MIDLANDS) LTD,Premises,Premises-Repairs & Maintenance,"40000-REPAIRS,ALTERATIONS & MAINTENANCE-PREM",845.00,Revenue,22/05/2014,Regeneration
WC44 - 0168,ADVANCED CONTRACTS (MIDLANDS) LTD,Third Party Payments,Private Contractor Fees,73025-PROFESSIONAL SERVICES-PRIV CONTRACTOR & OTHER AGENCIES,"1,212.00",Revenue,15/05/2014,Regeneration
WC44 - 0169,ADVANCED CONTRACTS (MIDLANDS) LTD,Premises,Premises-Repairs & Maintenance,"40000-REPAIRS,ALTERATIONS & MAINTENANCE-PREM","1,439.00",Revenue,15/05/2014,Regeneration
WC44 - 0170,ADVANCED CONTRACTS (MIDLANDS) LTD,Premises,Premises-Repairs & Maintenance,"40000-REPAIRS,ALTERATIONS & MAINTENANCE-PREM","1,895.00",Revenue,09/05/2014,Regeneration
WC44 - 0171,ADVANCED CONTRACTS (MIDLANDS) LTD,Premises,Premises-Repairs & Maintenance,"40000-REPAIRS,ALTERATIONS & MAINTENANCE-PREM","2,490.00",Revenue,15/05/2014,Regeneration
WC44 - 0172,ADVANCED HEALTH AND CARE,Supplies & Services,Communications & Computing,63800-COMPUTER EQUIPMENT AND SUPPLIES,"7,517.03",Revenue,01/05/2014,Social Care & Inclusion
WC44 - 0173,AECOM LIMITED,Capital,Capital,01001-OTHER CONSULTANTS FEES,"1,604.69",Capital,14/05/2014,Regeneration
WC44 - 0174,AGE UK WALSALL,Transfer Payments,Transfer Payments,76423-DIRECT PAYMENTS SUPPORT,"3,036.00",Revenue,20/05/2014,Social Care & Inclusion
WC44 - 0175,AGINCARE UK LTD,Third Party Payments,Private Contractor Fees,73372-DOMICILIARY CARE,308.00,Revenue,22/05/2014,Social Care & Inclusion
WC44 - 0176,AGINCARE UK LTD,Third Party Payments,Private Contractor Fees,73372-DOMICILIARY CARE,"1,713.60",Revenue,22/05/2014,Social Care & Inclusion
WC44 - 0177,REDACTED,Transfer Payments,Transfer Payments,76422-DIRECT PAYMENTS TO SOCIAL SERVICES CLIENTS,"1,882.00",Revenue,13/05/2014,Social Care & Inclusion
WC44 - 0178,AISHA MOSQUE ISLAMIC CENTRE,Third Party Payments,Grants to Other Orgs,66500-GRANTS TO OTHER ORGS,"8,000.00",Revenue,06/05/2014,Neighbourhood Services
WC44 - 0179,REDACTED,Transfer Payments,Transfer Payments,76422-DIRECT PAYMENTS TO SOCIAL SERVICES CLIENTS,936.52,Revenue,13/05/2014,Social Care & Inclusion
WC44 - 0180,AJK TRAVEL,Transport,Hire,52000-WITH DRIVER-HIRE OF VEHICLES,360.00,Revenue,16/05/2014,Childrens
WC44 - 0181,AJK TRAVEL,Transport,Hire,52000-WITH DRIVER-HIRE OF VEHICLES,368.00,Revenue,16/05/2014,Childrens
WC44 - 0182,AJK TRAVEL,Transport,Hire,52000-WITH DRIVER-HIRE OF VEHICLES,368.00,Revenue,16/05/2014,Childrens
WC44 - 0183,AJK TRAVEL,Transport,Hire,52000-WITH DRIVER-HIRE OF VEHICLES,376.00,Revenue,16/05/2014,Childrens
WC44 - 0184,AJK TRAVEL,Transport,Hire,52000-WITH DRIVER-HIRE OF VEHICLES,440.00,Revenue,16/05/2014,Childrens
WC44 - 0185,AJK TRAVEL,Transport,Hire,52000-WITH DRIVER-HIRE OF VEHICLES,450.00,Revenue,08/05/2014,Childrens
WC44 - 0186,AJK TRAVEL,Transport,Hire,52000-WITH DRIVER-HIRE OF VEHICLES,450.00,Revenue,27/05/2014,Childrens
WC44 - 0187,AJK TRAVEL,Transport,Hire,52000-WITH DRIVER-HIRE OF VEHICLES,460.00,Revenue,08/05/2014,Childrens
WC44 - 0188,AJK TRAVEL,Transport,Hire,52000-WITH DRIVER-HIRE OF VEHICLES,460.00,Revenue,08/05/2014,Childrens
WC44 - 0189,AJK TRAVEL,Transport,Hire,52000-WITH DRIVER-HIRE OF VEHICLES,460.00,Revenue,27/05/2014,Childrens
WC44 - 0190,AJK TRAVEL,Transport,Hire,52000-WITH DRIVER-HIRE OF VEHICLES,460.00,Revenue,27/05/2014,Childrens
WC44 - 0191,AJK TRAVEL,Transport,Hire,52000-WITH DRIVER-HIRE OF VEHICLES,470.00,Revenue,08/05/2014,Childrens
WC44 - 0192,AJK TRAVEL,Transport,Hire,52000-WITH DRIVER-HIRE OF VEHICLES,470.00,Revenue,27/05/2014,Childrens
WC44 - 0193,AJK TRAVEL,Transport,Hire,52000-WITH DRIVER-HIRE OF VEHICLES,480.00,Revenue,16/05/2014,Childrens
WC44 - 0194,AJK TRAVEL,Transport,Hire,52000-WITH DRIVER-HIRE OF VEHICLES,550.00,Revenue,08/05/2014,Childrens
WC44 - 0195,AJK TRAVEL,Transport,Hire,52000-WITH DRIVER-HIRE OF VEHICLES,550.00,Revenue,27/05/2014,Childrens
WC44 - 0196,AJK TRAVEL,Transport,Hire,52000-WITH DRIVER-HIRE OF VEHICLES,568.00,Revenue,16/05/2014,Childrens
WC44 - 0197,AJK TRAVEL,Transport,Hire,52000-WITH DRIVER-HIRE OF VEHICLES,600.00,Revenue,08/05/2014,Childrens
WC44 - 0198,AJK TRAVEL,Transport,Hire,52000-WITH DRIVER-HIRE OF VEHICLES,600.00,Revenue,27/05/2014,Childrens
WC44 - 0199,AJK TRAVEL,Transport,Hire,52000-WITH DRIVER-HIRE OF VEHICLES,608.00,Revenue,16/05/2014,Childrens
WC44 - 0200,AJK TRAVEL,Transport,Hire,52000-WITH DRIVER-HIRE OF VEHICLES,608.00,Revenue,16/05/2014,Childrens
WC44 - 0201,AJK TRAVEL,Transport,Hire,52000-WITH DRIVER-HIRE OF VEHICLES,710.00,Revenue,08/05/2014,Childrens
WC44 - 0202,AJK TRAVEL,Transport,Hire,52000-WITH DRIVER-HIRE OF VEHICLES,710.00,Revenue,27/05/2014,Childrens
WC44 - 0203,AJK TRAVEL,Transport,Hire,52000-WITH DRIVER-HIRE OF VEHICLES,760.00,Revenue,08/05/2014,Childrens
WC44 - 0204,AJK TRAVEL,Transport,Hire,52000-WITH DRIVER-HIRE OF VEHICLES,760.00,Revenue,08/05/2014,Childrens
WC44 - 0205,AJK TRAVEL,Transport,Hire,52000-WITH DRIVER-HIRE OF VEHICLES,760.00,Revenue,27/05/2014,Childrens
WC44 - 0206,AJK TRAVEL,Transport,Hire,52000-WITH DRIVER-HIRE OF VEHICLES,760.00,Revenue,27/05/2014,Childrens
WC44 - 0207,REDACTED,Transfer Payments,Transfer Payments,76422-DIRECT PAYMENTS TO SOCIAL SERVICES CLIENTS,667.80,Revenue,13/05/2014,Social Care & Inclusion
WC44 - 0208,REDACTED,Transfer Payments,Transfer Payments,76422-DIRECT PAYMENTS TO SOCIAL SERVICES CLIENTS,"4,118.48",Revenue,13/05/2014,Social Care & Inclusion
WC44 - 0209,ALDERGROVE MANOR CARE HOME,Third Party Payments,Private Contractor Fees,73373-RESIDENTIAL & NURSING CARE PLACEMENTS,"1,784.48",Revenue,06/05/2014,Social Care & Inclusion
WC44 - 0210,ALDERGROVE MANOR CARE HOME,Third Party Payments,Private Contractor Fees,73373-RESIDENTIAL & NURSING CARE PLACEMENTS,"1,784.48",Revenue,27/05/2014,Social Care & Inclusion
WC44 - 0211,ALDRIDGE & BARONS LIMITED,Transport,Hire,52000-WITH DRIVER-HIRE OF VEHICLES,537.04,Revenue,28/05/2014,Childrens
WC44 - 0212,ALDRIDGE & BARONS LIMITED,Transport,Hire,52000-WITH DRIVER-HIRE OF VEHICLES,578.00,Revenue,20/05/2014,Childrens
WC44 - 0213,ALDRIDGE & BARONS LIMITED,Transport,Car Allowances,53004-TAXIS-TRAVEL ALLOWANCES,720.00,Revenue,27/05/2014,Childrens
WC44 - 0214,ALDRIDGE & BARONS LIMITED,Transport,Car Allowances,53004-TAXIS-TRAVEL ALLOWANCES,858.00,Revenue,27/05/2014,Childrens
WC44 - 0215,ALDRIDGE & BARONS LIMITED,Transport,Car Allowances,53004-TAXIS-TRAVEL ALLOWANCES,"1,428.00",Revenue,28/05/2014,Childrens
WC44 - 0216,ALDRIDGE & BARONS LIMITED,Transport,Car Allowances,53004-TAXIS-TRAVEL ALLOWANCES,"2,112.00",Revenue,27/05/2014,Childrens
WC44 - 0217,REDACTED,Transfer Payments,Transfer Payments,76422-DIRECT PAYMENTS TO SOCIAL SERVICES CLIENTS,335.04,Revenue,13/05/2014,Social Care & Inclusion
WC44 - 0218,ALEXANDRA HOUSE CARE SERVICES LTD T/A STONEBRIDGE NURSING HOME,Third Party Payments,Private Contractor Fees,73373-RESIDENTIAL & NURSING CARE PLACEMENTS,"6,960.84",Revenue,27/05/2014,Social Care & Inclusion
WC44 - 0219,REDACTED,Transfer Payments,Transfer Payments,76422-DIRECT PAYMENTS TO SOCIAL SERVICES CLIENTS,582.66,Revenue,13/05/2014,Childrens
WC44 - 0220,REDACTED,Transfer Payments,Transfer Payments,76422-DIRECT PAYMENTS TO SOCIAL SERVICES CLIENTS,854.00,Revenue,13/05/2014,Social Care & Inclusion
WC44 - 0221,REDACTED,Transfer Payments,Transfer Payments,76422-DIRECT PAYMENTS TO SOCIAL SERVICES CLIENTS,328.80,Revenue,13/05/2014,Social Care & Inclusion
WC44 - 0222,REDACTED,Third Party Payments,Private Contractor Fees,74006-HOLIDAY/CHRISTMAS ALLOWANCE-FOSTER CARERS-OTH AGENCY PROVISION,796.00,Revenue,26/05/2014,Childrens
WC44 - 0223,REDACTED,Supplies & Services,Other Supplies & Services,62515-MISCELLANEOUS SUPPLIES,"1,428.44",Revenue,26/05/2014,Childrens
WC44 - 0224,REDACTED,Third Party Payments,Private Contractor Fees,74006-HOLIDAY/CHRISTMAS ALLOWANCE-FOSTER CARERS-OTH AGENCY PROVISION,542.80,Revenue,12/05/2014,Childrens
WC44 - 0225,ALLIANCE HOMECARE SERVICES,Third Party Payments,Private Contractor Fees,73372-DOMICILIARY CARE,"19,739.56",Revenue,28/05/2014,Social Care & Inclusion
WC44 - 0226,ALMA COURT,Third Party Payments,Private Contractor Fees,73373-RESIDENTIAL & NURSING CARE PLACEMENTS,"6,177.85",Revenue,20/05/2014,Social Care & Inclusion
WC44 - 0227,ALMOND CARE,Supplies & Services,Services,63000-PROFESSIONAL FEES AND SERVICES,761.79,Revenue,15/05/2014,Childrens
WC44 - 0228,ALMOZENE NURSERY & CHILDRENS CENTRE,Third Party Payments,Grants to Other Orgs,66505-OTHER-GRANTS TO OTHER ORGS,"7,588.79",Revenue,07/05/2014,Childrens
WC44 - 0229,ALPHA HEALTH CARE LTD,Third Party Payments,Private Contractor Fees,73373-RESIDENTIAL & NURSING CARE PLACEMENTS,"-1,369.75",Revenue,13/05/2014,Social Care & Inclusion
WC44 - 0230,ALPHA HEALTH CARE LTD,Third Party Payments,Private Contractor Fees,73373-RESIDENTIAL & NURSING CARE PLACEMENTS,260.79,Revenue,27/05/2014,Social Care & Inclusion
WC44 - 0231,ALPHA HEALTH CARE LTD,Third Party Payments,Private Contractor Fees,73373-RESIDENTIAL & NURSING CARE PLACEMENTS,274.01,Revenue,06/05/2014,Social Care & Inclusion
WC44 - 0232,ALPHA HEALTH CARE LTD,Third Party Payments,Private Contractor Fees,73373-RESIDENTIAL & NURSING CARE PLACEMENTS,426.86,Revenue,06/05/2014,Social Care & Inclusion
WC44 - 0233,ALPHA HEALTH CARE LTD,Third Party Payments,Private Contractor Fees,73373-RESIDENTIAL & NURSING CARE PLACEMENTS,525.21,Revenue,27/05/2014,Social Care & Inclusion
WC44 - 0234,ALPHA HEALTH CARE LTD,Third Party Payments,Private Contractor Fees,73373-RESIDENTIAL & NURSING CARE PLACEMENTS,527.44,Revenue,27/05/2014,Social Care & Inclusion
WC44 - 0235,ALPHA HEALTH CARE LTD,Third Party Payments,Private Contractor Fees,73373-RESIDENTIAL & NURSING CARE PLACEMENTS,547.90,Revenue,13/05/2014,Social Care & Inclusion
WC44 - 0236,ALPHA HEALTH CARE LTD,Third Party Payments,Private Contractor Fees,73373-RESIDENTIAL & NURSING CARE PLACEMENTS,870.33,Revenue,06/05/2014,Social Care & Inclusion
WC44 - 0237,ALPHA HEALTH CARE LTD,Third Party Payments,Private Contractor Fees,73373-RESIDENTIAL & NURSING CARE PLACEMENTS,986.22,Revenue,13/05/2014,Social Care & Inclusion
WC44 - 0238,ALPHA HEALTH CARE LTD,Third Party Payments,Private Contractor Fees,73373-RESIDENTIAL & NURSING CARE PLACEMENTS,"1,375.60",Revenue,13/05/2014,Social Care & Inclusion
WC44 - 0239,ALPHA HEALTH CARE LTD,Third Party Payments,Private Contractor Fees,73373-RESIDENTIAL & NURSING CARE PLACEMENTS,"1,375.60",Revenue,20/05/2014,Social Care & Inclusion
WC44 - 0240,ALPHA HEALTH CARE LTD,Third Party Payments,Private Contractor Fees,73373-RESIDENTIAL & NURSING CARE PLACEMENTS,"1,375.60",Revenue,20/05/2014,Social Care & Inclusion
WC44 - 0241,ALPHA HEALTH CARE LTD,Third Party Payments,Private Contractor Fees,73373-RESIDENTIAL & NURSING CARE PLACEMENTS,"1,375.60",Revenue,27/05/2014,Social Care & Inclusion
WC44 - 0242,ALPHA HEALTH CARE LTD,Third Party Payments,Private Contractor Fees,73373-RESIDENTIAL & NURSING CARE PLACEMENTS,"1,375.60",Revenue,27/05/2014,Social Care & Inclusion
WC44 - 0243,ALPHA HEALTH CARE LTD,Third Party Payments,Private Contractor Fees,73373-RESIDENTIAL & NURSING CARE PLACEMENTS,"1,382.00",Revenue,20/05/2014,Social Care & Inclusion
WC44 - 0244,ALPHA HEALTH CARE LTD,Third Party Payments,Private Contractor Fees,73373-RESIDENTIAL & NURSING CARE PLACEMENTS,"1,383.00",Revenue,20/05/2014,Social Care & Inclusion
WC44 - 0245,ALPHA HEALTH CARE LTD,Third Party Payments,Private Contractor Fees,73373-RESIDENTIAL & NURSING CARE PLACEMENTS,"1,460.40",Revenue,20/05/2014,Social Care & Inclusion
WC44 - 0246,ALPHA HEALTH CARE LTD,Third Party Payments,Private Contractor Fees,73373-RESIDENTIAL & NURSING CARE PLACEMENTS,"1,470.60",Revenue,20/05/2014,Social Care & Inclusion
WC44 - 0247,ALPHA HEALTH CARE LTD,Third Party Payments,Private Contractor Fees,73373-RESIDENTIAL & NURSING CARE PLACEMENTS,"1,476.84",Revenue,20/05/2014,Social Care & Inclusion
WC44 - 0248,ALPHA HEALTH CARE LTD,Third Party Payments,Private Contractor Fees,73373-RESIDENTIAL & NURSING CARE PLACEMENTS,"1,476.84",Revenue,20/05/2014,Social Care & Inclusion
WC44 - 0249,ALPHA HEALTH CARE LTD,Third Party Payments,Private Contractor Fees,73373-RESIDENTIAL & NURSING CARE PLACEMENTS,"1,489.60",Revenue,20/05/2014,Social Care & Inclusion
WC44 - 0250,ALPHA HEALTH CARE LTD,Third Party Payments,Private Contractor Fees,73373-RESIDENTIAL & NURSING CARE PLACEMENTS,"1,489.60",Revenue,20/05/2014,Social Care & Inclusion
WC44 - 0251,ALPHA HEALTH CARE LTD,Third Party Payments,Private Contractor Fees,73373-RESIDENTIAL & NURSING CARE PLACEMENTS,"1,489.60",Revenue,20/05/2014,Social Care & Inclusion
WC44 - 0252,ALPHA HEALTH CARE LTD,Third Party Payments,Private Contractor Fees,73373-RESIDENTIAL & NURSING CARE PLACEMENTS,"1,489.60",Revenue,20/05/2014,Social Care & Inclusion
WC44 - 0253,ALPHA HEALTH CARE LTD,Third Party Payments,Private Contractor Fees,73373-RESIDENTIAL & NURSING CARE PLACEMENTS,"1,489.60",Revenue,20/05/2014,Social Care & Inclusion
WC44 - 0254,ALPHA HEALTH CARE LTD,Third Party Payments,Private Contractor Fees,73373-RESIDENTIAL & NURSING CARE PLACEMENTS,"1,489.60",Revenue,20/05/2014,Social Care & Inclusion
WC44 - 0255,ALPHA HEALTH CARE LTD,Third Party Payments,Private Contractor Fees,73373-RESIDENTIAL & NURSING CARE PLACEMENTS,"1,489.60",Revenue,20/05/2014,Social Care & Inclusion
WC44 - 0256,ALPHA HEALTH CARE LTD,Third Party Payments,Private Contractor Fees,73373-RESIDENTIAL & NURSING CARE PLACEMENTS,"1,489.60",Revenue,20/05/2014,Social Care & Inclusion
WC44 - 0257,ALPHA HEALTH CARE LTD,Third Party Payments,Private Contractor Fees,73373-RESIDENTIAL & NURSING CARE PLACEMENTS,"1,489.60",Revenue,20/05/2014,Social Care & Inclusion
WC44 - 0258,ALPHA HEALTH CARE LTD,Third Party Payments,Private Contractor Fees,73373-RESIDENTIAL & NURSING CARE PLACEMENTS,"1,489.60",Revenue,20/05/2014,Social Care & Inclusion
WC44 - 0259,ALPHA HEALTH CARE LTD,Third Party Payments,Private Contractor Fees,73373-RESIDENTIAL & NURSING CARE PLACEMENTS,"1,489.60",Revenue,20/05/2014,Social Care & Inclusion
WC44 - 0260,ALPHA HEALTH CARE LTD,Third Party Payments,Private Contractor Fees,73373-RESIDENTIAL & NURSING CARE PLACEMENTS,"1,489.60",Revenue,20/05/2014,Social Care & Inclusion
WC44 - 0261,ALPHA HEALTH CARE LTD,Third Party Payments,Private Contractor Fees,73373-RESIDENTIAL & NURSING CARE PLACEMENTS,"1,489.60",Revenue,20/05/2014,Social Care & Inclusion
WC44 - 0262,ALPHA HEALTH CARE LTD,Third Party Payments,Private Contractor Fees,73373-RESIDENTIAL & NURSING CARE PLACEMENTS,"1,489.60",Revenue,20/05/2014,Social Care & Inclusion
WC44 - 0263,ALPHA HEALTH CARE LTD,Third Party Payments,Private Contractor Fees,73373-RESIDENTIAL & NURSING CARE PLACEMENTS,"1,489.64",Revenue,20/05/2014,Social Care & Inclusion
WC44 - 0264,ALPHA HEALTH CARE LTD,Third Party Payments,Private Contractor Fees,73373-RESIDENTIAL & NURSING CARE PLACEMENTS,"1,494.00",Revenue,27/05/2014,Social Care & Inclusion
WC44 - 0265,ALPHA HEALTH CARE LTD,Third Party Payments,Private Contractor Fees,73373-RESIDENTIAL & NURSING CARE PLACEMENTS,"1,534.12",Revenue,13/05/2014,Social Care & Inclusion
WC44 - 0266,ALPHA HEALTH CARE LTD,Third Party Payments,Private Contractor Fees,73373-RESIDENTIAL & NURSING CARE PLACEMENTS,"1,534.12",Revenue,20/05/2014,Social Care & Inclusion
WC44 - 0267,ALPHA HEALTH CARE LTD,Third Party Payments,Private Contractor Fees,73373-RESIDENTIAL & NURSING CARE PLACEMENTS,"1,534.12",Revenue,20/05/2014,Social Care & Inclusion
WC44 - 0268,ALPHA HEALTH CARE LTD,Third Party Payments,Private Contractor Fees,73373-RESIDENTIAL & NURSING CARE PLACEMENTS,"1,534.12",Revenue,20/05/2014,Social Care & Inclusion
WC44 - 0269,ALPHA HEALTH CARE LTD,Third Party Payments,Private Contractor Fees,73373-RESIDENTIAL & NURSING CARE PLACEMENTS,"1,534.12",Revenue,20/05/2014,Social Care & Inclusion
WC44 - 0270,ALPHA HEALTH CARE LTD,Third Party Payments,Private Contractor Fees,73373-RESIDENTIAL & NURSING CARE PLACEMENTS,"1,534.12",Revenue,20/05/2014,Social Care & Inclusion
WC44 - 0271,ALPHA HEALTH CARE LTD,Third Party Payments,Private Contractor Fees,73373-RESIDENTIAL & NURSING CARE PLACEMENTS,"1,534.12",Revenue,20/05/2014,Social Care & Inclusion
WC44 - 0272,ALPHA HEALTH CARE LTD,Third Party Payments,Private Contractor Fees,73373-RESIDENTIAL & NURSING CARE PLACEMENTS,"1,534.28",Revenue,20/05/2014,Social Care & Inclusion
WC44 - 0273,ALPHA HEALTH CARE LTD,Third Party Payments,Private Contractor Fees,73373-RESIDENTIAL & NURSING CARE PLACEMENTS,"1,590.32",Revenue,20/05/2014,Social Care & Inclusion
WC44 - 0274,ALPHA HEALTH CARE LTD,Third Party Payments,Private Contractor Fees,73373-RESIDENTIAL & NURSING CARE PLACEMENTS,"2,008.20",Revenue,20/05/2014,Social Care & Inclusion
WC44 - 0275,ALPHA HEALTH CARE LTD,Third Party Payments,Private Contractor Fees,73373-RESIDENTIAL & NURSING CARE PLACEMENTS,"2,109.44",Revenue,20/05/2014,Social Care & Inclusion
WC44 - 0276,ALPHA HEALTH CARE LTD,Third Party Payments,Private Contractor Fees,73373-RESIDENTIAL & NURSING CARE PLACEMENTS,"2,200.00",Revenue,06/05/2014,Social Care & Inclusion
WC44 - 0277,ALPHA HEALTH CARE LTD,Third Party Payments,Private Contractor Fees,73373-RESIDENTIAL & NURSING CARE PLACEMENTS,"5,156.44",Revenue,20/05/2014,Social Care & Inclusion
WC44 - 0278,ALPHA HEALTH CARE LTD,Third Party Payments,Private Contractor Fees,73373-RESIDENTIAL & NURSING CARE PLACEMENTS,"5,160.84",Revenue,27/05/2014,Social Care & Inclusion
WC44 - 0279,ALPHA HEALTH CARE LTD,Third Party Payments,Private Contractor Fees,73373-RESIDENTIAL & NURSING CARE PLACEMENTS,"5,426.72",Revenue,20/05/2014,Social Care & Inclusion
WC44 - 0280,ALPHA HEALTH CARE LTD,Third Party Payments,Private Contractor Fees,73373-RESIDENTIAL & NURSING CARE PLACEMENTS,"6,200.00",Revenue,06/05/2014,Social Care & Inclusion
WC44 - 0281,ALPHABIOLABS,Third Party Payments,Private Contractor Fees,73014-LEGAL FEES-PRIV CONTRACTOR FEES,450.00,Revenue,07/05/2014,Childrens
WC44 - 0282,ALPHABIOLABS,Third Party Payments,Private Contractor Fees,73014-LEGAL FEES-PRIV CONTRACTOR FEES,450.00,Revenue,07/05/2014,Childrens
WC44 - 0283,ALTODIGITAL NETWORKS LTD,Central,Internal Recharges,82012-PRINT & DESIGN CHARGES-INTERNAL,271.56,Revenue,13/05/2014,Childrens
WC44 - 0284,ALTODIGITAL NETWORKS LTD,Supplies & Services,"Equip,Furniture & Materials",60009-LEASING/HIRE/RENTAL-EQUIPMENT,485.97,Revenue,28/05/2014,Social Care & Inclusion
WC44 - 0285,ALUMWELLIES NURSERY,Third Party Payments,Grants to Other Orgs,66505-OTHER-GRANTS TO OTHER ORGS,"9,344.79",Revenue,07/05/2014,Childrens
WC44 - 0286,REDACTED,Third Party Payments,Private Contractor Fees,74006-HOLIDAY/CHRISTMAS ALLOWANCE-FOSTER CARERS-OTH AGENCY PROVISION,453.20,Revenue,12/05/2014,Childrens
WC44 - 0287,REDACTED,Third Party Payments,Private Contractor Fees,74006-HOLIDAY/CHRISTMAS ALLOWANCE-FOSTER CARERS-OTH AGENCY PROVISION,"1,543.33",Revenue,12/05/2014,Childrens
WC44 - 0288,REDACTED,Supplies & Services,Other Supplies & Services,62515-MISCELLANEOUS SUPPLIES,350.40,Revenue,26/05/2014,Childrens
WC44 - 0289,REDACTED,Third Party Payments,Private Contractor Fees,74006-HOLIDAY/CHRISTMAS ALLOWANCE-FOSTER CARERS-OTH AGENCY PROVISION,561.32,Revenue,26/05/2014,Childrens
WC44 - 0290,REDACTED,Transfer Payments,Transfer Payments,76422-DIRECT PAYMENTS TO SOCIAL SERVICES CLIENTS,"2,664.01",Revenue,13/05/2014,Social Care & Inclusion
WC44 - 0291,REDACTED,Transfer Payments,Transfer Payments,76422-DIRECT PAYMENTS TO SOCIAL SERVICES CLIENTS,654.50,Revenue,13/05/2014,Social Care & Inclusion
WC44 - 0292,REDACTED,Third Party Payments,Private Contractor Fees,74006-HOLIDAY/CHRISTMAS ALLOWANCE-FOSTER CARERS-OTH AGENCY PROVISION,"1,175.34",Revenue,12/05/2014,Childrens
WC44 - 0293,AMEY LG LIMITED,Third Party Payments,Private Contractor Fees,73025-PROFESSIONAL SERVICES-PRIV CONTRACTOR & OTHER AGENCIES,"3,664.16",Revenue,09/05/2014,Neighbourhood Services
WC44 - 0294,AMEY LG LIMITED,Third Party Payments,Private Contractor Fees,73025-PROFESSIONAL SERVICES-PRIV CONTRACTOR & OTHER AGENCIES,"17,801.93",Revenue,02/05/2014,Neighbourhood Services
WC44 - 0295,AMEY LG LIMITED,Capital,Capital,01006-SITE WORKS MAIN CONTRACTORS,"1,237.22",Capital,09/05/2014,Regeneration
WC44 - 0296,AMEY LG LIMITED,Supplies & Services,"Equip,Furniture & Materials",60008-MAINTENANCE-FURNITURE & EQUIPMENT,360.48,Revenue,14/05/2014,Social Care & Inclusion
WC44 - 0297,AMG NURSING CARE SERVICES,Supplies & Services,Services,63000-PROFESSIONAL FEES AND SERVICES,"1,088.88",Revenue,20/05/2014,Childrens
WC44 - 0298,AMG NURSING CARE SERVICES,Supplies & Services,Services,63000-PROFESSIONAL FEES AND SERVICES,"2,048.28",Revenue,07/05/2014,Childrens
WC44 - 0299,AMG NURSING CARE SERVICES,Supplies & Services,Services,63000-PROFESSIONAL FEES AND SERVICES,"2,278.40",Revenue,19/05/2014,Childrens
WC44 - 0300,AMG NURSING CARE SERVICES,Supplies & Services,Services,63000-PROFESSIONAL FEES AND SERVICES,"2,397.84",Revenue,07/05/2014,Childrens
WC44 - 0301,REDACTED,Transfer Payments,Transfer Payments,76422-DIRECT PAYMENTS TO SOCIAL SERVICES CLIENTS,"1,485.40",Revenue,13/05/2014,Social Care & Inclusion
WC44 - 0302,REDACTED,Transfer Payments,Transfer Payments,76422-DIRECT PAYMENTS TO SOCIAL SERVICES CLIENTS,891.24,Revenue,13/05/2014,Social Care & Inclusion
WC44 - 0303,REDACTED,Third Party Payments,Private Contractor Fees,74006-HOLIDAY/CHRISTMAS ALLOWANCE-FOSTER CARERS-OTH AGENCY PROVISION,417.56,Revenue,12/05/2014,Childrens
WC44 - 0304,REDACTED,Transfer Payments,Transfer Payments,76422-DIRECT PAYMENTS TO SOCIAL SERVICES CLIENTS,569.50,Revenue,13/05/2014,Social Care & Inclusion
WC44 - 0305,REDACTED,Supplies & Services,Other Supplies & Services,62515-MISCELLANEOUS SUPPLIES,963.26,Revenue,26/05/2014,Childrens
WC44 - 0306,REDACTED,Supplies & Services,Other Supplies & Services,62515-MISCELLANEOUS SUPPLIES,914.24,Revenue,26/05/2014,Childrens
WC44 - 0307,REDACTED,Third Party Payments,Private Contractor Fees,74006-HOLIDAY/CHRISTMAS ALLOWANCE-FOSTER CARERS-OTH AGENCY PROVISION,"1,293.95",Revenue,26/05/2014,Childrens
WC44 - 0308,REDACTED,Transfer Payments,Transfer Payments,76422-DIRECT PAYMENTS TO SOCIAL SERVICES CLIENTS,378.00,Revenue,13/05/2014,Social Care & Inclusion
WC44 - 0309,REDACTED,Third Party Payments,Private Contractor Fees,74006-HOLIDAY/CHRISTMAS ALLOWANCE-FOSTER CARERS-OTH AGENCY PROVISION,321.51,Revenue,26/05/2014,Childrens
WC44 - 0310,REDACTED,Supplies & Services,Other Supplies & Services,62515-MISCELLANEOUS SUPPLIES,"1,428.44",Revenue,26/05/2014,Childrens
WC44 - 0311,ANGEL COURT RESIDENTIAL CARE HOME,Third Party Payments,Private Contractor Fees,73373-RESIDENTIAL & NURSING CARE PLACEMENTS,"1,436.67",Revenue,13/05/2014,Social Care & Inclusion
WC44 - 0312,ANGEL COURT RESIDENTIAL CARE HOME,Third Party Payments,Private Contractor Fees,73373-RESIDENTIAL & NURSING CARE PLACEMENTS,"1,698.49",Revenue,20/05/2014,Social Care & Inclusion
WC44 - 0313,ANGEL COURT RESIDENTIAL CARE HOME,Third Party Payments,Private Contractor Fees,73373-RESIDENTIAL & NURSING CARE PLACEMENTS,"1,698.49",Revenue,20/05/2014,Social Care & Inclusion
WC44 - 0314,ANGEL COURT RESIDENTIAL CARE HOME,Third Party Payments,Private Contractor Fees,73373-RESIDENTIAL & NURSING CARE PLACEMENTS,"1,746.14",Revenue,20/05/2014,Social Care & Inclusion
WC44 - 0315,ANGEL COURT RESIDENTIAL CARE HOME,Third Party Payments,Private Contractor Fees,73373-RESIDENTIAL & NURSING CARE PLACEMENTS,"1,857.25",Revenue,20/05/2014,Social Care & Inclusion
WC44 - 0316,REDACTED,Third Party Payments,Private Contractor Fees,74006-HOLIDAY/CHRISTMAS ALLOWANCE-FOSTER CARERS-OTH AGENCY PROVISION,"1,920.04",Revenue,12/05/2014,Childrens
WC44 - 0317,REDACTED,Third Party Payments,Private Contractor Fees,74006-HOLIDAY/CHRISTMAS ALLOWANCE-FOSTER CARERS-OTH AGENCY PROVISION,"1,167.36",Revenue,12/05/2014,Childrens
WC44 - 0318,ANGLIA DNA SERVICES LIMITED,Third Party Payments,Private Contractor Fees,73014-LEGAL FEES-PRIV CONTRACTOR FEES,290.00,Revenue,27/05/2014,Childrens
WC44 - 0319,ANGLIA STAIRLIFTS LTD,Capital,Capital,01045-PRIVATE GRANTS,"3,970.00",Capital,28/05/2014,Resources
WC44 - 0320,ANGLIA STAIRLIFTS LTD,Capital,Capital,01045-PRIVATE GRANTS,"4,215.00",Capital,07/05/2014,Resources
WC44 - 0321,ANGLIA STAIRLIFTS LTD,Capital,Capital,01045-PRIVATE GRANTS,"5,070.00",Capital,28/05/2014,Resources
WC44 - 0322,ANGLIA STAIRLIFTS LTD,Capital,Capital,01045-PRIVATE GRANTS,"5,525.00",Capital,01/05/2014,Resources
WC44 - 0323,ANGLIA STAIRLIFTS LTD,Capital,Capital,01006-SITE WORKS MAIN CONTRACTORS,"5,545.00",Capital,01/05/2014,Resources
WC44 - 0324,ANGLIA STAIRLIFTS LTD,Capital,Capital,01006-SITE WORKS MAIN CONTRACTORS,"5,606.00",Capital,01/05/2014,Resources
WC44 - 0325,REDACTED,Supplies & Services,Other Supplies & Services,62515-MISCELLANEOUS SUPPLIES,898.72,Revenue,26/05/2014,Childrens
WC44 - 0326,REDACTED,Third Party Payments,Private Contractor Fees,74006-HOLIDAY/CHRISTMAS ALLOWANCE-FOSTER CARERS-OTH AGENCY PROVISION,"1,278.80",Revenue,26/05/2014,Childrens
WC44 - 0327,REDACTED,Third Party Payments,Private Contractor Fees,73374-SUPPORTED & OTHER ACCOMMODATION,415.75,Revenue,13/05/2014,Social Care & Inclusion
WC44 - 0328,REDACTED,Transfer Payments,Transfer Payments,76422-DIRECT PAYMENTS TO SOCIAL SERVICES CLIENTS,625.82,Revenue,13/05/2014,Social Care & Inclusion
WC44 - 0329,REDACTED,Transfer Payments,Transfer Payments,76422-DIRECT PAYMENTS TO SOCIAL SERVICES CLIENTS,"1,782.48",Revenue,13/05/2014,Social Care & Inclusion
WC44 - 0330,ANSON COURT RESIDENTIAL HOME,Third Party Payments,Private Contractor Fees,73373-RESIDENTIAL & NURSING CARE PLACEMENTS,"1,532.52",Revenue,06/05/2014,Social Care & Inclusion
WC44 - 0331,ANSON COURT RESIDENTIAL HOME,Third Party Payments,Private Contractor Fees,73373-RESIDENTIAL & NURSING CARE PLACEMENTS,"1,534.12",Revenue,06/05/2014,Social Care & Inclusion
WC44 - 0332,ANSON COURT RESIDENTIAL HOME,Third Party Payments,Private Contractor Fees,73373-RESIDENTIAL & NURSING CARE PLACEMENTS,"1,534.12",Revenue,06/05/2014,Social Care & Inclusion
WC44 - 0333,ANSON COURT RESIDENTIAL HOME,Third Party Payments,Private Contractor Fees,73373-RESIDENTIAL & NURSING CARE PLACEMENTS,"1,534.12",Revenue,06/05/2014,Social Care & Inclusion
WC44 - 0334,ANSON COURT RESIDENTIAL HOME,Third Party Payments,Private Contractor Fees,73373-RESIDENTIAL & NURSING CARE PLACEMENTS,"1,534.12",Revenue,06/05/2014,Social Care & Inclusion
WC44 - 0335,ANSON COURT RESIDENTIAL HOME,Third Party Payments,Private Contractor Fees,73373-RESIDENTIAL & NURSING CARE PLACEMENTS,"1,534.12",Revenue,06/05/2014,Social Care & Inclusion
WC44 - 0336,ANSON COURT RESIDENTIAL HOME,Third Party Payments,Private Contractor Fees,73373-RESIDENTIAL & NURSING CARE PLACEMENTS,"1,534.12",Revenue,06/05/2014,Social Care & Inclusion
WC44 - 0337,ANSON COURT RESIDENTIAL HOME,Third Party Payments,Private Contractor Fees,73373-RESIDENTIAL & NURSING CARE PLACEMENTS,"1,534.12",Revenue,06/05/2014,Social Care & Inclusion
WC44 - 0338,ANSON COURT RESIDENTIAL HOME,Third Party Payments,Private Contractor Fees,73373-RESIDENTIAL & NURSING CARE PLACEMENTS,"1,534.12",Revenue,06/05/2014,Social Care & Inclusion
WC44 - 0339,ANSON COURT RESIDENTIAL HOME,Third Party Payments,Private Contractor Fees,73373-RESIDENTIAL & NURSING CARE PLACEMENTS,"1,534.12",Revenue,13/05/2014,Social Care & Inclusion
WC44 - 0340,ANSON COURT RESIDENTIAL HOME,Third Party Payments,Private Contractor Fees,73373-RESIDENTIAL & NURSING CARE PLACEMENTS,"1,534.12",Revenue,13/05/2014,Social Care & Inclusion
WC44 - 0341,ANSON COURT RESIDENTIAL HOME,Third Party Payments,Private Contractor Fees,73373-RESIDENTIAL & NURSING CARE PLACEMENTS,"1,534.72",Revenue,06/05/2014,Social Care & Inclusion
WC44 - 0342,ANSON COURT RESIDENTIAL HOME,Third Party Payments,Private Contractor Fees,73373-RESIDENTIAL & NURSING CARE PLACEMENTS,"1,612.92",Revenue,06/05/2014,Social Care & Inclusion
WC44 - 0343,ANSON COURT RESIDENTIAL HOME,Third Party Payments,Private Contractor Fees,73373-RESIDENTIAL & NURSING CARE PLACEMENTS,"1,614.12",Revenue,06/05/2014,Social Care & Inclusion
WC44 - 0344,ANSON COURT RESIDENTIAL HOME,Third Party Payments,Private Contractor Fees,73373-RESIDENTIAL & NURSING CARE PLACEMENTS,"1,614.72",Revenue,06/05/2014,Social Care & Inclusion
WC44 - 0345,ANSON COURT RESIDENTIAL HOME,Third Party Payments,Private Contractor Fees,73373-RESIDENTIAL & NURSING CARE PLACEMENTS,"1,614.72",Revenue,06/05/2014,Social Care & Inclusion
WC44 - 0346,ANTALIS DOCUMENT SUPPLIES,Supplies & Services,"Equip,Furniture & Materials",60500-GENERAL MATERIALS,488.00,Revenue,01/05/2014,Resources
WC44 - 0347,ANTALIS DOCUMENT SUPPLIES,Supplies & Services,"Equip,Furniture & Materials",60500-GENERAL MATERIALS,748.00,Revenue,15/05/2014,Resources
WC44 - 0348,ANTALIS DOCUMENT SUPPLIES,Supplies & Services,"Equip,Furniture & Materials",60500-GENERAL MATERIALS,976.00,Revenue,01/05/2014,Resources
WC44 - 0349,ANTERIOR VISION LIMITED,Employees,Agency,34305-AGENCY STAFF-EMPLOYEES,"5,950.00",Revenue,14/05/2014,Neighbourhood Services
WC44 - 0350,REDACTED,Third Party Payments,Private Contractor Fees,74006-HOLIDAY/CHRISTMAS ALLOWANCE-FOSTER CARERS-OTH AGENCY PROVISION,"1,428.47",Revenue,12/05/2014,Childrens
WC44 - 0351,REDACTED,Third Party Payments,Private Contractor Fees,74006-HOLIDAY/CHRISTMAS ALLOWANCE-FOSTER CARERS-OTH AGENCY PROVISION,431.02,Revenue,12/05/2014,Childrens
WC44 - 0352,AQA 001,Supplies & Services,Other Supplies & Services,63013-EXAMINATIONS-SERVICES,"1,134.30",Revenue,21/05/2014,Neighbourhood Services
WC44 - 0353,ARBORETUM DAY CENTRE,Third Party Payments,Private Contractor Fees,70000-SOCIAL SERVICES-FEES TO VOLUNTARY BODIES,564.20,Revenue,16/05/2014,Social Care & Inclusion
WC44 - 0354,ARBORETUM NURSING HOME.,Third Party Payments,Private Contractor Fees,73373-RESIDENTIAL & NURSING CARE PLACEMENTS,"1,933.16",Revenue,13/05/2014,Social Care & Inclusion
WC44 - 0355,ARBORETUM NURSING HOME.,Third Party Payments,Private Contractor Fees,73373-RESIDENTIAL & NURSING CARE PLACEMENTS,"1,933.16",Revenue,13/05/2014,Social Care & Inclusion
WC44 - 0356,ARBORETUM NURSING HOME.,Third Party Payments,Private Contractor Fees,73373-RESIDENTIAL & NURSING CARE PLACEMENTS,"1,933.16",Revenue,13/05/2014,Social Care & Inclusion
WC44 - 0357,ARBORETUM NURSING HOME.,Third Party Payments,Private Contractor Fees,73373-RESIDENTIAL & NURSING CARE PLACEMENTS,"1,933.16",Revenue,13/05/2014,Social Care & Inclusion
WC44 - 0358,ARBORETUM NURSING HOME.,Third Party Payments,Private Contractor Fees,73373-RESIDENTIAL & NURSING CARE PLACEMENTS,"1,990.76",Revenue,13/05/2014,Social Care & Inclusion
WC44 - 0359,ARBORETUM NURSING HOME.,Third Party Payments,Private Contractor Fees,73373-RESIDENTIAL & NURSING CARE PLACEMENTS,"1,990.76",Revenue,13/05/2014,Social Care & Inclusion
WC44 - 0360,ARBORETUM NURSING HOME.,Third Party Payments,Private Contractor Fees,73373-RESIDENTIAL & NURSING CARE PLACEMENTS,"1,990.76",Revenue,13/05/2014,Social Care & Inclusion
WC44 - 0361,ARBORETUM NURSING HOME.,Third Party Payments,Private Contractor Fees,73373-RESIDENTIAL & NURSING CARE PLACEMENTS,"2,416.45",Revenue,13/05/2014,Social Care & Inclusion
WC44 - 0362,ARBORETUM NURSING HOME.,Third Party Payments,Private Contractor Fees,73373-RESIDENTIAL & NURSING CARE PLACEMENTS,"2,416.45",Revenue,13/05/2014,Social Care & Inclusion
WC44 - 0363,ARBORETUM NURSING HOME.,Third Party Payments,Private Contractor Fees,73373-RESIDENTIAL & NURSING CARE PLACEMENTS,"2,416.45",Revenue,13/05/2014,Social Care & Inclusion
WC44 - 0364,ARBORETUM NURSING HOME.,Third Party Payments,Private Contractor Fees,73373-RESIDENTIAL & NURSING CARE PLACEMENTS,"2,416.45",Revenue,13/05/2014,Social Care & Inclusion
WC44 - 0365,ARBORETUM NURSING HOME.,Third Party Payments,Private Contractor Fees,73373-RESIDENTIAL & NURSING CARE PLACEMENTS,"2,416.45",Revenue,13/05/2014,Social Care & Inclusion
WC44 - 0366,ARBORETUM NURSING HOME.,Third Party Payments,Private Contractor Fees,73373-RESIDENTIAL & NURSING CARE PLACEMENTS,"2,416.45",Revenue,13/05/2014,Social Care & Inclusion
WC44 - 0367,ARBORETUM NURSING HOME.,Third Party Payments,Private Contractor Fees,73373-RESIDENTIAL & NURSING CARE PLACEMENTS,"2,472.75",Revenue,13/05/2014,Social Care & Inclusion
WC44 - 0368,ARBORETUM NURSING HOME.,Third Party Payments,Private Contractor Fees,73373-RESIDENTIAL & NURSING CARE PLACEMENTS,"2,488.45",Revenue,13/05/2014,Social Care & Inclusion
WC44 - 0369,ARBORETUM NURSING HOME.,Third Party Payments,Private Contractor Fees,73373-RESIDENTIAL & NURSING CARE PLACEMENTS,"8,121.63",Revenue,13/05/2014,Social Care & Inclusion
WC44 - 0370,ARCO GROUP,Supplies & Services,"Equip,Furniture & Materials",60514-MATERIALS TO STORES,267.80,Revenue,19/05/2014,Neighbourhood Services
WC44 - 0371,ARGUS FIRE PROTECTION LIMITED,Capital,Capital,01006-SITE WORKS MAIN CONTRACTORS,475.00,Capital,09/05/2014,Regeneration
WC44 - 0372,ARJOHUNTLEIGH UK,Supplies & Services,"Equip,Furniture & Materials",60500-GENERAL MATERIALS,-562.00,Revenue,01/05/2014,Neighbourhood Services
WC44 - 0373,ASCENTIS NATION AWARDING BODY,Supplies & Services,Other Supplies & Services,63013-EXAMINATIONS-SERVICES,700.00,Revenue,14/05/2014,Neighbourhood Services
WC44 - 0374,ASCO EDUCATIONAL SUPPLIES LTD,Supplies & Services,"Equip,Furniture & Materials",60500-GENERAL MATERIALS,475.14,Revenue,08/05/2014,Childrens
WC44 - 0375,ASG STAGE PRODUCTS,Supplies & Services,Services,63000-PROFESSIONAL FEES AND SERVICES,"2,932.55",Revenue,12/05/2014,Neighbourhood Services
WC44 - 0376,ASH GRANGE CARE HOME,Third Party Payments,Private Contractor Fees,73373-RESIDENTIAL & NURSING CARE PLACEMENTS,"-1,380.83",Revenue,27/05/2014,Social Care & Inclusion
WC44 - 0377,ASH GRANGE CARE HOME,Third Party Payments,Private Contractor Fees,73373-RESIDENTIAL & NURSING CARE PLACEMENTS,483.29,Revenue,06/05/2014,Social Care & Inclusion
WC44 - 0378,ASH GRANGE CARE HOME,Third Party Payments,Private Contractor Fees,73373-RESIDENTIAL & NURSING CARE PLACEMENTS,552.33,Revenue,27/05/2014,Social Care & Inclusion
WC44 - 0379,ASH GRANGE CARE HOME,Third Party Payments,Private Contractor Fees,73373-RESIDENTIAL & NURSING CARE PLACEMENTS,"1,199.61",Revenue,27/05/2014,Social Care & Inclusion
WC44 - 0380,ASH GRANGE CARE HOME,Third Party Payments,Private Contractor Fees,73373-RESIDENTIAL & NURSING CARE PLACEMENTS,"1,460.40",Revenue,27/05/2014,Social Care & Inclusion
WC44 - 0381,ASH GRANGE CARE HOME,Third Party Payments,Private Contractor Fees,73373-RESIDENTIAL & NURSING CARE PLACEMENTS,"1,933.16",Revenue,27/05/2014,Social Care & Inclusion
WC44 - 0382,ASH GRANGE CARE HOME,Third Party Payments,Private Contractor Fees,73373-RESIDENTIAL & NURSING CARE PLACEMENTS,"1,933.16",Revenue,27/05/2014,Social Care & Inclusion
WC44 - 0383,ASH GRANGE CARE HOME,Third Party Payments,Private Contractor Fees,73373-RESIDENTIAL & NURSING CARE PLACEMENTS,"1,933.16",Revenue,27/05/2014,Social Care & Inclusion
WC44 - 0384,ASH GRANGE CARE HOME,Third Party Payments,Private Contractor Fees,73373-RESIDENTIAL & NURSING CARE PLACEMENTS,"1,933.16",Revenue,27/05/2014,Social Care & Inclusion
WC44 - 0385,ASH GRANGE CARE HOME,Third Party Payments,Private Contractor Fees,73373-RESIDENTIAL & NURSING CARE PLACEMENTS,"1,933.16",Revenue,27/05/2014,Social Care & Inclusion
WC44 - 0386,ASH GRANGE CARE HOME,Third Party Payments,Private Contractor Fees,73373-RESIDENTIAL & NURSING CARE PLACEMENTS,"1,933.16",Revenue,27/05/2014,Social Care & Inclusion
WC44 - 0387,ASH GRANGE CARE HOME,Third Party Payments,Private Contractor Fees,73373-RESIDENTIAL & NURSING CARE PLACEMENTS,"1,933.16",Revenue,27/05/2014,Social Care & Inclusion
WC44 - 0388,ASH GRANGE CARE HOME,Third Party Payments,Private Contractor Fees,73373-RESIDENTIAL & NURSING CARE PLACEMENTS,"1,933.16",Revenue,27/05/2014,Social Care & Inclusion
WC44 - 0389,ASH GRANGE CARE HOME,Third Party Payments,Private Contractor Fees,73373-RESIDENTIAL & NURSING CARE PLACEMENTS,"1,933.16",Revenue,27/05/2014,Social Care & Inclusion
WC44 - 0390,ASH GRANGE CARE HOME,Third Party Payments,Private Contractor Fees,73373-RESIDENTIAL & NURSING CARE PLACEMENTS,"1,933.16",Revenue,27/05/2014,Social Care & Inclusion
WC44 - 0391,ASH GRANGE CARE HOME,Third Party Payments,Private Contractor Fees,73373-RESIDENTIAL & NURSING CARE PLACEMENTS,"1,933.16",Revenue,27/05/2014,Social Care & Inclusion
WC44 - 0392,ASH GRANGE CARE HOME,Third Party Payments,Private Contractor Fees,73373-RESIDENTIAL & NURSING CARE PLACEMENTS,"1,933.16",Revenue,27/05/2014,Social Care & Inclusion
WC44 - 0393,ASH GRANGE CARE HOME,Third Party Payments,Private Contractor Fees,73373-RESIDENTIAL & NURSING CARE PLACEMENTS,"1,933.52",Revenue,27/05/2014,Social Care & Inclusion
WC44 - 0394,ASH GRANGE CARE HOME,Third Party Payments,Private Contractor Fees,73373-RESIDENTIAL & NURSING CARE PLACEMENTS,"2,008.24",Revenue,06/05/2014,Social Care & Inclusion
WC44 - 0395,ASH GRANGE CARE HOME,Third Party Payments,Private Contractor Fees,73373-RESIDENTIAL & NURSING CARE PLACEMENTS,"2,008.24",Revenue,27/05/2014,Social Care & Inclusion
WC44 - 0396,ASH GRANGE CARE HOME,Third Party Payments,Private Contractor Fees,73373-RESIDENTIAL & NURSING CARE PLACEMENTS,"2,008.24",Revenue,27/05/2014,Social Care & Inclusion
WC44 - 0397,ASH GRANGE CARE HOME,Third Party Payments,Private Contractor Fees,73373-RESIDENTIAL & NURSING CARE PLACEMENTS,"2,066.20",Revenue,27/05/2014,Social Care & Inclusion
WC44 - 0398,ASH GRANGE CARE HOME,Third Party Payments,Private Contractor Fees,73373-RESIDENTIAL & NURSING CARE PLACEMENTS,"2,071.24",Revenue,20/05/2014,Social Care & Inclusion
WC44 - 0399,ASH GRANGE CARE HOME,Supplies & Services,Services,63000-PROFESSIONAL FEES AND SERVICES,"4,898.00",Revenue,08/05/2014,Social Care & Inclusion
WC44 - 0400,ASHBOURNE LODGE,Third Party Payments,Private Contractor Fees,73373-RESIDENTIAL & NURSING CARE PLACEMENTS,"1,053.03",Revenue,13/05/2014,Social Care & Inclusion
WC44 - 0401,ASHBOURNE LODGE,Third Party Payments,Private Contractor Fees,73373-RESIDENTIAL & NURSING CARE PLACEMENTS,"1,974.43",Revenue,13/05/2014,Social Care & Inclusion
WC44 - 0402,ASHBOURNE LODGE,Third Party Payments,Private Contractor Fees,73373-RESIDENTIAL & NURSING CARE PLACEMENTS,"2,040.24",Revenue,13/05/2014,Social Care & Inclusion
WC44 - 0403,ASKEWS AND HOLTS LIBRARY SERVICES LTD,Supplies & Services,"Equip,Furniture & Materials",60501-LIBRARY BOOKS,256.14,Revenue,01/05/2014,Neighbourhood Services
WC44 - 0404,ASKEWS AND HOLTS LIBRARY SERVICES LTD,Supplies & Services,"Equip,Furniture & Materials",60501-LIBRARY BOOKS,282.71,Revenue,14/05/2014,Neighbourhood Services
WC44 - 0405,ASKEWS AND HOLTS LIBRARY SERVICES LTD,Supplies & Services,"Equip,Furniture & Materials",60501-LIBRARY BOOKS,348.53,Revenue,13/05/2014,Neighbourhood Services
WC44 - 0406,ASKEWS AND HOLTS LIBRARY SERVICES LTD,Supplies & Services,"Equip,Furniture & Materials",60501-LIBRARY BOOKS,357.92,Revenue,23/05/2014,Neighbourhood Services
WC44 - 0407,ASKEWS AND HOLTS LIBRARY SERVICES LTD,Supplies & Services,"Equip,Furniture & Materials",60501-LIBRARY BOOKS,408.75,Revenue,09/05/2014,Neighbourhood Services
WC44 - 0408,ASKEWS AND HOLTS LIBRARY SERVICES LTD,Supplies & Services,"Equip,Furniture & Materials",60501-LIBRARY BOOKS,547.37,Revenue,07/05/2014,Neighbourhood Services
WC44 - 0409,ASKEWS AND HOLTS LIBRARY SERVICES LTD,Supplies & Services,"Equip,Furniture & Materials",60501-LIBRARY BOOKS,624.12,Revenue,12/05/2014,Neighbourhood Services
WC44 - 0410,ASKEWS AND HOLTS LIBRARY SERVICES LTD,Supplies & Services,"Equip,Furniture & Materials",60501-LIBRARY BOOKS,685.74,Revenue,01/05/2014,Neighbourhood Services
WC44 - 0411,ASKEWS AND HOLTS LIBRARY SERVICES LTD,Supplies & Services,"Equip,Furniture & Materials",60501-LIBRARY BOOKS,718.64,Revenue,07/05/2014,Neighbourhood Services
WC44 - 0412,REDACTED,Transfer Payments,Transfer Payments,76422-DIRECT PAYMENTS TO SOCIAL SERVICES CLIENTS,493.00,Revenue,13/05/2014,Social Care & Inclusion
WC44 - 0413,ASSOCIATION OF ACCOUNTING TECHNICIANS.,Employees,Training,30030-EXTERNAL TRAINING,398.00,Revenue,14/05/2014,Neighbourhood Services
WC44 - 0414,ASSOCIATION OF ACCOUNTING TECHNICIANS.,Supplies & Services,Other Supplies & Services,63013-EXAMINATIONS-SERVICES,"1,353.00",Revenue,14/05/2014,Neighbourhood Services
WC44 - 0415,ASSOCIATION OF BUILDING CLEANING DIRECT SERVICE PROVIDERS,Supplies & Services,Subscriptions,64500-PUBLICATIONS/ORGANISATIONS-SUBSCRIPTIONS,265.00,Revenue,08/05/2014,Regeneration
WC44 - 0416,ASTECH CONSULTANTS LTD,Supplies & Services,Communications & Computing,63800-COMPUTER EQUIPMENT AND SUPPLIES,"6,347.15",Revenue,01/05/2014,Resources
WC44 - 0417,ATHWAL NEWS LTD,Supplies & Services,"Equip,Furniture & Materials",60501-LIBRARY BOOKS,630.91,Revenue,27/05/2014,Neighbourhood Services
WC44 - 0418,AUDITEL RENTAL & SERVICE LTD,Premises,Premises-Repairs & Maintenance,"40000-REPAIRS,ALTERATIONS & MAINTENANCE-PREM","3,970.72",Revenue,28/05/2014,Regeneration
WC44 - 0419,AURORA GRAPHICS & DISPLAYS LTD,Supplies & Services,"Printing, Stationery & Office Exp",62008-OUTWORK-PRINT ROOM,565.44,Revenue,01/05/2014,Resources
WC44 - 0420,AUTHORS ALOUD UK,Supplies & Services,"Equip,Furniture & Materials",60500-GENERAL MATERIALS,300.00,Revenue,13/05/2014,Neighbourhood Services
WC44 - 0421,AUTISM WEST MIDLANDS,Third Party Payments,Private Contractor Fees,73373-RESIDENTIAL & NURSING CARE PLACEMENTS,"7,078.50",Revenue,13/05/2014,Social Care & Inclusion
WC44 - 0422,AUTISM WEST MIDLANDS 001,Third Party Payments,Private Contractor Fees,73373-RESIDENTIAL & NURSING CARE PLACEMENTS,"4,765.88",Revenue,13/05/2014,Social Care & Inclusion
WC44 - 0423,AXIELL ALM LIMITED,Supplies & Services,Communications & Computing,63809-LICENCES-COMPUTER,"2,056.20",Revenue,14/05/2014,Neighbourhood Services
WC44 - 0424,AXIELL LIMITED,Supplies & Services,"Equip,Furniture & Materials",60000-FURNITURE & EQUIPMENT,"1,200.00",Revenue,02/05/2014,Neighbourhood Services
WC44 - 0425,AXIS EUROPE,Capital,Capital,01045-PRIVATE GRANTS,"3,241.23",Capital,02/05/2014,Resources
WC44 - 0426,AXIS EUROPE,Capital,Capital,01045-PRIVATE GRANTS,"3,686.91",Capital,08/05/2014,Resources
WC44 - 0427,AXIS EUROPE,Capital,Capital,01045-PRIVATE GRANTS,"3,814.32",Capital,21/05/2014,Resources
WC44 - 0428,AXIS EUROPE,Capital,Capital,01045-PRIVATE GRANTS,"4,001.02",Capital,02/05/2014,Resources
WC44 - 0429,AXIS EUROPE,Capital,Capital,01045-PRIVATE GRANTS,"4,157.91",Capital,22/05/2014,Resources
WC44 - 0430,AXIS EUROPE,Capital,Capital,01045-PRIVATE GRANTS,"4,161.80",Capital,07/05/2014,Resources
WC44 - 0431,REDACTED,Transfer Payments,Transfer Payments,76422-DIRECT PAYMENTS TO SOCIAL SERVICES CLIENTS,"2,024.00",Revenue,13/05/2014,Childrens
WC44 - 0432,REDACTED,Transfer Payments,Transfer Payments,76422-DIRECT PAYMENTS TO SOCIAL SERVICES CLIENTS,"2,652.00",Revenue,13/05/2014,Social Care & Inclusion
WC44 - 0433,AZZURRI COMMUNICATIONS LTD,Supplies & Services,Communications & Computing,63601-COSTS (NOT INTERNAL RECHARGES)-TELEPHONES,"-4,192.94",Revenue,27/05/2014,Resources
WC44 - 0434,REDACTED,Third Party Payments,Private Contractor Fees,74006-HOLIDAY/CHRISTMAS ALLOWANCE-FOSTER CARERS-OTH AGENCY PROVISION,895.50,Revenue,26/05/2014,Childrens
WC44 - 0435,REDACTED,Supplies & Services,Other Supplies & Services,62515-MISCELLANEOUS SUPPLIES,896.24,Revenue,26/05/2014,Childrens
WC44 - 0436,REDACTED,Supplies & Services,Other Supplies & Services,62515-MISCELLANEOUS SUPPLIES,"1,428.44",Revenue,26/05/2014,Childrens
WC44 - 0437,REDACTED,Third Party Payments,Private Contractor Fees,74006-HOLIDAY/CHRISTMAS ALLOWANCE-FOSTER CARERS-OTH AGENCY PROVISION,"1,764.32",Revenue,26/05/2014,Childrens
WC44 - 0438,BAAF,Supplies & Services,Subscriptions,64500-PUBLICATIONS/ORGANISATIONS-SUBSCRIPTIONS,541.00,Revenue,28/05/2014,Childrens
WC44 - 0439,BAAF,Supplies & Services,Subscriptions,64500-PUBLICATIONS/ORGANISATIONS-SUBSCRIPTIONS,541.00,Revenue,28/05/2014,Childrens
WC44 - 0440,BAAF,Supplies & Services,Communications & Computing,68001-PUBLICITY & ADVERTISING (NOT STAFF ADVERTISING),600.00,Revenue,12/05/2014,Childrens
WC44 - 0441,REDACTED,Transfer Payments,Transfer Payments,76422-DIRECT PAYMENTS TO SOCIAL SERVICES CLIENTS,863.20,Revenue,13/05/2014,Social Care & Inclusion
WC44 - 0442,BACHES SOLICITORS,Third Party Payments,Private Contractor Fees,73014-LEGAL FEES-PRIV CONTRACTOR FEES,279.35,Revenue,15/05/2014,Childrens
WC44 - 0443,BAKER HALL PARTNERSHIP,Premises,Premises-Repairs & Maintenance,40018-OTHER-OP MTCE,775.00,Revenue,14/05/2014,Childrens
WC44 - 0444,BAKER HALL PARTNERSHIP,Supplies & Services,Services,63248-SURVEYS & PROF SERVICES-PAYMENT TO CONTRACTOR,"1,494.00",Revenue,14/05/2014,Regeneration
WC44 - 0445,BALFOR RECRUITMENT GROUP  LTD,Third Party Payments,Private Contractor Fees,73374-SUPPORTED & OTHER ACCOMMODATION,256.50,Revenue,28/05/2014,Social Care & Inclusion
WC44 - 0446,BALFOR RECRUITMENT GROUP  LTD,Third Party Payments,Private Contractor Fees,73374-SUPPORTED & OTHER ACCOMMODATION,261.38,Revenue,28/05/2014,Social Care & Inclusion
WC44 - 0447,REDACTED,Transfer Payments,Transfer Payments,76422-DIRECT PAYMENTS TO SOCIAL SERVICES CLIENTS,"2,389.16",Revenue,13/05/2014,Social Care & Inclusion
WC44 - 0448,REDACTED,Transfer Payments,Transfer Payments,76422-DIRECT PAYMENTS TO SOCIAL SERVICES CLIENTS,620.00,Revenue,13/05/2014,Social Care & Inclusion
WC44 - 0449,REDACTED,Transfer Payments,Transfer Payments,76422-DIRECT PAYMENTS TO SOCIAL SERVICES CLIENTS,"1,140.04",Revenue,13/05/2014,Social Care & Inclusion
WC44 - 0450,REDACTED,Transfer Payments,Transfer Payments,76422-DIRECT PAYMENTS TO SOCIAL SERVICES CLIENTS,450.26,Revenue,13/05/2014,Social Care & Inclusion
WC44 - 0451,REDACTED,Transfer Payments,Transfer Payments,76422-DIRECT PAYMENTS TO SOCIAL SERVICES CLIENTS,"1,314.88",Revenue,13/05/2014,Social Care & Inclusion
WC44 - 0452,REDACTED,Transfer Payments,Transfer Payments,76422-DIRECT PAYMENTS TO SOCIAL SERVICES CLIENTS,"1,280.00",Revenue,13/05/2014,Social Care & Inclusion
WC44 - 0453,REDACTED,Transfer Payments,Transfer Payments,76422-DIRECT PAYMENTS TO SOCIAL SERVICES CLIENTS,718.00,Revenue,13/05/2014,Social Care & Inclusion
WC44 - 0454,REDACTED,Transfer Payments,Transfer Payments,76422-DIRECT PAYMENTS TO SOCIAL SERVICES CLIENTS,632.52,Revenue,13/05/2014,Social Care & Inclusion
WC44 - 0455,REDACTED,Transfer Payments,Transfer Payments,76422-DIRECT PAYMENTS TO SOCIAL SERVICES CLIENTS,690.56,Revenue,13/05/2014,Social Care & Inclusion
WC44 - 0456,BARCHAM TREES PLC,Supplies & Services,"Equip,Furniture & Materials",60500-GENERAL MATERIALS,454.00,Revenue,07/05/2014,Neighbourhood Services
WC44 - 0457,BARCHESTER HEALTHCARE#1,Third Party Payments,Private Contractor Fees,73373-RESIDENTIAL & NURSING CARE PLACEMENTS,"1,920.28",Revenue,13/05/2014,Social Care & Inclusion
WC44 - 0458,BARNARDOS SERVICES LTD,Employees,Training,30030-EXTERNAL TRAINING,940.00,Revenue,21/05/2014,Childrens
WC44 - 0459,BARNARDOS SERVICES LTD,Supplies & Services,"Equip,Furniture & Materials",69900-TALKING BOOKS - GENERAL,"2,000.00",Revenue,21/05/2014,Childrens
WC44 - 0460,BARNARDOS SERVICES LTD,Third Party Payments,Private Contractor Fees,74037-INDEPENDENT FOSTER CARE-OTH AGENCY PROVISION,"4,627.86",Revenue,13/05/2014,Childrens
WC44 - 0461,BARONS COURT HOTEL,Employees,Other Staff Costs,34329-HOTEL ACCOMMODATION-EMPLOYEES,"1,890.00",Revenue,12/05/2014,Childrens
WC44 - 0462,BEADEN POWERLEC LIMITED,Capital,Capital,01006-SITE WORKS MAIN CONTRACTORS,250.00,Capital,28/05/2014,Childrens
WC44 - 0463,BEADEN POWERLEC LIMITED,Capital,Capital,01006-SITE WORKS MAIN CONTRACTORS,"39,499.99",Capital,12/05/2014,Childrens
WC44 - 0464,BEADEN POWERLEC LIMITED,Capital,Capital,01006-SITE WORKS MAIN CONTRACTORS,"85,569.97",Capital,07/05/2014,Childrens
WC44 - 0465,BEADEN POWERLEC LIMITED,Premises,Premises-Repairs & Maintenance,"40000-REPAIRS,ALTERATIONS & MAINTENANCE-PREM",250.00,Revenue,08/05/2014,Regeneration
WC44 - 0466,BEADEN POWERLEC LIMITED,Third Party Payments,Private Contractor Fees,73025-PROFESSIONAL SERVICES-PRIV CONTRACTOR & OTHER AGENCIES,250.00,Revenue,21/05/2014,Regeneration
WC44 - 0467,BEADEN POWERLEC LIMITED,Capital,Capital,01006-SITE WORKS MAIN CONTRACTORS,"15,438.76",Capital,07/05/2014,Regeneration
WC44 - 0468,REDACTED,Transfer Payments,Transfer Payments,74501-MAINTENANCE ALLOWANCE-FOSTER CARERS,622.49,Revenue,23/05/2014,Childrens
WC44 - 0469,REDACTED,Supplies & Services,Other Supplies & Services,62515-MISCELLANEOUS SUPPLIES,914.24,Revenue,26/05/2014,Childrens
WC44 - 0470,REDACTED,Third Party Payments,Private Contractor Fees,74006-HOLIDAY/CHRISTMAS ALLOWANCE-FOSTER CARERS-OTH AGENCY PROVISION,968.32,Revenue,26/05/2014,Childrens
WC44 - 0471,BEATRICE COURT NURSING HOME,Third Party Payments,Private Contractor Fees,73373-RESIDENTIAL & NURSING CARE PLACEMENTS,"1,523.08",Revenue,20/05/2014,Social Care & Inclusion
WC44 - 0472,BEATRICE COURT NURSING HOME,Third Party Payments,Private Contractor Fees,73373-RESIDENTIAL & NURSING CARE PLACEMENTS,"1,534.12",Revenue,20/05/2014,Social Care & Inclusion
WC44 - 0473,REDACTED,Transfer Payments,Transfer Payments,76422-DIRECT PAYMENTS TO SOCIAL SERVICES CLIENTS,641.76,Revenue,13/05/2014,Social Care & Inclusion
WC44 - 0474,BEDFORD FENCING CO LTD,Third Party Payments,Private Contractor Fees,73025-PROFESSIONAL SERVICES-PRIV CONTRACTOR & OTHER AGENCIES,450.00,Revenue,08/05/2014,Neighbourhood Services
WC44 - 0475,BEECHES DAY NURSERY,Third Party Payments,Grants to Other Orgs,66505-OTHER-GRANTS TO OTHER ORGS,"11,111.06",Revenue,07/05/2014,Childrens
WC44 - 0476,BEESWIFT LTD,Supplies & Services,"Equip,Furniture & Materials",61500-CLOTHING & LAUNDRY,273.60,Revenue,01/05/2014,Neighbourhood Services
WC44 - 0477,BELLEVUE COURT CARE HOME,Third Party Payments,Private Contractor Fees,73373-RESIDENTIAL & NURSING CARE PLACEMENTS,-480.00,Revenue,20/05/2014,Social Care & Inclusion
WC44 - 0478,BELLEVUE COURT CARE HOME,Third Party Payments,Private Contractor Fees,73373-RESIDENTIAL & NURSING CARE PLACEMENTS,327.89,Revenue,20/05/2014,Social Care & Inclusion
WC44 - 0479,BELLEVUE COURT CARE HOME,Third Party Payments,Private Contractor Fees,73373-RESIDENTIAL & NURSING CARE PLACEMENTS,"1,202.27",Revenue,20/05/2014,Social Care & Inclusion
WC44 - 0480,BELLEVUE COURT CARE HOME,Third Party Payments,Private Contractor Fees,73373-RESIDENTIAL & NURSING CARE PLACEMENTS,"1,486.96",Revenue,06/05/2014,Social Care & Inclusion
WC44 - 0481,BELLEVUE COURT CARE HOME,Third Party Payments,Private Contractor Fees,73373-RESIDENTIAL & NURSING CARE PLACEMENTS,"1,486.96",Revenue,27/05/2014,Social Care & Inclusion
WC44 - 0482,BELLEVUE COURT CARE HOME,Third Party Payments,Private Contractor Fees,73373-RESIDENTIAL & NURSING CARE PLACEMENTS,"1,530.16",Revenue,06/05/2014,Social Care & Inclusion
WC44 - 0483,BELLEVUE COURT CARE HOME,Third Party Payments,Private Contractor Fees,73373-RESIDENTIAL & NURSING CARE PLACEMENTS,"1,530.16",Revenue,06/05/2014,Social Care & Inclusion
WC44 - 0484,BELLEVUE COURT CARE HOME,Third Party Payments,Private Contractor Fees,73373-RESIDENTIAL & NURSING CARE PLACEMENTS,"1,530.16",Revenue,27/05/2014,Social Care & Inclusion
WC44 - 0485,BELLEVUE COURT CARE HOME,Third Party Payments,Private Contractor Fees,73373-RESIDENTIAL & NURSING CARE PLACEMENTS,"1,530.16",Revenue,27/05/2014,Social Care & Inclusion
WC44 - 0486,REDACTED,Transfer Payments,Transfer Payments,76422-DIRECT PAYMENTS TO SOCIAL SERVICES CLIENTS,"2,205.00",Revenue,13/05/2014,Social Care & Inclusion
WC44 - 0487,BENTLEY COURT PRIORY,Third Party Payments,Private Contractor Fees,73373-RESIDENTIAL & NURSING CARE PLACEMENTS,"1,600.72",Revenue,13/05/2014,Social Care & Inclusion
WC44 - 0488,BENTLEY COURT PRIORY,Third Party Payments,Private Contractor Fees,73373-RESIDENTIAL & NURSING CARE PLACEMENTS,"1,654.07",Revenue,20/05/2014,Social Care & Inclusion
WC44 - 0489,BENTLEY COURT PRIORY,Third Party Payments,Private Contractor Fees,73373-RESIDENTIAL & NURSING CARE PLACEMENTS,"2,071.24",Revenue,20/05/2014,Social Care & Inclusion
WC44 - 0490,BENTLEY WEST CHILDRENS CENTRE,Supplies & Services,Other Supplies & Services,63120-CRECHE FACILITIES-SERVICES-FEES,264.00,Revenue,01/05/2014,Childrens
WC44 - 0491,BENTLEY WEST CHILDRENS CENTRE,Supplies & Services,Other Supplies & Services,63120-CRECHE FACILITIES-SERVICES-FEES,264.00,Revenue,01/05/2014,Childrens
WC44 - 0492,BENTLEY WEST CHILDRENS CENTRE,Supplies & Services,Other Supplies & Services,63120-CRECHE FACILITIES-SERVICES-FEES,297.00,Revenue,01/05/2014,Childrens
WC44 - 0493,BENTLEY WEST CHILDRENS CENTRE,Supplies & Services,Other Supplies & Services,63120-CRECHE FACILITIES-SERVICES-FEES,330.00,Revenue,01/05/2014,Childrens
WC44 - 0494,BENTLEY WEST CHILDRENS CENTRE,Third Party Payments,Grants to Other Orgs,66505-OTHER-GRANTS TO OTHER ORGS,"27,777.65",Revenue,07/05/2014,Childrens
WC44 - 0495,REDACTED,Transfer Payments,Transfer Payments,76422-DIRECT PAYMENTS TO SOCIAL SERVICES CLIENTS,424.56,Revenue,13/05/2014,Social Care & Inclusion
WC44 - 0496,BERTRAM TRADING LTD T/A BERTRAM LIBRARY SERVICES),Supplies & Services,"Equip,Furniture & Materials",60501-LIBRARY BOOKS,293.44,Revenue,27/05/2014,Neighbourhood Services
WC44 - 0497,REDACTED,Transfer Payments,Transfer Payments,76422-DIRECT PAYMENTS TO SOCIAL SERVICES CLIENTS,912.00,Revenue,13/05/2014,Social Care & Inclusion
WC44 - 0498,REDACTED,Supplies & Services,Other Supplies & Services,62515-MISCELLANEOUS SUPPLIES,"1,428.44",Revenue,26/05/2014,Childrens
WC44 - 0499,REDACTED,Third Party Payments,Private Contractor Fees,74006-HOLIDAY/CHRISTMAS ALLOWANCE-FOSTER CARERS-OTH AGENCY PROVISION,"1,777.65",Revenue,26/05/2014,Childrens
WC44 - 0500,REDACTED,Transfer Payments,Transfer Payments,76422-DIRECT PAYMENTS TO SOCIAL SERVICES CLIENTS,968.00,Revenue,13/05/2014,Social Care & Inclusion
WC44 - 0501,BESCOT LODGE,Third Party Payments,Private Contractor Fees,73373-RESIDENTIAL & NURSING CARE PLACEMENTS,383.53,Revenue,13/05/2014,Social Care & Inclusion
WC44 - 0502,BESCOT LODGE,Third Party Payments,Private Contractor Fees,73373-RESIDENTIAL & NURSING CARE PLACEMENTS,821.85,Revenue,13/05/2014,Social Care & Inclusion
WC44 - 0503,BESCOT LODGE,Third Party Payments,Private Contractor Fees,73373-RESIDENTIAL & NURSING CARE PLACEMENTS,821.85,Revenue,13/05/2014,Social Care & Inclusion
WC44 - 0504,BESCOT LODGE,Third Party Payments,Private Contractor Fees,73373-RESIDENTIAL & NURSING CARE PLACEMENTS,"1,356.09",Revenue,27/05/2014,Social Care & Inclusion
WC44 - 0505,BESCOT PROMOTIONS,Third Party Payments,Private Contractor Fees,73025-PROFESSIONAL SERVICES-PRIV CONTRACTOR & OTHER AGENCIES,"2,600.00",Revenue,14/05/2014,Regeneration
WC44 - 0506,BESCOT PROMOTIONS,Third Party Payments,Private Contractor Fees,73025-PROFESSIONAL SERVICES-PRIV CONTRACTOR & OTHER AGENCIES,"3,250.00",Revenue,27/05/2014,Regeneration
WC44 - 0507,BETHPHAGE.,Third Party Payments,Private Contractor Fees,73374-SUPPORTED & OTHER ACCOMMODATION,"-4,091.90",Revenue,06/05/2014,Social Care & Inclusion
WC44 - 0508,BETHPHAGE.,Third Party Payments,Private Contractor Fees,73374-SUPPORTED & OTHER ACCOMMODATION,"-1,169.55",Revenue,07/05/2014,Social Care & Inclusion
WC44 - 0509,BETHPHAGE.,Third Party Payments,Private Contractor Fees,73374-SUPPORTED & OTHER ACCOMMODATION,-259.90,Revenue,06/05/2014,Social Care & Inclusion
WC44 - 0510,BETHPHAGE.,Third Party Payments,Private Contractor Fees,73374-SUPPORTED & OTHER ACCOMMODATION,"1,023.00",Revenue,06/05/2014,Social Care & Inclusion
WC44 - 0511,BETHPHAGE.,Third Party Payments,Private Contractor Fees,73374-SUPPORTED & OTHER ACCOMMODATION,"2,047.50",Revenue,06/05/2014,Social Care & Inclusion
WC44 - 0512,BETHPHAGE.,Third Party Payments,Private Contractor Fees,73374-SUPPORTED & OTHER ACCOMMODATION,"2,116.52",Revenue,07/05/2014,Social Care & Inclusion
WC44 - 0513,BETHPHAGE.,Third Party Payments,Private Contractor Fees,73374-SUPPORTED & OTHER ACCOMMODATION,"2,539.80",Revenue,06/05/2014,Social Care & Inclusion
WC44 - 0514,BETHPHAGE.,Third Party Payments,Private Contractor Fees,73374-SUPPORTED & OTHER ACCOMMODATION,"4,789.90",Revenue,06/05/2014,Social Care & Inclusion
WC44 - 0515,REDACTED,Transfer Payments,Transfer Payments,76422-DIRECT PAYMENTS TO SOCIAL SERVICES CLIENTS,322.00,Revenue,13/05/2014,Social Care & Inclusion
WC44 - 0516,REDACTED,Transfer Payments,Transfer Payments,76422-DIRECT PAYMENTS TO SOCIAL SERVICES CLIENTS,"3,740.00",Revenue,13/05/2014,Social Care & Inclusion
WC44 - 0517,REDACTED,Transfer Payments,Transfer Payments,76422-DIRECT PAYMENTS TO SOCIAL SERVICES CLIENTS,949.52,Revenue,13/05/2014,Social Care & Inclusion
WC44 - 0518,REDACTED,Transfer Payments,Transfer Payments,76422-DIRECT PAYMENTS TO SOCIAL SERVICES CLIENTS,"2,592.09",Revenue,13/05/2014,Social Care & Inclusion
WC44 - 0519,BFA SAFETY TRAINING,Employees,Training,30030-EXTERNAL TRAINING,275.00,Revenue,12/05/2014,Resources
WC44 - 0520,BFA SAFETY TRAINING,Employees,Training,30030-EXTERNAL TRAINING,450.00,Revenue,12/05/2014,Resources
WC44 - 0521,BFA SAFETY TRAINING,Employees,Training,30030-EXTERNAL TRAINING,500.00,Revenue,12/05/2014,Resources
WC44 - 0522,BFA SAFETY TRAINING,Employees,Training,30030-EXTERNAL TRAINING,720.00,Revenue,12/05/2014,Resources
WC44 - 0523,BIFFA WASTE SERVICES LTD,Third Party Payments,Private Contractor Fees,73029-HAZARDOUS WASTE REMOVAL/DISPOSAL-PRIV CONTRACTOR FEES,-737.18,Revenue,07/05/2014,Neighbourhood Services
WC44 - 0524,BIFFA WASTE SERVICES LTD,Third Party Payments,Private Contractor Fees,73022-DISPOSAL & TRANSPORTATION OF CARDBOARD-PRIV CONTRACTOR FEES,48.25,Revenue,08/05/2014,Neighbourhood Services
WC44 - 0525,BIFFA WASTE SERVICES LTD,Third Party Payments,Private Contractor Fees,73022-DISPOSAL & TRANSPORTATION OF CARDBOARD-PRIV CONTRACTOR FEES,48.25,Revenue,08/05/2014,Neighbourhood Services
WC44 - 0526,BIFFA WASTE SERVICES LTD,Third Party Payments,Private Contractor Fees,73039-LANDFILL TAX-PRIV CONTRACTOR FEES,328.00,Revenue,07/05/2014,Neighbourhood Services
WC44 - 0527,BIFFA WASTE SERVICES LTD,Third Party Payments,Private Contractor Fees,73039-LANDFILL TAX-PRIV CONTRACTOR FEES,328.00,Revenue,07/05/2014,Neighbourhood Services
WC44 - 0528,BIFFA WASTE SERVICES LTD,Third Party Payments,Private Contractor Fees,73029-HAZARDOUS WASTE REMOVAL/DISPOSAL-PRIV CONTRACTOR FEES,409.18,Revenue,07/05/2014,Neighbourhood Services
WC44 - 0529,BIFFA WASTE SERVICES LTD,Third Party Payments,Private Contractor Fees,73029-HAZARDOUS WASTE REMOVAL/DISPOSAL-PRIV CONTRACTOR FEES,418.98,Revenue,07/05/2014,Neighbourhood Services
WC44 - 0530,BIFFA WASTE SERVICES LTD,Third Party Payments,Private Contractor Fees,73005-LANDFILL PTYS-PRIV CONTRACTOR FEES,"2,254.34",Revenue,08/05/2014,Neighbourhood Services
WC44 - 0531,BIFFA WASTE SERVICES LTD,Third Party Payments,Private Contractor Fees,73005-LANDFILL PTYS-PRIV CONTRACTOR FEES,"3,785.99",Revenue,08/05/2014,Neighbourhood Services
WC44 - 0532,BIFFA WASTE SERVICES LTD,Third Party Payments,Private Contractor Fees,73039-LANDFILL TAX-PRIV CONTRACTOR FEES,"13,980.80",Revenue,08/05/2014,Neighbourhood Services
WC44 - 0533,BIFFA WASTE SERVICES LTD,Third Party Payments,Private Contractor Fees,73039-LANDFILL TAX-PRIV CONTRACTOR FEES,"23,468.80",Revenue,08/05/2014,Neighbourhood Services
WC44 - 0534,REDACTED,Transfer Payments,Transfer Payments,76422-DIRECT PAYMENTS TO SOCIAL SERVICES CLIENTS,339.92,Revenue,13/05/2014,Childrens
WC44 - 0535,BIRMINGHAM CITY COUNCIL,Employees,Training,30030-EXTERNAL TRAINING,-264.00,Revenue,01/05/2014,Resources
WC44 - 0536,BIRMINGHAM GARAGE AND INDUSTRIAL DOORS LTD,Third Party Payments,Private Contractor Fees,73025-PROFESSIONAL SERVICES-PRIV CONTRACTOR & OTHER AGENCIES,668.00,Revenue,21/05/2014,Regeneration
WC44 - 0537,BIRMINGHAM GARAGE AND INDUSTRIAL DOORS LTD,Premises,Premises-Repairs & Maintenance,"40000-REPAIRS,ALTERATIONS & MAINTENANCE-PREM",775.00,Revenue,16/05/2014,Regeneration
WC44 - 0538,BIRSE CIVILS LTD,Capital,Capital,01001-OTHER CONSULTANTS FEES,"188,996.37",Capital,15/05/2014,Regeneration
WC44 - 0539,BLACK BOX AV LTD,Supplies & Services,"Equip,Furniture & Materials",60500-GENERAL MATERIALS,"1,280.50",Revenue,15/05/2014,Neighbourhood Services
WC44 - 0540,BLACK COUNTRY CONSORTIUM LIMITED,Supplies & Services,Services,63000-PROFESSIONAL FEES AND SERVICES,"115,000.00",Revenue,14/05/2014,Regeneration
WC44 - 0541,BLACK COUNTRY PARTNERSHIP NHS,Third Party Payments,Private Contractor Fees,73373-RESIDENTIAL & NURSING CARE PLACEMENTS,"297,481.00",Revenue,14/05/2014,Social Care & Inclusion
WC44 - 0542,BLAKENALL HEATH JMI SCHOOL,Capital,Capital,01009-SITE WORKS - OTHER CONTRACTORS,"31,780.46",Capital,28/05/2014,Childrens
WC44 - 0543,BLAKENALL HEATH JMI SCHOOL,Transfer Payments,Transfer Payments,77300-ISB-FORMULA ALLOCATION,"86,631.80",Revenue,22/05/2014,Childrens
WC44 - 0544,BLANCHWORTH CARE HOMES LIMITED,Third Party Payments,Private Contractor Fees,73373-RESIDENTIAL & NURSING CARE PLACEMENTS,"2,007.30",Revenue,13/05/2014,Social Care & Inclusion
WC44 - 0545,BLITZ RECYCLING AND WASTE SERVICES LTD,Third Party Payments,Private Contractor Fees,73025-PROFESSIONAL SERVICES-PRIV CONTRACTOR & OTHER AGENCIES,"1,625.00",Revenue,01/05/2014,Regeneration
WC44 - 0546,BLITZ RECYCLING AND WASTE SERVICES LTD,Third Party Payments,Private Contractor Fees,73025-PROFESSIONAL SERVICES-PRIV CONTRACTOR & OTHER AGENCIES,"2,015.00",Revenue,01/05/2014,Regeneration
WC44 - 0547,BLITZ RECYCLING AND WASTE SERVICES LTD,Third Party Payments,Private Contractor Fees,73025-PROFESSIONAL SERVICES-PRIV CONTRACTOR & OTHER AGENCIES,"6,405.00",Revenue,01/05/2014,Regeneration
WC44 - 0548,BLOXWICH CHILDRENS CENTRE,Third Party Payments,Grants to Other Orgs,66505-OTHER-GRANTS TO OTHER ORGS,"12,014.73",Revenue,07/05/2014,Childrens
WC44 - 0549,BLOXWICH COMMUNITY PARTNERSHIP.,Supplies & Services,Other Supplies & Services,62515-MISCELLANEOUS SUPPLIES,648.22,Revenue,14/05/2014,Neighbourhood Services
WC44 - 0550,BLOXWICH COMMUNITY PARTNERSHIP.,Third Party Payments,Grants to Other Orgs,66500-GRANTS TO OTHER ORGS,"4,118.33",Revenue,22/05/2014,Neighbourhood Services
WC44 - 0551,BLOXWICH COMMUNITY PARTNERSHIP.,Third Party Payments,Grants to Other Orgs,66500-GRANTS TO OTHER ORGS,"6,999.99",Revenue,22/05/2014,Neighbourhood Services
WC44 - 0552,BLUE GIRAFFE CHILDCARE,Third Party Payments,Grants to Other Orgs,66505-OTHER-GRANTS TO OTHER ORGS,"8,513.00",Revenue,07/05/2014,Childrens
WC44 - 0553,BLUE SKY FUSION LLP,Central Budgets,Central Support Services Exp,82008-COMMUNICATIONS RECHARGES FROM,500.00,Revenue,02/05/2014,Regeneration
WC44 - 0554,BNP PARIBAS LEASE GROUP,Supplies & Services,"Equip,Furniture & Materials",60009-LEASING/HIRE/RENTAL-EQUIPMENT,479.74,Revenue,14/05/2014,Social Care & Inclusion
WC44 - 0555,BOLDMERE COURT CARE HOME,Third Party Payments,Private Contractor Fees,73373-RESIDENTIAL & NURSING CARE PLACEMENTS,"1,494.00",Revenue,20/05/2014,Social Care & Inclusion
WC44 - 0556,BOLDMERE COURT CARE HOME,Third Party Payments,Private Contractor Fees,73373-RESIDENTIAL & NURSING CARE PLACEMENTS,"1,494.04",Revenue,20/05/2014,Social Care & Inclusion
WC44 - 0557,BOOTS OPTICIANS PROFESSIONAL SERVICES LTD,Employees,Other Staff Costs,34310-EYE TESTS-EMPLOYEES,"1,250.00",Revenue,12/05/2014,Resources
WC44 - 0558,BOWDEN DERRA PARK,Third Party Payments,Private Contractor Fees,73373-RESIDENTIAL & NURSING CARE PLACEMENTS,366.84,Revenue,13/05/2014,Social Care & Inclusion
WC44 - 0559,BOWDEN DERRA PARK,Third Party Payments,Private Contractor Fees,73373-RESIDENTIAL & NURSING CARE PLACEMENTS,"9,904.80",Revenue,13/05/2014,Social Care & Inclusion
WC44 - 0560,BOWDEN DERRA PARK,Third Party Payments,Private Contractor Fees,73373-RESIDENTIAL & NURSING CARE PLACEMENTS,"10,271.64",Revenue,06/05/2014,Social Care & Inclusion
WC44 - 0561,BRABNERS CHAFFE STREET LLP,Capital,Capital,01022-LEGAL FEES,"13,058.50",Capital,16/05/2014,Regeneration
WC44 - 0562,BRADLEY ENVIRONMENTAL,Capital,Capital,01006-SITE WORKS MAIN CONTRACTORS,"2,234.00",Capital,27/05/2014,Childrens
WC44 - 0563,BRADLEY ENVIRONMENTAL,Capital,Capital,01006-SITE WORKS MAIN CONTRACTORS,"3,037.00",Capital,14/05/2014,Childrens
WC44 - 0564,BRADLEY ENVIRONMENTAL,Premises,Premises-Repairs & Maintenance,"40000-REPAIRS,ALTERATIONS & MAINTENANCE-PREM",388.00,Revenue,13/05/2014,Regeneration
WC44 - 0565,REDACTED,Transfer Payments,Transfer Payments,76422-DIRECT PAYMENTS TO SOCIAL SERVICES CLIENTS,460.32,Revenue,13/05/2014,Social Care & Inclusion
WC44 - 0566,BRELMAYNE LTD,Supplies & Services,"Equip,Furniture & Materials",60006-NEW-FURNITURE & EQUIPMENT,501.03,Revenue,07/05/2014,Childrens
WC44 - 0567,BRELMAYNE LTD,Premises,Premises-Repairs & Maintenance,"40000-REPAIRS,ALTERATIONS & MAINTENANCE-PREM",720.00,Revenue,28/05/2014,Childrens
WC44 - 0568,BRELMAYNE LTD,Capital,Capital,01006-SITE WORKS MAIN CONTRACTORS,301.43,Capital,14/05/2014,Regeneration
WC44 - 0569,BRELMAYNE LTD,Premises,Premises-Repairs & Maintenance,"40000-REPAIRS,ALTERATIONS & MAINTENANCE-PREM",302.00,Revenue,21/05/2014,Regeneration
WC44 - 0570,BRELMAYNE LTD,Premises,Premises-Repairs & Maintenance,"40000-REPAIRS,ALTERATIONS & MAINTENANCE-PREM",302.80,Revenue,12/05/2014,Regeneration
WC44 - 0571,BRELMAYNE LTD,Capital,Capital,01006-SITE WORKS MAIN CONTRACTORS,315.70,Capital,27/05/2014,Regeneration
WC44 - 0572,BRELMAYNE LTD,Third Party Payments,Private Contractor Fees,73025-PROFESSIONAL SERVICES-PRIV CONTRACTOR & OTHER AGENCIES,344.67,Revenue,16/05/2014,Regeneration
WC44 - 0573,BRELMAYNE LTD,Premises,Premises-Repairs & Maintenance,"40000-REPAIRS,ALTERATIONS & MAINTENANCE-PREM",369.86,Revenue,27/05/2014,Regeneration
WC44 - 0574,BRELMAYNE LTD,Third Party Payments,Private Contractor Fees,73025-PROFESSIONAL SERVICES-PRIV CONTRACTOR & OTHER AGENCIES,416.40,Revenue,14/05/2014,Regeneration
WC44 - 0575,BRELMAYNE LTD,Premises,Premises-Repairs & Maintenance,"40000-REPAIRS,ALTERATIONS & MAINTENANCE-PREM",503.36,Revenue,13/05/2014,Regeneration
WC44 - 0576,BRELMAYNE LTD,Premises,Premises-Repairs & Maintenance,"40000-REPAIRS,ALTERATIONS & MAINTENANCE-PREM",530.86,Revenue,15/05/2014,Regeneration
WC44 - 0577,BRELMAYNE LTD,Premises,Premises-Repairs & Maintenance,"40000-REPAIRS,ALTERATIONS & MAINTENANCE-PREM",645.31,Revenue,09/05/2014,Regeneration
WC44 - 0578,BRELMAYNE LTD,Third Party Payments,Private Contractor Fees,73025-PROFESSIONAL SERVICES-PRIV CONTRACTOR & OTHER AGENCIES,759.30,Revenue,14/05/2014,Regeneration
WC44 - 0579,BRELMAYNE LTD,Third Party Payments,Private Contractor Fees,73025-PROFESSIONAL SERVICES-PRIV CONTRACTOR & OTHER AGENCIES,826.42,Revenue,13/05/2014,Regeneration
WC44 - 0580,BRELMAYNE LTD,Premises,Premises-Repairs & Maintenance,"40000-REPAIRS,ALTERATIONS & MAINTENANCE-PREM",851.00,Revenue,22/05/2014,Regeneration
WC44 - 0581,BRELMAYNE LTD,Third Party Payments,Private Contractor Fees,73025-PROFESSIONAL SERVICES-PRIV CONTRACTOR & OTHER AGENCIES,875.00,Revenue,09/05/2014,Regeneration
WC44 - 0582,BRELMAYNE LTD,Premises,Premises-Repairs & Maintenance,"40000-REPAIRS,ALTERATIONS & MAINTENANCE-PREM","1,349.60",Revenue,09/05/2014,Regeneration
WC44 - 0583,REDACTED,Transfer Payments,Transfer Payments,76422-DIRECT PAYMENTS TO SOCIAL SERVICES CLIENTS,680.00,Revenue,13/05/2014,Social Care & Inclusion
WC44 - 0584,REDACTED,Transfer Payments,Transfer Payments,76422-DIRECT PAYMENTS TO SOCIAL SERVICES CLIENTS,440.00,Revenue,13/05/2014,Social Care & Inclusion
WC44 - 0585,REDACTED,Transfer Payments,Transfer Payments,76422-DIRECT PAYMENTS TO SOCIAL SERVICES CLIENTS,459.00,Revenue,13/05/2014,Social Care & Inclusion
WC44 - 0586,REDACTED,Third Party Payments,Private Contractor Fees,74006-HOLIDAY/CHRISTMAS ALLOWANCE-FOSTER CARERS-OTH AGENCY PROVISION,"1,278.80",Revenue,26/05/2014,Childrens
WC44 - 0587,REDACTED,Supplies & Services,Other Supplies & Services,62515-MISCELLANEOUS SUPPLIES,"1,523.64",Revenue,26/05/2014,Childrens
WC44 - 0588,REDACTED,Transfer Payments,Transfer Payments,76422-DIRECT PAYMENTS TO SOCIAL SERVICES CLIENTS,544.00,Revenue,13/05/2014,Social Care & Inclusion
WC44 - 0589,BRENNTAG UK LIMITED,Transport,Other Transport,50301-FUEL-TRANSPORT RUN COSTS,429.16,Revenue,28/05/2014,Neighbourhood Services
WC44 - 0590,REDACTED,Third Party Payments,Private Contractor Fees,73374-SUPPORTED & OTHER ACCOMMODATION,"2,935.24",Revenue,19/05/2014,Social Care & Inclusion
WC44 - 0591,REDACTED,Transfer Payments,Transfer Payments,76422-DIRECT PAYMENTS TO SOCIAL SERVICES CLIENTS,391.52,Revenue,13/05/2014,Social Care & Inclusion
WC44 - 0592,REDACTED,Transfer Payments,Transfer Payments,76422-DIRECT PAYMENTS TO SOCIAL SERVICES CLIENTS,"1,294.80",Revenue,13/05/2014,Social Care & Inclusion
WC44 - 0593,REDACTED,Transfer Payments,Transfer Payments,76422-DIRECT PAYMENTS TO SOCIAL SERVICES CLIENTS,517.92,Revenue,13/05/2014,Social Care & Inclusion
WC44 - 0594,BRIDGEWOOD HEALTH CARE LTD,Third Party Payments,Private Contractor Fees,73373-RESIDENTIAL & NURSING CARE PLACEMENTS,"5,058.44",Revenue,06/05/2014,Social Care & Inclusion
WC44 - 0595,REDACTED,Transfer Payments,Transfer Payments,76422-DIRECT PAYMENTS TO SOCIAL SERVICES CLIENTS,"1,039.78",Revenue,13/05/2014,Social Care & Inclusion
WC44 - 0596,BRITANNIA APPRENTICESHIPS LTD,Third Party Payments,Grants to Other Orgs,66500-GRANTS TO OTHER ORGS,"1,125.00",Revenue,08/05/2014,Regeneration
WC44 - 0597,BRITISH GAS BUSINESS,Premises,Utilities,42000-GAS-ENERGY COSTS,-327.57,Revenue,01/05/2014,Childrens
WC44 - 0598,BRITISH GAS BUSINESS,Premises,Utilities,42000-GAS-ENERGY COSTS,-320.05,Revenue,01/05/2014,Childrens
WC44 - 0599,BRITISH GAS BUSINESS,Premises,Utilities,42000-GAS-ENERGY COSTS,274.21,Revenue,27/05/2014,Childrens
WC44 - 0600,BRITISH GAS BUSINESS,Premises,Utilities,42000-GAS-ENERGY COSTS,277.99,Revenue,09/05/2014,Childrens
WC44 - 0601,BRITISH GAS BUSINESS,Premises,Utilities,42000-GAS-ENERGY COSTS,302.22,Revenue,22/05/2014,Childrens
WC44 - 0602,BRITISH GAS BUSINESS,Premises,Utilities,42001-GAS METERED-ENERGY COSTS,333.64,Revenue,23/05/2014,Childrens
WC44 - 0603,BRITISH GAS BUSINESS,Premises,Utilities,42001-GAS METERED-ENERGY COSTS,336.66,Revenue,23/05/2014,Childrens
WC44 - 0604,BRITISH GAS BUSINESS,Premises,Utilities,42000-GAS-ENERGY COSTS,362.04,Revenue,22/05/2014,Childrens
WC44 - 0605,BRITISH GAS BUSINESS,Premises,Utilities,42000-GAS-ENERGY COSTS,434.33,Revenue,23/05/2014,Childrens
WC44 - 0606,BRITISH GAS BUSINESS,Premises,Utilities,42000-GAS-ENERGY COSTS,638.56,Revenue,07/05/2014,Childrens
WC44 - 0607,BRITISH GAS BUSINESS,Premises,Utilities,42000-GAS-ENERGY COSTS,775.04,Revenue,07/05/2014,Childrens
WC44 - 0608,BRITISH GAS BUSINESS,Premises,Utilities,42000-GAS-ENERGY COSTS,"4,807.71",Revenue,23/05/2014,Childrens
WC44 - 0609,BRITISH GAS BUSINESS,Premises,Utilities,42000-GAS-ENERGY COSTS,"4,897.78",Revenue,07/05/2014,Childrens
WC44 - 0610,BRITISH GAS BUSINESS,Premises,Utilities,42000-GAS-ENERGY COSTS,845.54,Revenue,22/05/2014,Regeneration
WC44 - 0611,BRITISH GAS BUSINESS,Premises,Utilities,42000-GAS-ENERGY COSTS,994.47,Revenue,22/05/2014,Regeneration
WC44 - 0612,BRITISH GAS BUSINESS,Premises,Utilities,42000-GAS-ENERGY COSTS,"1,273.39",Revenue,14/05/2014,Regeneration
WC44 - 0613,BRITISH GAS BUSINESS,Premises,Utilities,42000-GAS-ENERGY COSTS,"1,568.90",Revenue,22/05/2014,Regeneration
WC44 - 0614,BRITISH GAS BUSINESS,Premises,Utilities,42000-GAS-ENERGY COSTS,"3,297.50",Revenue,14/05/2014,Regeneration
WC44 - 0615,BRITISH GAS BUSINESS,Premises,Utilities,42000-GAS-ENERGY COSTS,"5,174.59",Revenue,14/05/2014,Regeneration
WC44 - 0616,BRITISH GAS BUSINESS,Premises,Utilities,42000-GAS-ENERGY COSTS,"7,310.31",Revenue,14/05/2014,Regeneration
WC44 - 0617,BRITISH GAS BUSINESS,Premises,Utilities,42000-GAS-ENERGY COSTS,"15,127.36",Revenue,14/05/2014,Regeneration
WC44 - 0618,BRITISH SALT LTD,Supplies & Services,"Equip,Furniture & Materials",60500-GENERAL MATERIALS,23.88,Revenue,28/05/2014,Neighbourhood Services
WC44 - 0619,BRITISH SALT LTD,Supplies & Services,"Equip,Furniture & Materials",60006-NEW-FURNITURE & EQUIPMENT,487.52,Revenue,28/05/2014,Neighbourhood Services
WC44 - 0620,BROADOAK CARE,Third Party Payments,Private Contractor Fees,73373-RESIDENTIAL & NURSING CARE PLACEMENTS,602.69,Revenue,20/05/2014,Social Care & Inclusion
WC44 - 0621,BROADOAK CARE,Third Party Payments,Private Contractor Fees,73373-RESIDENTIAL & NURSING CARE PLACEMENTS,"1,479.31",Revenue,13/05/2014,Social Care & Inclusion
WC44 - 0622,BROADOAK CARE,Third Party Payments,Private Contractor Fees,73373-RESIDENTIAL & NURSING CARE PLACEMENTS,"2,916.32",Revenue,02/05/2014,Social Care & Inclusion
WC44 - 0623,BROADOAK CARE,Third Party Payments,Private Contractor Fees,73373-RESIDENTIAL & NURSING CARE PLACEMENTS,"10,662.64",Revenue,02/05/2014,Social Care & Inclusion
WC44 - 0624,BROADOAK CARE,Third Party Payments,Private Contractor Fees,73373-RESIDENTIAL & NURSING CARE PLACEMENTS,"14,989.71",Revenue,02/05/2014,Social Care & Inclusion
WC44 - 0625,BROADWAY TRAVEL CONNECTIONS,Transport,Hire,52000-WITH DRIVER-HIRE OF VEHICLES,475.00,Revenue,15/05/2014,Childrens
WC44 - 0626,BROADWAY TRAVEL CONNECTIONS,Transport,Hire,52000-WITH DRIVER-HIRE OF VEHICLES,855.00,Revenue,16/05/2014,Childrens
WC44 - 0627,BROOK DESIGN HARDWARE LTD,Supplies & Services,"Equip,Furniture & Materials",60500-GENERAL MATERIALS,"1,867.52",Revenue,02/05/2014,Social Care & Inclusion
WC44 - 0628,BROWNHILLS ASPHALT TARMACADAM,Capital,Capital,01006-SITE WORKS MAIN CONTRACTORS,"11,966.00",Capital,15/05/2014,Childrens
WC44 - 0629,BROWNHILLS ASPHALT TARMACADAM,Capital,Capital,01006-SITE WORKS MAIN CONTRACTORS,"25,000.00",Capital,01/05/2014,Childrens
WC44 - 0630,BROWNHILLS ASPHALT TARMACADAM,Premises,Premises-Repairs & Maintenance,"40000-REPAIRS,ALTERATIONS & MAINTENANCE-PREM",305.00,Revenue,28/05/2014,Neighbourhood Services
WC44 - 0631,BROWNHILLS ASPHALT TARMACADAM,Premises,Premises-Repairs & Maintenance,"40000-REPAIRS,ALTERATIONS & MAINTENANCE-PREM",320.00,Revenue,28/05/2014,Neighbourhood Services
WC44 - 0632,BROWNHILLS ASPHALT TARMACADAM,Premises,Premises-Repairs & Maintenance,"40000-REPAIRS,ALTERATIONS & MAINTENANCE-PREM",340.00,Revenue,28/05/2014,Neighbourhood Services
WC44 - 0633,BROWNHILLS ASPHALT TARMACADAM,Third Party Payments,Private Contractor Fees,73025-PROFESSIONAL SERVICES-PRIV CONTRACTOR & OTHER AGENCIES,350.00,Revenue,28/05/2014,Neighbourhood Services
WC44 - 0634,BROWNHILLS ASPHALT TARMACADAM,Premises,Premises-Repairs & Maintenance,"40000-REPAIRS,ALTERATIONS & MAINTENANCE-PREM",695.00,Revenue,15/05/2014,Neighbourhood Services
WC44 - 0635,BROWNHILLS ASPHALT TARMACADAM,Premises,Premises-Repairs & Maintenance,"40000-REPAIRS,ALTERATIONS & MAINTENANCE-PREM","1,661.00",Revenue,22/05/2014,Neighbourhood Services
WC44 - 0636,BROWNHILLS ASPHALT TARMACADAM,Capital,Capital,01006-SITE WORKS MAIN CONTRACTORS,"2,100.00",Capital,22/05/2014,Neighbourhood Services
WC44 - 0637,BROWNHILLS ASPHALT TARMACADAM,Third Party Payments,Private Contractor Fees,73025-PROFESSIONAL SERVICES-PRIV CONTRACTOR & OTHER AGENCIES,"4,875.00",Revenue,08/05/2014,Neighbourhood Services
WC44 - 0638,BROWNHILLS ASPHALT TARMACADAM,Supplies & Services,"Equip,Furniture & Materials",60500-GENERAL MATERIALS,350.00,Revenue,19/05/2014,Regeneration
WC44 - 0639,BROWNHILLS ASPHALT TARMACADAM,Third Party Payments,Private Contractor Fees,73025-PROFESSIONAL SERVICES-PRIV CONTRACTOR & OTHER AGENCIES,995.00,Revenue,15/05/2014,Regeneration
WC44 - 0640,BROWNHILLS ASPHALT TARMACADAM,Premises,Premises-Repairs & Maintenance,"40000-REPAIRS,ALTERATIONS & MAINTENANCE-PREM","1,000.00",Revenue,07/05/2014,Regeneration
WC44 - 0641,BROWNHILLS ASPHALT TARMACADAM,Capital,Capital,01006-SITE WORKS MAIN CONTRACTORS,"2,145.00",Capital,15/05/2014,Regeneration
WC44 - 0642,BROWNHILLS ASPHALT TARMACADAM,Third Party Payments,Private Contractor Fees,73025-PROFESSIONAL SERVICES-PRIV CONTRACTOR & OTHER AGENCIES,"2,468.00",Revenue,01/05/2014,Regeneration
WC44 - 0643,BROWNHILLS ASPHALT TARMACADAM,Premises,Premises-Repairs & Maintenance,"40000-REPAIRS,ALTERATIONS & MAINTENANCE-PREM","2,895.00",Revenue,15/05/2014,Regeneration
WC44 - 0644,BROWNHILLS ASPHALT TARMACADAM,Premises,Premises-Repairs & Maintenance,"40000-REPAIRS,ALTERATIONS & MAINTENANCE-PREM","3,560.00",Revenue,15/05/2014,Regeneration
WC44 - 0645,BROWNHILLS ASPHALT TARMACADAM,Capital,Capital,01006-SITE WORKS MAIN CONTRACTORS,"6,798.00",Capital,14/05/2014,Regeneration
WC44 - 0646,BROWNHILLS ASPHALT TARMACADAM,Premises,Premises-Repairs & Maintenance,"40000-REPAIRS,ALTERATIONS & MAINTENANCE-PREM","7,273.00",Revenue,12/05/2014,Regeneration
WC44 - 0647,BROWNHILLS ASPHALT TARMACADAM,Premises,Premises-Repairs & Maintenance,"40000-REPAIRS,ALTERATIONS & MAINTENANCE-PREM","9,173.00",Revenue,07/05/2014,Regeneration
WC44 - 0648,BROWNHILLS ASPHALT TARMACADAM,Capital,Capital,01006-SITE WORKS MAIN CONTRACTORS,"10,000.00",Capital,15/05/2014,Regeneration
WC44 - 0649,BROWNHILLS ASPHALT TARMACADAM,Capital,Capital,01006-SITE WORKS MAIN CONTRACTORS,"23,522.00",Capital,01/05/2014,Regeneration
WC44 - 0650,BROWNHILLS CARS,Transport,Hire,52000-WITH DRIVER-HIRE OF VEHICLES,264.00,Revenue,20/05/2014,Childrens
WC44 - 0651,BROWNHILLS CARS,Transport,Hire,52000-WITH DRIVER-HIRE OF VEHICLES,696.00,Revenue,20/05/2014,Childrens
WC44 - 0652,BROWNHILLS CARS,Transport,Hire,52000-WITH DRIVER-HIRE OF VEHICLES,"1,128.00",Revenue,20/05/2014,Childrens
WC44 - 0653,BROWNHILLS CARS,Transport,Hire,52000-WITH DRIVER-HIRE OF VEHICLES,"1,218.00",Revenue,01/05/2014,Childrens
WC44 - 0654,BROWNHILLS CHILDRENS CENTRE,Third Party Payments,Grants to Other Orgs,66505-OTHER-GRANTS TO OTHER ORGS,"12,856.79",Revenue,07/05/2014,Childrens
WC44 - 0655,BROWNHILLS COMMUNITY ASSOCIAT,Supplies & Services,Other Supplies & Services,63128-HIRE OF ROOM-SERVICES-FEES,268.00,Revenue,09/05/2014,Childrens
WC44 - 0656,BROWNHILLS COMMUNITY ASSOCIATION,Employees,Other Staff Costs,32000-MISC FEES AND EXPENSES,"1,080.00",Revenue,12/05/2014,Childrens
WC44 - 0657,BROWNHILLS COMMUNITY ASSOCIATION,Third Party Payments,Grants to Other Orgs,66500-GRANTS TO OTHER ORGS,"3,333.33",Revenue,22/05/2014,Neighbourhood Services
WC44 - 0658,BROWNHILLS COMMUNITY ASSOCIATION,Third Party Payments,Grants to Other Orgs,66500-GRANTS TO OTHER ORGS,"4,118.33",Revenue,22/05/2014,Neighbourhood Services
WC44 - 0659,REDACTED,Transfer Payments,Transfer Payments,76422-DIRECT PAYMENTS TO SOCIAL SERVICES CLIENTS,"1,445.00",Revenue,13/05/2014,Social Care & Inclusion
WC44 - 0660,BRUEL & KJAER,Supplies & Services,"Equip,Furniture & Materials",60008-MAINTENANCE-FURNITURE & EQUIPMENT,756.00,Revenue,02/05/2014,Neighbourhood Services
WC44 - 0661,BRUNSWICK HOUSE,Third Party Payments,Private Contractor Fees,73373-RESIDENTIAL & NURSING CARE PLACEMENTS,"-3,606.22",Revenue,06/05/2014,Social Care & Inclusion
WC44 - 0662,BRUNSWICK LODGE,Third Party Payments,Private Contractor Fees,73373-RESIDENTIAL & NURSING CARE PLACEMENTS,"-4,922.29",Revenue,20/05/2014,Social Care & Inclusion
WC44 - 0663,BT PLC,Supplies & Services,Communications & Computing,63603-COST OF CALLS-TELEPHONES,994.00,Revenue,01/05/2014,Resources
WC44 - 0664,BT PLC,Supplies & Services,Communications & Computing,63601-COSTS (NOT INTERNAL RECHARGES)-TELEPHONES,"9,310.90",Revenue,16/05/2014,Resources
WC44 - 0665,BT PLC,Supplies & Services,Communications & Computing,63601-COSTS (NOT INTERNAL RECHARGES)-TELEPHONES,"19,505.82",Revenue,20/05/2014,Resources
WC44 - 0666,BUFFET EXPRESS LTD,Supplies & Services,Provisions,61305-CATERING,"1,542.85",Revenue,14/05/2014,Neighbourhood Services
WC44 - 0667,BUPA CARE HOMES (CFHCARE) LTD,Third Party Payments,Private Contractor Fees,73373-RESIDENTIAL & NURSING CARE PLACEMENTS,"1,458.00",Revenue,13/05/2014,Social Care & Inclusion
WC44 - 0668,BUPA CARE HOMES (CFHCARE) LTD,Third Party Payments,Private Contractor Fees,73373-RESIDENTIAL & NURSING CARE PLACEMENTS,"1,494.00",Revenue,13/05/2014,Social Care & Inclusion
WC44 - 0669,BUPA CARE HOMES (CFHCARE) LTD,Third Party Payments,Private Contractor Fees,73373-RESIDENTIAL & NURSING CARE PLACEMENTS,"1,668.84",Revenue,13/05/2014,Social Care & Inclusion
WC44 - 0670,BUPA CARE HOMES (CFHCARE) LTD,Third Party Payments,Private Contractor Fees,73373-RESIDENTIAL & NURSING CARE PLACEMENTS,"3,060.92",Revenue,13/05/2014,Social Care & Inclusion
WC44 - 0671,BUPA HOME HEALTHCARE,Supplies & Services,Services,63000-PROFESSIONAL FEES AND SERVICES,949.96,Revenue,07/05/2014,Childrens
WC44 - 0672,BUPA HOME HEALTHCARE,Supplies & Services,Services,63000-PROFESSIONAL FEES AND SERVICES,990.60,Revenue,19/05/2014,Childrens
WC44 - 0673,BUPA HOME HEALTHCARE,Supplies & Services,Services,63000-PROFESSIONAL FEES AND SERVICES,"1,803.40",Revenue,19/05/2014,Childrens
WC44 - 0674,BUPA HOME HEALTHCARE,Supplies & Services,Services,63000-PROFESSIONAL FEES AND SERVICES,"2,113.28",Revenue,19/05/2014,Childrens
WC44 - 0675,BURROWS GM LTD,Supplies & Services,"Equip,Furniture & Materials",60500-GENERAL MATERIALS,610.00,Revenue,23/05/2014,Neighbourhood Services
WC44 - 0676,BURROWS GM LTD,Supplies & Services,"Equip,Furniture & Materials",60500-GENERAL MATERIALS,956.70,Revenue,09/05/2014,Neighbourhood Services
WC44 - 0677,BUSH HOME LTD,Third Party Payments,Private Contractor Fees,73373-RESIDENTIAL & NURSING CARE PLACEMENTS,712.27,Revenue,20/05/2014,Social Care & Inclusion
WC44 - 0678,BUSH HOME LTD,Third Party Payments,Private Contractor Fees,73373-RESIDENTIAL & NURSING CARE PLACEMENTS,767.06,Revenue,20/05/2014,Social Care & Inclusion
WC44 - 0679,BUSH HOME LTD,Third Party Payments,Private Contractor Fees,73373-RESIDENTIAL & NURSING CARE PLACEMENTS,"1,458.16",Revenue,13/05/2014,Social Care & Inclusion
WC44 - 0680,BUSH HOME LTD,Third Party Payments,Private Contractor Fees,73373-RESIDENTIAL & NURSING CARE PLACEMENTS,"1,458.16",Revenue,13/05/2014,Social Care & Inclusion
WC44 - 0681,BUSH HOME LTD,Third Party Payments,Private Contractor Fees,73373-RESIDENTIAL & NURSING CARE PLACEMENTS,"1,458.16",Revenue,13/05/2014,Social Care & Inclusion
WC44 - 0682,BUSH HOME LTD,Third Party Payments,Private Contractor Fees,73373-RESIDENTIAL & NURSING CARE PLACEMENTS,"1,458.18",Revenue,20/05/2014,Social Care & Inclusion
WC44 - 0683,BUSH HOME LTD,Third Party Payments,Private Contractor Fees,73373-RESIDENTIAL & NURSING CARE PLACEMENTS,"1,458.18",Revenue,20/05/2014,Social Care & Inclusion
WC44 - 0684,BUSH HOME LTD,Third Party Payments,Private Contractor Fees,73373-RESIDENTIAL & NURSING CARE PLACEMENTS,"1,460.40",Revenue,13/05/2014,Social Care & Inclusion
WC44 - 0685,BUSH HOME LTD,Third Party Payments,Private Contractor Fees,73373-RESIDENTIAL & NURSING CARE PLACEMENTS,"1,460.40",Revenue,20/05/2014,Social Care & Inclusion
WC44 - 0686,BUSH HOME LTD,Third Party Payments,Private Contractor Fees,73373-RESIDENTIAL & NURSING CARE PLACEMENTS,"1,513.68",Revenue,20/05/2014,Social Care & Inclusion
WC44 - 0687,BUSH HOME LTD,Third Party Payments,Private Contractor Fees,73373-RESIDENTIAL & NURSING CARE PLACEMENTS,"1,534.12",Revenue,13/05/2014,Social Care & Inclusion
WC44 - 0688,BUSH HOME LTD,Third Party Payments,Private Contractor Fees,73373-RESIDENTIAL & NURSING CARE PLACEMENTS,"1,534.12",Revenue,13/05/2014,Social Care & Inclusion
WC44 - 0689,BUSH HOME LTD,Third Party Payments,Private Contractor Fees,73373-RESIDENTIAL & NURSING CARE PLACEMENTS,"1,534.12",Revenue,13/05/2014,Social Care & Inclusion
WC44 - 0690,BUSH HOME LTD,Third Party Payments,Private Contractor Fees,73373-RESIDENTIAL & NURSING CARE PLACEMENTS,"1,534.12",Revenue,20/05/2014,Social Care & Inclusion
WC44 - 0691,BUSH HOME LTD,Third Party Payments,Private Contractor Fees,73373-RESIDENTIAL & NURSING CARE PLACEMENTS,"1,557.60",Revenue,13/05/2014,Social Care & Inclusion
WC44 - 0692,BY THE BRIDGE,Third Party Payments,Private Contractor Fees,74037-INDEPENDENT FOSTER CARE-OTH AGENCY PROVISION,"4,295.71",Revenue,13/05/2014,Childrens
WC44 - 0693,BYTES SOFTWARE SERVICES LTD,Supplies & Services,Communications & Computing,63800-COMPUTER EQUIPMENT AND SUPPLIES,"15,860.00",Revenue,13/05/2014,Resources
WC44 - 0694,C & D BUSINESS SOLUTIONS LTD,Supplies & Services,Services,63000-PROFESSIONAL FEES AND SERVICES,720.00,Revenue,08/05/2014,Childrens
WC44 - 0695,C & V ORCHARD MANOR LTD,Third Party Payments,Private Contractor Fees,73373-RESIDENTIAL & NURSING CARE PLACEMENTS,"1,388.30",Revenue,13/05/2014,Social Care & Inclusion
WC44 - 0696,C & V ORCHARD MANOR LTD,Third Party Payments,Private Contractor Fees,73373-RESIDENTIAL & NURSING CARE PLACEMENTS,"1,388.38",Revenue,13/05/2014,Social Care & Inclusion
WC44 - 0697,C & V ORCHARD MANOR LTD,Third Party Payments,Private Contractor Fees,73373-RESIDENTIAL & NURSING CARE PLACEMENTS,"1,388.39",Revenue,13/05/2014,Social Care & Inclusion
WC44 - 0698,C & V ORCHARD MANOR LTD,Third Party Payments,Private Contractor Fees,73373-RESIDENTIAL & NURSING CARE PLACEMENTS,"1,408.24",Revenue,13/05/2014,Social Care & Inclusion
WC44 - 0699,C & V ORCHARD MANOR LTD,Third Party Payments,Private Contractor Fees,73373-RESIDENTIAL & NURSING CARE PLACEMENTS,"1,477.05",Revenue,13/05/2014,Social Care & Inclusion
WC44 - 0700,C & V ORCHARD MANOR LTD,Third Party Payments,Private Contractor Fees,73373-RESIDENTIAL & NURSING CARE PLACEMENTS,"1,477.06",Revenue,13/05/2014,Social Care & Inclusion
WC44 - 0701,C & V ORCHARD MANOR LTD,Third Party Payments,Private Contractor Fees,73373-RESIDENTIAL & NURSING CARE PLACEMENTS,"1,479.33",Revenue,13/05/2014,Social Care & Inclusion
WC44 - 0702,C & V ORCHARD MANOR LTD,Third Party Payments,Private Contractor Fees,73373-RESIDENTIAL & NURSING CARE PLACEMENTS,"1,534.12",Revenue,06/05/2014,Social Care & Inclusion
WC44 - 0703,C & V ORCHARD RESIDENTIAL LTD,Third Party Payments,Private Contractor Fees,73373-RESIDENTIAL & NURSING CARE PLACEMENTS,"1,369.75",Revenue,13/05/2014,Social Care & Inclusion
WC44 - 0704,C & V ORCHARD RESIDENTIAL LTD,Third Party Payments,Private Contractor Fees,73373-RESIDENTIAL & NURSING CARE PLACEMENTS,"1,408.24",Revenue,13/05/2014,Social Care & Inclusion
WC44 - 0705,C & V ORCHARD RESIDENTIAL LTD,Third Party Payments,Private Contractor Fees,73373-RESIDENTIAL & NURSING CARE PLACEMENTS,"1,476.87",Revenue,13/05/2014,Social Care & Inclusion
WC44 - 0706,C & V ORCHARD RESIDENTIAL LTD,Third Party Payments,Private Contractor Fees,73373-RESIDENTIAL & NURSING CARE PLACEMENTS,"1,477.05",Revenue,20/05/2014,Social Care & Inclusion
WC44 - 0707,C & V ORCHARD RESIDENTIAL LTD,Third Party Payments,Private Contractor Fees,73373-RESIDENTIAL & NURSING CARE PLACEMENTS,"1,477.05",Revenue,20/05/2014,Social Care & Inclusion
WC44 - 0708,C & V ORCHARD RESIDENTIAL LTD,Third Party Payments,Private Contractor Fees,73373-RESIDENTIAL & NURSING CARE PLACEMENTS,"1,477.06",Revenue,20/05/2014,Social Care & Inclusion
WC44 - 0709,C & V ORCHARD RESIDENTIAL LTD,Third Party Payments,Private Contractor Fees,73373-RESIDENTIAL & NURSING CARE PLACEMENTS,"1,479.33",Revenue,13/05/2014,Social Care & Inclusion
WC44 - 0710,C & V ORCHARD RESIDENTIAL LTD,Third Party Payments,Private Contractor Fees,73373-RESIDENTIAL & NURSING CARE PLACEMENTS,"1,479.33",Revenue,20/05/2014,Social Care & Inclusion
WC44 - 0711,C & V ORCHARD RESIDENTIAL LTD,Third Party Payments,Private Contractor Fees,73373-RESIDENTIAL & NURSING CARE PLACEMENTS,"1,479.33",Revenue,20/05/2014,Social Care & Inclusion
WC44 - 0712,C A A R S,Third Party Payments,Private Contractor Fees,73025-PROFESSIONAL SERVICES-PRIV CONTRACTOR & OTHER AGENCIES,"1,124.76",Revenue,12/05/2014,Social Care & Inclusion
WC44 - 0713,REDACTED,Third Party Payments,Private Contractor Fees,73374-SUPPORTED & OTHER ACCOMMODATION,"4,001.70",Revenue,22/05/2014,Social Care & Inclusion
WC44 - 0714,REDACTED,Third Party Payments,Private Contractor Fees,73374-SUPPORTED & OTHER ACCOMMODATION,"4,912.20",Revenue,19/05/2014,Social Care & Inclusion
WC44 - 0715,REDACTED,Supplies & Services,Other Supplies & Services,62515-MISCELLANEOUS SUPPLIES,"4,267.08",Revenue,26/05/2014,Childrens
WC44 - 0716,REDACTED,Third Party Payments,Private Contractor Fees,74006-HOLIDAY/CHRISTMAS ALLOWANCE-FOSTER CARERS-OTH AGENCY PROVISION,"4,306.20",Revenue,26/05/2014,Childrens
WC44 - 0717,REDACTED,Supplies & Services,Other Supplies & Services,62515-MISCELLANEOUS SUPPLIES,"1,428.44",Revenue,26/05/2014,Childrens
WC44 - 0718,REDACTED,Third Party Payments,Private Contractor Fees,74006-HOLIDAY/CHRISTMAS ALLOWANCE-FOSTER CARERS-OTH AGENCY PROVISION,"1,435.40",Revenue,26/05/2014,Childrens
WC44 - 0719,C P DAVIDSON & SONS LTD,Supplies & Services,"Equip,Furniture & Materials",60514-MATERIALS TO STORES,264.11,Revenue,13/05/2014,Neighbourhood Services
WC44 - 0720,C P DAVIDSON & SONS LTD,Supplies & Services,"Equip,Furniture & Materials",60500-GENERAL MATERIALS,469.43,Revenue,09/05/2014,Neighbourhood Services
WC44 - 0721,C P DAVIDSON & SONS LTD,Supplies & Services,"Equip,Furniture & Materials",60500-GENERAL MATERIALS,"1,260.84",Revenue,09/05/2014,Neighbourhood Services
WC44 - 0722,C P DAVIDSON & SONS LTD,Supplies & Services,"Equip,Furniture & Materials",60500-GENERAL MATERIALS,"3,427.19",Revenue,20/05/2014,Neighbourhood Services
WC44 - 0723,C&S CARE SERVICES,Employees,Agency,34305-AGENCY STAFF-EMPLOYEES,702.00,Revenue,07/05/2014,Social Care & Inclusion
WC44 - 0724,C&S CARE SERVICES,Third Party Payments,Private Contractor Fees,73372-DOMICILIARY CARE,702.00,Revenue,28/05/2014,Social Care & Inclusion
WC44 - 0725,C&S CARE SERVICES,Employees,Agency,34305-AGENCY STAFF-EMPLOYEES,"1,066.00",Revenue,28/05/2014,Social Care & Inclusion
WC44 - 0726,CADLINE LTD,Supplies & Services,Communications & Computing,63820-RECHARGE FOR MAINTENANCE/APPLICATION COSTS-COMPUTER,"3,261.00",Revenue,01/05/2014,Resources
WC44 - 0727,CALDMORE AREA HOUSING ASS LTD,Third Party Payments,Private Contractor Fees,73374-SUPPORTED & OTHER ACCOMMODATION,395.04,Revenue,16/05/2014,Social Care & Inclusion
WC44 - 0728,CALDMORE AREA HOUSING ASS LTD,Third Party Payments,Private Contractor Fees,73373-RESIDENTIAL & NURSING CARE PLACEMENTS,530.85,Revenue,13/05/2014,Social Care & Inclusion
WC44 - 0729,CALDMORE AREA HOUSING ASS LTD,Third Party Payments,Private Contractor Fees,73374-SUPPORTED & OTHER ACCOMMODATION,576.80,Revenue,16/05/2014,Social Care & Inclusion
WC44 - 0730,CALDMORE AREA HOUSING ASS LTD,Third Party Payments,Private Contractor Fees,73374-SUPPORTED & OTHER ACCOMMODATION,700.40,Revenue,28/05/2014,Social Care & Inclusion
WC44 - 0731,CALDMORE AREA HOUSING ASS LTD,Third Party Payments,Private Contractor Fees,73373-RESIDENTIAL & NURSING CARE PLACEMENTS,"2,477.32",Revenue,13/05/2014,Social Care & Inclusion
WC44 - 0732,CALDMORE AREA HOUSING ASS LTD,Third Party Payments,Private Contractor Fees,73373-RESIDENTIAL & NURSING CARE PLACEMENTS,"3,008.17",Revenue,20/05/2014,Social Care & Inclusion
WC44 - 0733,CALDMORE AREA HOUSING ASS LTD,Third Party Payments,Private Contractor Fees,73373-RESIDENTIAL & NURSING CARE PLACEMENTS,"3,008.17",Revenue,20/05/2014,Social Care & Inclusion
WC44 - 0734,CALDMORE AREA HOUSING ASS LTD,Third Party Payments,Private Contractor Fees,73373-RESIDENTIAL & NURSING CARE PLACEMENTS,"3,008.17",Revenue,20/05/2014,Social Care & Inclusion
WC44 - 0735,CALDMORE AREA HOUSING ASS LTD,Third Party Payments,Private Contractor Fees,73373-RESIDENTIAL & NURSING CARE PLACEMENTS,"3,008.17",Revenue,20/05/2014,Social Care & Inclusion
WC44 - 0736,CALDMORE AREA HOUSING ASS LTD,Third Party Payments,Private Contractor Fees,73373-RESIDENTIAL & NURSING CARE PLACEMENTS,"3,008.17",Revenue,20/05/2014,Social Care & Inclusion
WC44 - 0737,CALDMORE AREA HOUSING ASS LTD,Third Party Payments,Private Contractor Fees,73373-RESIDENTIAL & NURSING CARE PLACEMENTS,"3,008.17",Revenue,20/05/2014,Social Care & Inclusion
WC44 - 0738,CALDMORE AREA HOUSING ASS LTD,Third Party Payments,Private Contractor Fees,73365-BLOCK GROSS-SUPPORTING PEOPLE,"30,663.09",Revenue,09/05/2014,Social Care & Inclusion
WC44 - 0739,CALDMORE VILLAGE FESTIVAL GROUP,Third Party Payments,Grants to Other Orgs,66500-GRANTS TO OTHER ORGS,"10,000.00",Revenue,20/05/2014,Neighbourhood Services
WC44 - 0740,REDACTED,Third Party Payments,Private Contractor Fees,74006-HOLIDAY/CHRISTMAS ALLOWANCE-FOSTER CARERS-OTH AGENCY PROVISION,295.52,Revenue,12/05/2014,Childrens
WC44 - 0741,REDACTED,Transfer Payments,Transfer Payments,76422-DIRECT PAYMENTS TO SOCIAL SERVICES CLIENTS,287.70,Revenue,13/05/2014,Childrens
WC44 - 0742,CAMBIAN LEARNING DISABILITES MIDLANDS LIMITED,Transfer Payments,Transfer Payments,76010-ACCOMMODATION AND RELATED COSTS-ASSISTANCE TO S/S CLIENTS,"10,557.00",Revenue,06/05/2014,Social Care & Inclusion
WC44 - 0743,CAMBIAN LEARNING DISABILITES MIDLANDS LIMITED,Transfer Payments,Transfer Payments,76010-ACCOMMODATION AND RELATED COSTS-ASSISTANCE TO S/S CLIENTS,"10,908.90",Revenue,16/05/2014,Social Care & Inclusion
WC44 - 0744,CAMPBELL ASSOCIATES,Supplies & Services,"Equip,Furniture & Materials",60008-MAINTENANCE-FURNITURE & EQUIPMENT,338.50,Revenue,07/05/2014,Neighbourhood Services
WC44 - 0745,CANAL & RIVER TRUST,Supplies & Services,Other Supplies & Services,63114-OTHER FEES & LICENCES-SERVICES-FEES,380.00,Revenue,16/05/2014,Neighbourhood Services
WC44 - 0746,CANAL & RIVER TRUST,Premises,Rent,43000-RENTS,"1,302.75",Revenue,07/05/2014,Neighbourhood Services
WC44 - 0747,CANON (UK) LTD 001,Central,Internal Recharges,82012-PRINT & DESIGN CHARGES-INTERNAL,137.71,Revenue,08/05/2014,Childrens
WC44 - 0748,CANON (UK) LTD 001,Central,Internal Recharges,82012-PRINT & DESIGN CHARGES-INTERNAL,137.71,Revenue,08/05/2014,Childrens
WC44 - 0749,CANON (UK) LTD 001,Supplies & Services,"Printing, Stationery & Office Exp",62000-EXTERNAL PRINTING SERVICES,242.12,Revenue,01/05/2014,Childrens
WC44 - 0750,CANON (UK) LTD 001,Supplies & Services,"Printing, Stationery & Office Exp",62000-EXTERNAL PRINTING SERVICES,319.95,Revenue,01/05/2014,Childrens
WC44 - 0751,CAPITA BUSINESS SERVICES LTD 001,Capital,Capital,01001-OTHER CONSULTANTS FEES,340.00,Capital,09/05/2014,Regeneration
WC44 - 0752,CAPITA BUSINESS SERVICES LTD 001,Supplies & Services,Communications & Computing,63800-COMPUTER EQUIPMENT AND SUPPLIES,500.00,Revenue,21/05/2014,Resources
WC44 - 0753,CAPITA BUSINESS SERVICES LTD 001,Supplies & Services,Communications & Computing,63800-COMPUTER EQUIPMENT AND SUPPLIES,"3,015.00",Revenue,20/05/2014,Resources
WC44 - 0754,CAPITA SPECIALIST INSURANCE SOLUTIONS,Supplies & Services,Other Supplies & Services,67000-MISC INSURANCES - INSURANCE PREMIUMS,"150,476.79",Revenue,21/05/2014,Resources
WC44 - 0755,CAPITAL HAIR & BEAUTY LTD,Supplies & Services,"Equip,Furniture & Materials",60500-GENERAL MATERIALS,618.81,Revenue,21/05/2014,Neighbourhood Services
WC44 - 0756,CAPSTONE FOSTER CARE (SOUTH EAST) LIMITED,Third Party Payments,Private Contractor Fees,74037-INDEPENDENT FOSTER CARE-OTH AGENCY PROVISION,946.26,Revenue,16/05/2014,Childrens
WC44 - 0757,CAPSTONE FOSTER CARE (SOUTH EAST) LIMITED,Third Party Payments,Private Contractor Fees,74037-INDEPENDENT FOSTER CARE-OTH AGENCY PROVISION,"2,856.34",Revenue,09/05/2014,Childrens
WC44 - 0758,CAPSTONE FOSTER CARE (SOUTH EAST) LIMITED,Third Party Payments,Private Contractor Fees,74037-INDEPENDENT FOSTER CARE-OTH AGENCY PROVISION,"2,856.34",Revenue,09/05/2014,Childrens
WC44 - 0759,CAPSTONE FOSTER CARE (SOUTH EAST) LIMITED,Third Party Payments,Private Contractor Fees,74037-INDEPENDENT FOSTER CARE-OTH AGENCY PROVISION,"3,009.92",Revenue,09/05/2014,Childrens
WC44 - 0760,CAPSTONE FOSTER CARE (SOUTH EAST) LIMITED,Third Party Payments,Private Contractor Fees,74037-INDEPENDENT FOSTER CARE-OTH AGENCY PROVISION,"3,071.35",Revenue,09/05/2014,Childrens
WC44 - 0761,CAPSTONE FOSTER CARE (SOUTH EAST) LIMITED,Third Party Payments,Private Contractor Fees,74037-INDEPENDENT FOSTER CARE-OTH AGENCY PROVISION,"3,071.35",Revenue,09/05/2014,Childrens
WC44 - 0762,CAPSTONE FOSTER CARE (SOUTH EAST) LIMITED,Third Party Payments,Private Contractor Fees,74037-INDEPENDENT FOSTER CARE-OTH AGENCY PROVISION,"3,098.33",Revenue,09/05/2014,Childrens
WC44 - 0763,CAPSTONE FOSTER CARE (SOUTH EAST) LIMITED,Third Party Payments,Private Contractor Fees,74037-INDEPENDENT FOSTER CARE-OTH AGENCY PROVISION,"3,154.20",Revenue,16/05/2014,Childrens
WC44 - 0764,CAPSTONE FOSTER CARE (SOUTH EAST) LIMITED,Third Party Payments,Private Contractor Fees,74037-INDEPENDENT FOSTER CARE-OTH AGENCY PROVISION,"3,259.34",Revenue,16/05/2014,Childrens
WC44 - 0765,CAPSTONE FOSTER CARE (SOUTH EAST) LIMITED,Third Party Payments,Private Contractor Fees,74037-INDEPENDENT FOSTER CARE-OTH AGENCY PROVISION,"3,780.10",Revenue,09/05/2014,Childrens
WC44 - 0766,CARE 2 U LIMITED,Third Party Payments,Private Contractor Fees,73372-DOMICILIARY CARE,"10,884.04",Revenue,28/05/2014,Social Care & Inclusion
WC44 - 0767,CARE 2 U LIMITED,Third Party Payments,Private Contractor Fees,73372-DOMICILIARY CARE,"24,792.18",Revenue,28/05/2014,Social Care & Inclusion
WC44 - 0768,CARE ASSIST LIMITED,Third Party Payments,Private Contractor Fees,73372-DOMICILIARY CARE,"2,957.14",Revenue,20/05/2014,Social Care & Inclusion
WC44 - 0769,CARE FIRST CARE HOMES LTD,Third Party Payments,Private Contractor Fees,73372-DOMICILIARY CARE,320.00,Revenue,01/05/2014,Social Care & Inclusion
WC44 - 0770,CARE FIRST CARE HOMES LTD,Third Party Payments,Private Contractor Fees,73373-RESIDENTIAL & NURSING CARE PLACEMENTS,690.00,Revenue,13/05/2014,Social Care & Inclusion
WC44 - 0771,CARE FIRST CARE HOMES LTD,Third Party Payments,Private Contractor Fees,73372-DOMICILIARY CARE,960.00,Revenue,01/05/2014,Social Care & Inclusion
WC44 - 0772,CARE FIRST CARE HOMES LTD,Third Party Payments,Private Contractor Fees,73372-DOMICILIARY CARE,"1,200.00",Revenue,01/05/2014,Social Care & Inclusion
WC44 - 0773,CARE FIRST MANAGEMENT SERVICES LTD,Third Party Payments,Private Contractor Fees,73372-DOMICILIARY CARE,780.00,Revenue,14/05/2014,Social Care & Inclusion
WC44 - 0774,CARE FIRST MANAGEMENT SERVICES LTD,Third Party Payments,Private Contractor Fees,73374-SUPPORTED & OTHER ACCOMMODATION,"5,500.00",Revenue,14/05/2014,Social Care & Inclusion
WC44 - 0775,CARE LEAVERS,Transport,Car Allowances,53000-OFFICERS/STAFF-CAR ALLOWANCES,696.00,Revenue,30/05/2014,Childrens
WC44 - 0776,CARE LEAVERS,Third Party Payments,Private Contractor Fees,74500-CARE LEAVERS MTCE PAYMENTS,"13,435.78",Revenue,30/05/2014,Childrens
WC44 - 0777,CARE LEAVERS,Third Party Payments,Private Contractor Fees,74500-CARE LEAVERS MTCE PAYMENTS,"14,292.20",Revenue,20/05/2014,Childrens
WC44 - 0778,CARE LEAVERS,Third Party Payments,Private Contractor Fees,74500-CARE LEAVERS MTCE PAYMENTS,"15,969.03",Revenue,15/05/2014,Childrens
WC44 - 0779,CARE LEAVERS,Third Party Payments,Private Contractor Fees,74500-CARE LEAVERS MTCE PAYMENTS,"16,421.88",Revenue,30/05/2014,Childrens
WC44 - 0780,CARE SHOP,Supplies & Services,"Equip,Furniture & Materials",61502-PROTECTIVE CLOTHING & UNIFORM,78.60,Revenue,14/05/2014,Social Care & Inclusion
WC44 - 0781,CARE SHOP,Supplies & Services,"Equip,Furniture & Materials",60539-CLEANING MATERIALS,374.08,Revenue,16/05/2014,Social Care & Inclusion
WC44 - 0782,CARE SHOP,Supplies & Services,"Equip,Furniture & Materials",60520-HEALTH & SAFETY-MATERIALS,475.84,Revenue,14/05/2014,Social Care & Inclusion
WC44 - 0783,CARE TODAY CHILDRENS SERVICES,Third Party Payments,Private Contractor Fees,74036-EXTERNAL RESIDENTIAL CARE-OTH AGENCY PROVISION,"10,161.60",Revenue,13/05/2014,Childrens
WC44 - 0784,CARETECH COMMUNITY SERVICE,Third Party Payments,Private Contractor Fees,74036-EXTERNAL RESIDENTIAL CARE-OTH AGENCY PROVISION,"9,000.00",Revenue,07/05/2014,Childrens
WC44 - 0785,CARETECH COMMUNITY SERVICE,Third Party Payments,Private Contractor Fees,74036-EXTERNAL RESIDENTIAL CARE-OTH AGENCY PROVISION,"9,300.00",Revenue,07/05/2014,Childrens
WC44 - 0786,CARETECH COMMUNITY SERVICE,Third Party Payments,Private Contractor Fees,74036-EXTERNAL RESIDENTIAL CARE-OTH AGENCY PROVISION,"9,300.00",Revenue,28/05/2014,Childrens
WC44 - 0787,CARETECH COMMUNITY SERVICE,Third Party Payments,Private Contractor Fees,74036-EXTERNAL RESIDENTIAL CARE-OTH AGENCY PROVISION,"19,200.00",Revenue,07/05/2014,Childrens
WC44 - 0788,CARETECH COMMUNITY SERVICE,Third Party Payments,Private Contractor Fees,73374-SUPPORTED & OTHER ACCOMMODATION,"1,210.42",Revenue,28/05/2014,Social Care & Inclusion
WC44 - 0789,CARETECH COMMUNITY SERVICE,Third Party Payments,Private Contractor Fees,73374-SUPPORTED & OTHER ACCOMMODATION,"3,188.00",Revenue,28/05/2014,Social Care & Inclusion
WC44 - 0790,CAREVIEW SERVICES LTD,Third Party Payments,Private Contractor Fees,73373-RESIDENTIAL & NURSING CARE PLACEMENTS,"6,653.13",Revenue,13/05/2014,Social Care & Inclusion
WC44 - 0791,CARING CARE LIMITED,Employees,Agency,34305-AGENCY STAFF-EMPLOYEES,264.00,Revenue,01/05/2014,Social Care & Inclusion
WC44 - 0792,CARING CARE LIMITED,Employees,Agency,34305-AGENCY STAFF-EMPLOYEES,264.00,Revenue,01/05/2014,Social Care & Inclusion
WC44 - 0793,CARING CARE LIMITED,Employees,Agency,34305-AGENCY STAFF-EMPLOYEES,276.00,Revenue,01/05/2014,Social Care & Inclusion
WC44 - 0794,CARING CARE LIMITED,Employees,Agency,34305-AGENCY STAFF-EMPLOYEES,437.00,Revenue,01/05/2014,Social Care & Inclusion
WC44 - 0795,CARING CARE LIMITED,Employees,Agency,34305-AGENCY STAFF-EMPLOYEES,529.00,Revenue,01/05/2014,Social Care & Inclusion
WC44 - 0796,CARING CARE LIMITED,Employees,Agency,34305-AGENCY STAFF-EMPLOYEES,552.00,Revenue,01/05/2014,Social Care & Inclusion
WC44 - 0797,CARING CARE LIMITED,Employees,Agency,34305-AGENCY STAFF-EMPLOYEES,552.00,Revenue,01/05/2014,Social Care & Inclusion
WC44 - 0798,CARING CARE LIMITED,Employees,Agency,34305-AGENCY STAFF-EMPLOYEES,586.50,Revenue,01/05/2014,Social Care & Inclusion
WC44 - 0799,CARING CARE LIMITED,Employees,Agency,34305-AGENCY STAFF-EMPLOYEES,726.00,Revenue,01/05/2014,Social Care & Inclusion
WC44 - 0800,CARING CARE LIMITED,Employees,Agency,34305-AGENCY STAFF-EMPLOYEES,828.00,Revenue,01/05/2014,Social Care & Inclusion
WC44 - 0801,CARING CARE LIMITED,Employees,Agency,34305-AGENCY STAFF-EMPLOYEES,966.00,Revenue,01/05/2014,Social Care & Inclusion
WC44 - 0802,CARING CARE LIMITED,Employees,Agency,34305-AGENCY STAFF-EMPLOYEES,"1,288.00",Revenue,01/05/2014,Social Care & Inclusion
WC44 - 0803,CARING CARE LIMITED,Employees,Agency,34305-AGENCY STAFF-EMPLOYEES,"1,320.00",Revenue,01/05/2014,Social Care & Inclusion
WC44 - 0804,CARING CARE LIMITED,Employees,Agency,34305-AGENCY STAFF-EMPLOYEES,"1,382.87",Revenue,01/05/2014,Social Care & Inclusion
WC44 - 0805,CARING CARE LIMITED,Third Party Payments,Private Contractor Fees,73374-SUPPORTED & OTHER ACCOMMODATION,"1,449.00",Revenue,28/05/2014,Social Care & Inclusion
WC44 - 0806,CARING CARE LIMITED,Employees,Agency,34305-AGENCY STAFF-EMPLOYEES,"1,518.00",Revenue,01/05/2014,Social Care & Inclusion
WC44 - 0807,CARING CARE LIMITED,Third Party Payments,Private Contractor Fees,73372-DOMICILIARY CARE,"2,460.45",Revenue,28/05/2014,Social Care & Inclusion
WC44 - 0808,CARING CARE LIMITED,Third Party Payments,Private Contractor Fees,73372-DOMICILIARY CARE,"41,553.75",Revenue,28/05/2014,Social Care & Inclusion
WC44 - 0809,CARING HANDS LIMITED,Third Party Payments,Private Contractor Fees,73372-DOMICILIARY CARE,250.00,Revenue,12/05/2014,Social Care & Inclusion
WC44 - 0810,CARING HANDS LIMITED,Employees,Agency,34305-AGENCY STAFF-EMPLOYEES,257.50,Revenue,01/05/2014,Social Care & Inclusion
WC44 - 0811,CARING HANDS LIMITED,Third Party Payments,Private Contractor Fees,73372-DOMICILIARY CARE,260.00,Revenue,08/05/2014,Social Care & Inclusion
WC44 - 0812,CARING HANDS LIMITED,Third Party Payments,Private Contractor Fees,73372-DOMICILIARY CARE,266.00,Revenue,12/05/2014,Social Care & Inclusion
WC44 - 0813,CARING HANDS LIMITED,Third Party Payments,Private Contractor Fees,73372-DOMICILIARY CARE,271.00,Revenue,12/05/2014,Social Care & Inclusion
WC44 - 0814,CARING HANDS LIMITED,Third Party Payments,Private Contractor Fees,73372-DOMICILIARY CARE,275.00,Revenue,08/05/2014,Social Care & Inclusion
WC44 - 0815,CARING HANDS LIMITED,Third Party Payments,Private Contractor Fees,73372-DOMICILIARY CARE,275.00,Revenue,12/05/2014,Social Care & Inclusion
WC44 - 0816,CARING HANDS LIMITED,Third Party Payments,Private Contractor Fees,73372-DOMICILIARY CARE,287.00,Revenue,13/05/2014,Social Care & Inclusion
WC44 - 0817,CARING HANDS LIMITED,Third Party Payments,Private Contractor Fees,73372-DOMICILIARY CARE,299.00,Revenue,12/05/2014,Social Care & Inclusion
WC44 - 0818,CARING HANDS LIMITED,Third Party Payments,Private Contractor Fees,73372-DOMICILIARY CARE,333.00,Revenue,13/05/2014,Social Care & Inclusion
WC44 - 0819,CARING HANDS LIMITED,Third Party Payments,Private Contractor Fees,73372-DOMICILIARY CARE,350.00,Revenue,12/05/2014,Social Care & Inclusion
WC44 - 0820,CARING HANDS LIMITED,Third Party Payments,Private Contractor Fees,73372-DOMICILIARY CARE,350.00,Revenue,12/05/2014,Social Care & Inclusion
WC44 - 0821,CARING HANDS LIMITED,Third Party Payments,Private Contractor Fees,73372-DOMICILIARY CARE,351.00,Revenue,12/05/2014,Social Care & Inclusion
WC44 - 0822,CARING HANDS LIMITED,Third Party Payments,Private Contractor Fees,73372-DOMICILIARY CARE,397.00,Revenue,13/05/2014,Social Care & Inclusion
WC44 - 0823,CARING HANDS LIMITED,Third Party Payments,Private Contractor Fees,73372-DOMICILIARY CARE,406.00,Revenue,12/05/2014,Social Care & Inclusion
WC44 - 0824,CARING HANDS LIMITED,Third Party Payments,Private Contractor Fees,73372-DOMICILIARY CARE,422.50,Revenue,13/05/2014,Social Care & Inclusion
WC44 - 0825,CARING HANDS LIMITED,Third Party Payments,Private Contractor Fees,73372-DOMICILIARY CARE,428.50,Revenue,08/05/2014,Social Care & Inclusion
WC44 - 0826,CARING HANDS LIMITED,Third Party Payments,Private Contractor Fees,73372-DOMICILIARY CARE,448.00,Revenue,13/05/2014,Social Care & Inclusion
WC44 - 0827,CARING HANDS LIMITED,Third Party Payments,Private Contractor Fees,73372-DOMICILIARY CARE,451.00,Revenue,12/05/2014,Social Care & Inclusion
WC44 - 0828,CARING HANDS LIMITED,Third Party Payments,Private Contractor Fees,73372-DOMICILIARY CARE,456.00,Revenue,12/05/2014,Social Care & Inclusion
WC44 - 0829,CARING HANDS LIMITED,Third Party Payments,Private Contractor Fees,73372-DOMICILIARY CARE,485.00,Revenue,13/05/2014,Social Care & Inclusion
WC44 - 0830,CARING HANDS LIMITED,Third Party Payments,Private Contractor Fees,73372-DOMICILIARY CARE,506.50,Revenue,12/05/2014,Social Care & Inclusion
WC44 - 0831,CARING HANDS LIMITED,Third Party Payments,Private Contractor Fees,73372-DOMICILIARY CARE,542.50,Revenue,08/05/2014,Social Care & Inclusion
WC44 - 0832,CARING HANDS LIMITED,Third Party Payments,Private Contractor Fees,73372-DOMICILIARY CARE,608.00,Revenue,12/05/2014,Social Care & Inclusion
WC44 - 0833,CARING HANDS LIMITED,Third Party Payments,Private Contractor Fees,73372-DOMICILIARY CARE,609.00,Revenue,12/05/2014,Social Care & Inclusion
WC44 - 0834,CARING HANDS LIMITED,Third Party Payments,Private Contractor Fees,73372-DOMICILIARY CARE,619.50,Revenue,12/05/2014,Social Care & Inclusion
WC44 - 0835,CARING HANDS LIMITED,Third Party Payments,Private Contractor Fees,73372-DOMICILIARY CARE,625.50,Revenue,12/05/2014,Social Care & Inclusion
WC44 - 0836,CARING HANDS LIMITED,Third Party Payments,Private Contractor Fees,73372-DOMICILIARY CARE,631.50,Revenue,08/05/2014,Social Care & Inclusion
WC44 - 0837,CARING HANDS LIMITED,Third Party Payments,Private Contractor Fees,73372-DOMICILIARY CARE,634.00,Revenue,12/05/2014,Social Care & Inclusion
WC44 - 0838,CARING HANDS LIMITED,Third Party Payments,Private Contractor Fees,73372-DOMICILIARY CARE,641.38,Revenue,08/05/2014,Social Care & Inclusion
WC44 - 0839,CARING HANDS LIMITED,Third Party Payments,Private Contractor Fees,73372-DOMICILIARY CARE,645.00,Revenue,12/05/2014,Social Care & Inclusion
WC44 - 0840,CARING HANDS LIMITED,Third Party Payments,Private Contractor Fees,73372-DOMICILIARY CARE,681.50,Revenue,08/05/2014,Social Care & Inclusion
WC44 - 0841,CARING HANDS LIMITED,Third Party Payments,Private Contractor Fees,73372-DOMICILIARY CARE,700.00,Revenue,12/05/2014,Social Care & Inclusion
WC44 - 0842,CARING HANDS LIMITED,Third Party Payments,Private Contractor Fees,73372-DOMICILIARY CARE,721.50,Revenue,12/05/2014,Social Care & Inclusion
WC44 - 0843,CARING HANDS LIMITED,Third Party Payments,Private Contractor Fees,73372-DOMICILIARY CARE,750.00,Revenue,08/05/2014,Social Care & Inclusion
WC44 - 0844,CARING HANDS LIMITED,Third Party Payments,Private Contractor Fees,73372-DOMICILIARY CARE,751.25,Revenue,13/05/2014,Social Care & Inclusion
WC44 - 0845,CARING HANDS LIMITED,Third Party Payments,Private Contractor Fees,73372-DOMICILIARY CARE,756.00,Revenue,12/05/2014,Social Care & Inclusion
WC44 - 0846,CARING HANDS LIMITED,Third Party Payments,Private Contractor Fees,73372-DOMICILIARY CARE,762.50,Revenue,08/05/2014,Social Care & Inclusion
WC44 - 0847,CARING HANDS LIMITED,Third Party Payments,Private Contractor Fees,73372-DOMICILIARY CARE,763.00,Revenue,12/05/2014,Social Care & Inclusion
WC44 - 0848,CARING HANDS LIMITED,Third Party Payments,Private Contractor Fees,73372-DOMICILIARY CARE,768.75,Revenue,08/05/2014,Social Care & Inclusion
WC44 - 0849,CARING HANDS LIMITED,Third Party Payments,Private Contractor Fees,73372-DOMICILIARY CARE,769.38,Revenue,12/05/2014,Social Care & Inclusion
WC44 - 0850,CARING HANDS LIMITED,Third Party Payments,Private Contractor Fees,73372-DOMICILIARY CARE,793.00,Revenue,12/05/2014,Social Care & Inclusion
WC44 - 0851,CARING HANDS LIMITED,Third Party Payments,Private Contractor Fees,73372-DOMICILIARY CARE,794.00,Revenue,08/05/2014,Social Care & Inclusion
WC44 - 0852,CARING HANDS LIMITED,Third Party Payments,Private Contractor Fees,73372-DOMICILIARY CARE,798.00,Revenue,12/05/2014,Social Care & Inclusion
WC44 - 0853,CARING HANDS LIMITED,Third Party Payments,Private Contractor Fees,73372-DOMICILIARY CARE,812.00,Revenue,12/05/2014,Social Care & Inclusion
WC44 - 0854,CARING HANDS LIMITED,Third Party Payments,Private Contractor Fees,73372-DOMICILIARY CARE,833.50,Revenue,13/05/2014,Social Care & Inclusion
WC44 - 0855,CARING HANDS LIMITED,Third Party Payments,Private Contractor Fees,73372-DOMICILIARY CARE,835.50,Revenue,12/05/2014,Social Care & Inclusion
WC44 - 0856,CARING HANDS LIMITED,Third Party Payments,Private Contractor Fees,73372-DOMICILIARY CARE,857.00,Revenue,12/05/2014,Social Care & Inclusion
WC44 - 0857,CARING HANDS LIMITED,Third Party Payments,Private Contractor Fees,73372-DOMICILIARY CARE,862.00,Revenue,13/05/2014,Social Care & Inclusion
WC44 - 0858,CARING HANDS LIMITED,Third Party Payments,Private Contractor Fees,73372-DOMICILIARY CARE,865.63,Revenue,08/05/2014,Social Care & Inclusion
WC44 - 0859,CARING HANDS LIMITED,Third Party Payments,Private Contractor Fees,73372-DOMICILIARY CARE,876.50,Revenue,12/05/2014,Social Care & Inclusion
WC44 - 0860,CARING HANDS LIMITED,Third Party Payments,Private Contractor Fees,73372-DOMICILIARY CARE,905.50,Revenue,12/05/2014,Social Care & Inclusion
WC44 - 0861,CARING HANDS LIMITED,Third Party Payments,Private Contractor Fees,73372-DOMICILIARY CARE,907.50,Revenue,12/05/2014,Social Care & Inclusion
WC44 - 0862,CARING HANDS LIMITED,Third Party Payments,Private Contractor Fees,73372-DOMICILIARY CARE,938.00,Revenue,08/05/2014,Social Care & Inclusion
WC44 - 0863,CARING HANDS LIMITED,Third Party Payments,Private Contractor Fees,73372-DOMICILIARY CARE,"1,045.00",Revenue,13/05/2014,Social Care & Inclusion
WC44 - 0864,CARING HANDS LIMITED,Third Party Payments,Private Contractor Fees,73372-DOMICILIARY CARE,"1,051.00",Revenue,13/05/2014,Social Care & Inclusion
WC44 - 0865,CARING HANDS LIMITED,Third Party Payments,Private Contractor Fees,73372-DOMICILIARY CARE,"1,064.00",Revenue,12/05/2014,Social Care & Inclusion
WC44 - 0866,CARING HANDS LIMITED,Third Party Payments,Private Contractor Fees,73372-DOMICILIARY CARE,"1,091.00",Revenue,08/05/2014,Social Care & Inclusion
WC44 - 0867,CARING HANDS LIMITED,Third Party Payments,Private Contractor Fees,73372-DOMICILIARY CARE,"1,092.00",Revenue,12/05/2014,Social Care & Inclusion
WC44 - 0868,CARING HANDS LIMITED,Third Party Payments,Private Contractor Fees,73372-DOMICILIARY CARE,"1,120.00",Revenue,12/05/2014,Social Care & Inclusion
WC44 - 0869,CARING HANDS LIMITED,Third Party Payments,Private Contractor Fees,73372-DOMICILIARY CARE,"1,122.77",Revenue,08/05/2014,Social Care & Inclusion
WC44 - 0870,CARING HANDS LIMITED,Third Party Payments,Private Contractor Fees,73372-DOMICILIARY CARE,"1,126.00",Revenue,13/05/2014,Social Care & Inclusion
WC44 - 0871,CARING HANDS LIMITED,Third Party Payments,Private Contractor Fees,73372-DOMICILIARY CARE,"1,146.00",Revenue,12/05/2014,Social Care & Inclusion
WC44 - 0872,CARING HANDS LIMITED,Third Party Payments,Private Contractor Fees,73372-DOMICILIARY CARE,"1,186.00",Revenue,13/05/2014,Social Care & Inclusion
WC44 - 0873,CARING HANDS LIMITED,Third Party Payments,Private Contractor Fees,73372-DOMICILIARY CARE,"1,215.00",Revenue,12/05/2014,Social Care & Inclusion
WC44 - 0874,CARING HANDS LIMITED,Third Party Payments,Private Contractor Fees,73372-DOMICILIARY CARE,"1,291.25",Revenue,13/05/2014,Social Care & Inclusion
WC44 - 0875,CARING HANDS LIMITED,Third Party Payments,Private Contractor Fees,73372-DOMICILIARY CARE,"1,330.25",Revenue,13/05/2014,Social Care & Inclusion
WC44 - 0876,CARING HANDS LIMITED,Third Party Payments,Private Contractor Fees,73372-DOMICILIARY CARE,"1,344.00",Revenue,12/05/2014,Social Care & Inclusion
WC44 - 0877,CARING HANDS LIMITED,Third Party Payments,Private Contractor Fees,73372-DOMICILIARY CARE,"1,400.00",Revenue,13/05/2014,Social Care & Inclusion
WC44 - 0878,CARING HANDS LIMITED,Third Party Payments,Private Contractor Fees,73372-DOMICILIARY CARE,"1,411.00",Revenue,13/05/2014,Social Care & Inclusion
WC44 - 0879,CARING HANDS LIMITED,Third Party Payments,Private Contractor Fees,73372-DOMICILIARY CARE,"1,436.00",Revenue,12/05/2014,Social Care & Inclusion
WC44 - 0880,CARING HANDS LIMITED,Third Party Payments,Private Contractor Fees,73372-DOMICILIARY CARE,"1,436.63",Revenue,13/05/2014,Social Care & Inclusion
WC44 - 0881,CARING HANDS LIMITED,Third Party Payments,Private Contractor Fees,73372-DOMICILIARY CARE,"1,456.00",Revenue,12/05/2014,Social Care & Inclusion
WC44 - 0882,CARING HANDS LIMITED,Third Party Payments,Private Contractor Fees,73372-DOMICILIARY CARE,"1,480.00",Revenue,13/05/2014,Social Care & Inclusion
WC44 - 0883,CARING HANDS LIMITED,Third Party Payments,Private Contractor Fees,73372-DOMICILIARY CARE,"1,484.00",Revenue,12/05/2014,Social Care & Inclusion
WC44 - 0884,CARING HANDS LIMITED,Third Party Payments,Private Contractor Fees,73372-DOMICILIARY CARE,"1,490.50",Revenue,12/05/2014,Social Care & Inclusion
WC44 - 0885,CARING HANDS LIMITED,Third Party Payments,Private Contractor Fees,73372-DOMICILIARY CARE,"1,505.00",Revenue,13/05/2014,Social Care & Inclusion
WC44 - 0886,CARING HANDS LIMITED,Third Party Payments,Private Contractor Fees,73372-DOMICILIARY CARE,"1,537.63",Revenue,08/05/2014,Social Care & Inclusion
WC44 - 0887,CARING HANDS LIMITED,Third Party Payments,Private Contractor Fees,73372-DOMICILIARY CARE,"1,624.00",Revenue,08/05/2014,Social Care & Inclusion
WC44 - 0888,CARING HANDS LIMITED,Third Party Payments,Private Contractor Fees,73372-DOMICILIARY CARE,"1,624.00",Revenue,08/05/2014,Social Care & Inclusion
WC44 - 0889,CARING HANDS LIMITED,Third Party Payments,Private Contractor Fees,73372-DOMICILIARY CARE,"1,624.00",Revenue,08/05/2014,Social Care & Inclusion
WC44 - 0890,CARING HANDS LIMITED,Third Party Payments,Private Contractor Fees,73372-DOMICILIARY CARE,"1,624.00",Revenue,08/05/2014,Social Care & Inclusion
WC44 - 0891,CARING HANDS LIMITED,Third Party Payments,Private Contractor Fees,73372-DOMICILIARY CARE,"1,624.00",Revenue,08/05/2014,Social Care & Inclusion
WC44 - 0892,CARING HANDS LIMITED,Third Party Payments,Private Contractor Fees,73372-DOMICILIARY CARE,"1,624.00",Revenue,12/05/2014,Social Care & Inclusion
WC44 - 0893,CARING HANDS LIMITED,Third Party Payments,Private Contractor Fees,73372-DOMICILIARY CARE,"1,624.00",Revenue,12/05/2014,Social Care & Inclusion
WC44 - 0894,CARING HANDS LIMITED,Third Party Payments,Private Contractor Fees,73372-DOMICILIARY CARE,"1,630.00",Revenue,08/05/2014,Social Care & Inclusion
WC44 - 0895,CARING HANDS LIMITED,Third Party Payments,Private Contractor Fees,73372-DOMICILIARY CARE,"1,636.00",Revenue,12/05/2014,Social Care & Inclusion
WC44 - 0896,CARING HANDS LIMITED,Third Party Payments,Private Contractor Fees,73372-DOMICILIARY CARE,"1,660.00",Revenue,08/05/2014,Social Care & Inclusion
WC44 - 0897,CARING HANDS LIMITED,Third Party Payments,Private Contractor Fees,73372-DOMICILIARY CARE,"1,792.00",Revenue,12/05/2014,Social Care & Inclusion
WC44 - 0898,CARING HANDS LIMITED,Third Party Payments,Private Contractor Fees,73372-DOMICILIARY CARE,"1,996.00",Revenue,08/05/2014,Social Care & Inclusion
WC44 - 0899,CARING HANDS LIMITED,Third Party Payments,Private Contractor Fees,73372-DOMICILIARY CARE,"2,057.00",Revenue,08/05/2014,Social Care & Inclusion
WC44 - 0900,CARING HANDS LIMITED,Third Party Payments,Private Contractor Fees,73372-DOMICILIARY CARE,"2,104.00",Revenue,13/05/2014,Social Care & Inclusion
WC44 - 0901,CARING HANDS LIMITED,Third Party Payments,Private Contractor Fees,73372-DOMICILIARY CARE,"2,498.00",Revenue,08/05/2014,Social Care & Inclusion
WC44 - 0902,CARING HANDS LIMITED,Third Party Payments,Private Contractor Fees,73372-DOMICILIARY CARE,"2,956.00",Revenue,13/05/2014,Social Care & Inclusion
WC44 - 0903,CARITAS RECRUITMENT,Third Party Payments,Grants to Other Orgs,66502-TOP UP FUNDING -GRANTS TO SCHOOLS,348.82,Revenue,02/05/2014,Childrens
WC44 - 0904,CARITAS RECRUITMENT,Third Party Payments,Grants to Other Orgs,66502-TOP UP FUNDING -GRANTS TO SCHOOLS,477.27,Revenue,28/05/2014,Childrens
WC44 - 0905,REDACTED,Transfer Payments,Transfer Payments,76422-DIRECT PAYMENTS TO SOCIAL SERVICES CLIENTS,450.00,Revenue,13/05/2014,Social Care & Inclusion
WC44 - 0906,REDACTED,Supplies & Services,Other Supplies & Services,62515-MISCELLANEOUS SUPPLIES,533.96,Revenue,26/05/2014,Childrens
WC44 - 0907,REDACTED,Third Party Payments,Private Contractor Fees,74006-HOLIDAY/CHRISTMAS ALLOWANCE-FOSTER CARERS-OTH AGENCY PROVISION,639.40,Revenue,26/05/2014,Childrens
WC44 - 0908,REDACTED,Third Party Payments,Private Contractor Fees,74006-HOLIDAY/CHRISTMAS ALLOWANCE-FOSTER CARERS-OTH AGENCY PROVISION,639.40,Revenue,12/05/2014,Childrens
WC44 - 0909,CARTER SYNERGY LTD,Premises,Premises-Repairs & Maintenance,"40000-REPAIRS,ALTERATIONS & MAINTENANCE-PREM",622.66,Revenue,20/05/2014,Neighbourhood Services
WC44 - 0910,CARTER SYNERGY LTD,Premises,Premises-Repairs & Maintenance,"40000-REPAIRS,ALTERATIONS & MAINTENANCE-PREM",733.15,Revenue,13/05/2014,Neighbourhood Services
WC44 - 0911,CARTER SYNERGY LTD,Premises,Premises-Repairs & Maintenance,40216-OTHER-PLAN MTCE,"9,939.41",Revenue,15/05/2014,Neighbourhood Services
WC44 - 0912,CARTRIDGE WORLD (MIDLANDS) LTD,Supplies & Services,"Printing, Stationery & Office Exp",62001-STATIONERY & GENERAL SUPPLIES-OFFICE EXP,"1,058.29",Revenue,28/05/2014,Childrens
WC44 - 0913,CASHFRIDAY,Third Party Payments,Private Contractor Fees,73372-DOMICILIARY CARE,-313.90,Revenue,06/05/2014,Social Care & Inclusion
WC44 - 0914,CASHFRIDAY,Third Party Payments,Private Contractor Fees,73372-DOMICILIARY CARE,294.00,Revenue,12/05/2014,Social Care & Inclusion
WC44 - 0915,CASHFRIDAY,Third Party Payments,Private Contractor Fees,73372-DOMICILIARY CARE,294.00,Revenue,22/05/2014,Social Care & Inclusion
WC44 - 0916,CASHFRIDAY,Third Party Payments,Private Contractor Fees,73372-DOMICILIARY CARE,294.00,Revenue,27/05/2014,Social Care & Inclusion
WC44 - 0917,CASHFRIDAY,Third Party Payments,Private Contractor Fees,73372-DOMICILIARY CARE,294.00,Revenue,27/05/2014,Social Care & Inclusion
WC44 - 0918,CASHFRIDAY,Third Party Payments,Private Contractor Fees,73372-DOMICILIARY CARE,294.00,Revenue,27/05/2014,Social Care & Inclusion
WC44 - 0919,CASHFRIDAY,Third Party Payments,Private Contractor Fees,73372-DOMICILIARY CARE,303.00,Revenue,01/05/2014,Social Care & Inclusion
WC44 - 0920,CASHFRIDAY,Third Party Payments,Private Contractor Fees,73372-DOMICILIARY CARE,307.50,Revenue,22/05/2014,Social Care & Inclusion
WC44 - 0921,CASHFRIDAY,Third Party Payments,Private Contractor Fees,73372-DOMICILIARY CARE,312.00,Revenue,02/05/2014,Social Care & Inclusion
WC44 - 0922,CASHFRIDAY,Third Party Payments,Private Contractor Fees,73372-DOMICILIARY CARE,317.00,Revenue,02/05/2014,Social Care & Inclusion
WC44 - 0923,CASHFRIDAY,Third Party Payments,Private Contractor Fees,73372-DOMICILIARY CARE,322.00,Revenue,01/05/2014,Social Care & Inclusion
WC44 - 0924,CASHFRIDAY,Third Party Payments,Private Contractor Fees,73372-DOMICILIARY CARE,337.00,Revenue,22/05/2014,Social Care & Inclusion
WC44 - 0925,CASHFRIDAY,Third Party Payments,Private Contractor Fees,73372-DOMICILIARY CARE,339.00,Revenue,06/05/2014,Social Care & Inclusion
WC44 - 0926,CASHFRIDAY,Third Party Payments,Private Contractor Fees,73372-DOMICILIARY CARE,350.00,Revenue,12/05/2014,Social Care & Inclusion
WC44 - 0927,CASHFRIDAY,Third Party Payments,Private Contractor Fees,73372-DOMICILIARY CARE,373.19,Revenue,07/05/2014,Social Care & Inclusion
WC44 - 0928,CASHFRIDAY,Third Party Payments,Private Contractor Fees,73372-DOMICILIARY CARE,374.00,Revenue,06/05/2014,Social Care & Inclusion
WC44 - 0929,CASHFRIDAY,Third Party Payments,Private Contractor Fees,73372-DOMICILIARY CARE,388.50,Revenue,27/05/2014,Social Care & Inclusion
WC44 - 0930,CASHFRIDAY,Third Party Payments,Private Contractor Fees,73372-DOMICILIARY CARE,388.50,Revenue,27/05/2014,Social Care & Inclusion
WC44 - 0931,CASHFRIDAY,Third Party Payments,Private Contractor Fees,73372-DOMICILIARY CARE,395.50,Revenue,14/05/2014,Social Care & Inclusion
WC44 - 0932,CASHFRIDAY,Third Party Payments,Private Contractor Fees,73372-DOMICILIARY CARE,395.50,Revenue,22/05/2014,Social Care & Inclusion
WC44 - 0933,CASHFRIDAY,Third Party Payments,Private Contractor Fees,73372-DOMICILIARY CARE,395.50,Revenue,27/05/2014,Social Care & Inclusion
WC44 - 0934,CASHFRIDAY,Third Party Payments,Private Contractor Fees,73372-DOMICILIARY CARE,413.00,Revenue,06/05/2014,Social Care & Inclusion
WC44 - 0935,CASHFRIDAY,Third Party Payments,Private Contractor Fees,73372-DOMICILIARY CARE,427.00,Revenue,22/05/2014,Social Care & Inclusion
WC44 - 0936,CASHFRIDAY,Third Party Payments,Private Contractor Fees,73372-DOMICILIARY CARE,434.00,Revenue,01/05/2014,Social Care & Inclusion
WC44 - 0937,CASHFRIDAY,Third Party Payments,Private Contractor Fees,73372-DOMICILIARY CARE,434.00,Revenue,14/05/2014,Social Care & Inclusion
WC44 - 0938,CASHFRIDAY,Third Party Payments,Private Contractor Fees,73372-DOMICILIARY CARE,434.00,Revenue,27/05/2014,Social Care & Inclusion
WC44 - 0939,CASHFRIDAY,Third Party Payments,Private Contractor Fees,73372-DOMICILIARY CARE,444.00,Revenue,06/05/2014,Social Care & Inclusion
WC44 - 0940,CASHFRIDAY,Third Party Payments,Private Contractor Fees,73372-DOMICILIARY CARE,450.00,Revenue,01/05/2014,Social Care & Inclusion
WC44 - 0941,CASHFRIDAY,Third Party Payments,Private Contractor Fees,73372-DOMICILIARY CARE,476.00,Revenue,06/05/2014,Social Care & Inclusion
WC44 - 0942,CASHFRIDAY,Third Party Payments,Private Contractor Fees,73372-DOMICILIARY CARE,476.00,Revenue,14/05/2014,Social Care & Inclusion
WC44 - 0943,CASHFRIDAY,Third Party Payments,Private Contractor Fees,73372-DOMICILIARY CARE,476.00,Revenue,22/05/2014,Social Care & Inclusion
WC44 - 0944,CASHFRIDAY,Third Party Payments,Private Contractor Fees,73372-DOMICILIARY CARE,476.00,Revenue,22/05/2014,Social Care & Inclusion
WC44 - 0945,CASHFRIDAY,Third Party Payments,Private Contractor Fees,73372-DOMICILIARY CARE,476.00,Revenue,27/05/2014,Social Care & Inclusion
WC44 - 0946,CASHFRIDAY,Third Party Payments,Private Contractor Fees,73372-DOMICILIARY CARE,476.00,Revenue,27/05/2014,Social Care & Inclusion
WC44 - 0947,CASHFRIDAY,Third Party Payments,Private Contractor Fees,73372-DOMICILIARY CARE,479.00,Revenue,22/05/2014,Social Care & Inclusion
WC44 - 0948,CASHFRIDAY,Third Party Payments,Private Contractor Fees,73372-DOMICILIARY CARE,479.00,Revenue,27/05/2014,Social Care & Inclusion
WC44 - 0949,CASHFRIDAY,Third Party Payments,Private Contractor Fees,73372-DOMICILIARY CARE,483.00,Revenue,06/05/2014,Social Care & Inclusion
WC44 - 0950,CASHFRIDAY,Third Party Payments,Private Contractor Fees,73372-DOMICILIARY CARE,483.00,Revenue,22/05/2014,Social Care & Inclusion
WC44 - 0951,CASHFRIDAY,Third Party Payments,Private Contractor Fees,73372-DOMICILIARY CARE,488.00,Revenue,27/05/2014,Social Care & Inclusion
WC44 - 0952,CASHFRIDAY,Third Party Payments,Private Contractor Fees,73372-DOMICILIARY CARE,490.00,Revenue,01/05/2014,Social Care & Inclusion
WC44 - 0953,CASHFRIDAY,Third Party Payments,Private Contractor Fees,73372-DOMICILIARY CARE,490.00,Revenue,14/05/2014,Social Care & Inclusion
WC44 - 0954,CASHFRIDAY,Third Party Payments,Private Contractor Fees,73372-DOMICILIARY CARE,490.00,Revenue,27/05/2014,Social Care & Inclusion
WC44 - 0955,CASHFRIDAY,Third Party Payments,Private Contractor Fees,73372-DOMICILIARY CARE,495.00,Revenue,27/05/2014,Social Care & Inclusion
WC44 - 0956,CASHFRIDAY,Third Party Payments,Private Contractor Fees,73372-DOMICILIARY CARE,513.00,Revenue,01/05/2014,Social Care & Inclusion
WC44 - 0957,CASHFRIDAY,Third Party Payments,Private Contractor Fees,73372-DOMICILIARY CARE,533.00,Revenue,01/05/2014,Social Care & Inclusion
WC44 - 0958,CASHFRIDAY,Third Party Payments,Private Contractor Fees,73372-DOMICILIARY CARE,584.50,Revenue,06/05/2014,Social Care & Inclusion
WC44 - 0959,CASHFRIDAY,Third Party Payments,Private Contractor Fees,73372-DOMICILIARY CARE,635.00,Revenue,27/05/2014,Social Care & Inclusion
WC44 - 0960,CASHFRIDAY,Third Party Payments,Private Contractor Fees,73372-DOMICILIARY CARE,784.00,Revenue,06/05/2014,Social Care & Inclusion
WC44 - 0961,CASHFRIDAY,Third Party Payments,Private Contractor Fees,73372-DOMICILIARY CARE,784.00,Revenue,14/05/2014,Social Care & Inclusion
WC44 - 0962,CASHFRIDAY,Third Party Payments,Private Contractor Fees,73372-DOMICILIARY CARE,784.00,Revenue,22/05/2014,Social Care & Inclusion
WC44 - 0963,CASHFRIDAY,Third Party Payments,Private Contractor Fees,73372-DOMICILIARY CARE,784.00,Revenue,27/05/2014,Social Care & Inclusion
WC44 - 0964,CASHFRIDAY,Third Party Payments,Private Contractor Fees,73372-DOMICILIARY CARE,796.38,Revenue,12/05/2014,Social Care & Inclusion
WC44 - 0965,CASHFRIDAY,Third Party Payments,Private Contractor Fees,73372-DOMICILIARY CARE,797.75,Revenue,06/05/2014,Social Care & Inclusion
WC44 - 0966,CASHFRIDAY,Third Party Payments,Private Contractor Fees,73372-DOMICILIARY CARE,801.88,Revenue,12/05/2014,Social Care & Inclusion
WC44 - 0967,CASHFRIDAY,Third Party Payments,Private Contractor Fees,73372-DOMICILIARY CARE,889.00,Revenue,06/05/2014,Social Care & Inclusion
WC44 - 0968,CASHFRIDAY,Third Party Payments,Private Contractor Fees,73372-DOMICILIARY CARE,889.00,Revenue,14/05/2014,Social Care & Inclusion
WC44 - 0969,CASHFRIDAY,Third Party Payments,Private Contractor Fees,73372-DOMICILIARY CARE,889.00,Revenue,22/05/2014,Social Care & Inclusion
WC44 - 0970,CASHFRIDAY,Third Party Payments,Private Contractor Fees,73372-DOMICILIARY CARE,889.00,Revenue,22/05/2014,Social Care & Inclusion
WC44 - 0971,CASHFRIDAY,Third Party Payments,Private Contractor Fees,73372-DOMICILIARY CARE,889.00,Revenue,27/05/2014,Social Care & Inclusion
WC44 - 0972,CASHFRIDAY,Third Party Payments,Private Contractor Fees,73372-DOMICILIARY CARE,889.00,Revenue,27/05/2014,Social Care & Inclusion
WC44 - 0973,CASHFRIDAY,Third Party Payments,Private Contractor Fees,73372-DOMICILIARY CARE,896.00,Revenue,06/05/2014,Social Care & Inclusion
WC44 - 0974,CASHFRIDAY,Third Party Payments,Private Contractor Fees,73372-DOMICILIARY CARE,896.00,Revenue,06/05/2014,Social Care & Inclusion
WC44 - 0975,CASHFRIDAY,Third Party Payments,Private Contractor Fees,73372-DOMICILIARY CARE,904.75,Revenue,02/05/2014,Social Care & Inclusion
WC44 - 0976,CASHFRIDAY,Third Party Payments,Private Contractor Fees,73372-DOMICILIARY CARE,949.25,Revenue,13/05/2014,Social Care & Inclusion
WC44 - 0977,CASHFRIDAY,Third Party Payments,Private Contractor Fees,73372-DOMICILIARY CARE,"1,084.50",Revenue,06/05/2014,Social Care & Inclusion
WC44 - 0978,CASHFRIDAY,Third Party Payments,Private Contractor Fees,73372-DOMICILIARY CARE,"1,122.75",Revenue,01/05/2014,Social Care & Inclusion
WC44 - 0979,CASHFRIDAY,Third Party Payments,Private Contractor Fees,73372-DOMICILIARY CARE,"1,237.50",Revenue,01/05/2014,Social Care & Inclusion
WC44 - 0980,CASHFRIDAY,Third Party Payments,Private Contractor Fees,73372-DOMICILIARY CARE,"1,672.75",Revenue,01/05/2014,Social Care & Inclusion
WC44 - 0981,CASHFRIDAY,Third Party Payments,Private Contractor Fees,73372-DOMICILIARY CARE,"2,945.90",Revenue,06/05/2014,Social Care & Inclusion
WC44 - 0982,CASTLEBECK CARE (TEESDALE) LTD,Third Party Payments,Private Contractor Fees,73373-RESIDENTIAL & NURSING CARE PLACEMENTS,"-6,114.84",Revenue,27/05/2014,Social Care & Inclusion
WC44 - 0983,CASTLEBECK CARE (TEESDALE) LTD,Third Party Payments,Private Contractor Fees,73373-RESIDENTIAL & NURSING CARE PLACEMENTS,"-5,917.59",Revenue,27/05/2014,Social Care & Inclusion
WC44 - 0984,CASTLEBECK CARE (TEESDALE) LTD,Third Party Payments,Private Contractor Fees,73373-RESIDENTIAL & NURSING CARE PLACEMENTS,"-5,720.33",Revenue,27/05/2014,Social Care & Inclusion
WC44 - 0985,CASTLEBECK CARE (TEESDALE) LTD,Third Party Payments,Private Contractor Fees,73373-RESIDENTIAL & NURSING CARE PLACEMENTS,"-4,671.79",Revenue,27/05/2014,Social Care & Inclusion
WC44 - 0986,CASTLEBECK CARE (TEESDALE) LTD,Third Party Payments,Private Contractor Fees,73373-RESIDENTIAL & NURSING CARE PLACEMENTS,"5,326.71",Revenue,27/05/2014,Social Care & Inclusion
WC44 - 0987,CASTLEBECK CARE (TEESDALE) LTD,Third Party Payments,Private Contractor Fees,73373-RESIDENTIAL & NURSING CARE PLACEMENTS,"5,523.08",Revenue,27/05/2014,Social Care & Inclusion
WC44 - 0988,CASTLEBECK CARE (TEESDALE) LTD,Third Party Payments,Private Contractor Fees,73373-RESIDENTIAL & NURSING CARE PLACEMENTS,"7,800.00",Revenue,27/05/2014,Social Care & Inclusion
WC44 - 0989,CASTLEBECK CARE (TEESDALE) LTD,Third Party Payments,Private Contractor Fees,73373-RESIDENTIAL & NURSING CARE PLACEMENTS,"14,857.50",Revenue,27/05/2014,Social Care & Inclusion
WC44 - 0990,CATHEDRAL LEASING LTD,Supplies & Services,"Equip,Furniture & Materials",60506-PERSONAL REQUISITES-MATERIALS,250.89,Revenue,19/05/2014,Childrens
WC44 - 0991,CATHEDRAL LEASING LTD,Supplies & Services,"Equip,Furniture & Materials",60506-PERSONAL REQUISITES-MATERIALS,250.89,Revenue,21/05/2014,Childrens
WC44 - 0992,REDACTED,Transfer Payments,Transfer Payments,76422-DIRECT PAYMENTS TO SOCIAL SERVICES CLIENTS,622.68,Revenue,13/05/2014,Social Care & Inclusion
WC44 - 0993,REDACTED,Transfer Payments,Transfer Payments,76422-DIRECT PAYMENTS TO SOCIAL SERVICES CLIENTS,690.48,Revenue,13/05/2014,Social Care & Inclusion
WC44 - 0994,REDACTED,Third Party Payments,Private Contractor Fees,74006-HOLIDAY/CHRISTMAS ALLOWANCE-FOSTER CARERS-OTH AGENCY PROVISION,417.56,Revenue,12/05/2014,Childrens
WC44 - 0995,REDACTED,Transfer Payments,Transfer Payments,76422-DIRECT PAYMENTS TO SOCIAL SERVICES CLIENTS,388.40,Revenue,13/05/2014,Social Care & Inclusion
WC44 - 0996,REDACTED,Transfer Payments,Transfer Payments,76422-DIRECT PAYMENTS TO SOCIAL SERVICES CLIENTS,"1,267.85",Revenue,13/05/2014,Childrens
WC44 - 0997,REDACTED,Third Party Payments,Private Contractor Fees,74006-HOLIDAY/CHRISTMAS ALLOWANCE-FOSTER CARERS-OTH AGENCY PROVISION,417.56,Revenue,12/05/2014,Childrens
WC44 - 0998,CAUSEWAY TECHNOLOGIES LIMITED,Supplies & Services,Services,63000-PROFESSIONAL FEES AND SERVICES,"2,774.13",Revenue,01/05/2014,Neighbourhood Services
WC44 - 0999,CENTRAL & COUNTRY DEVELOPMENTS LTD,Central,Capital Financing,82507-INTEREST ON OVERDUE /LATE PAYMENTS-CENTRAL EXPENSES,370.81,Revenue,07/05/2014,Capital Financing
WC44 - 1000,CENTRAL AND NORTH WEST LONDON NHS FOUNDATION TRUST,Supplies & Services,Services,63000-PROFESSIONAL FEES AND SERVICES,330.22,Revenue,09/05/2014,Neighbourhood Services
WC44 - 1001,CENTRAL CONSTRUCTION TRAINING LTD,Third Party Payments,Grants to Other Orgs,66500-GRANTS TO OTHER ORGS,"1,500.00",Revenue,12/05/2014,Regeneration
WC44 - 1002,CENTRAL CONSTRUCTION TRAINING LTD,Third Party Payments,Grants to Other Orgs,66500-GRANTS TO OTHER ORGS,"1,500.00",Revenue,13/05/2014,Regeneration
WC44 - 1003,CENTRAL CONSTRUCTION TRAINING LTD,Third Party Payments,Grants to Other Orgs,66500-GRANTS TO OTHER ORGS,"2,250.00",Revenue,13/05/2014,Regeneration
WC44 - 1004,CENTRAL CONSTRUCTION TRAINING LTD,Third Party Payments,Grants to Other Orgs,66500-GRANTS TO OTHER ORGS,"3,000.00",Revenue,12/05/2014,Regeneration
WC44 - 1005,CENTRAL INSULATION & ENVIRONM,Capital,Capital,01006-SITE WORKS MAIN CONTRACTORS,"2,500.00",Capital,19/05/2014,Childrens
WC44 - 1006,CENTRAL INSULATION & ENVIRONM,Third Party Payments,Private Contractor Fees,73025-PROFESSIONAL SERVICES-PRIV CONTRACTOR & OTHER AGENCIES,250.00,Revenue,02/05/2014,Regeneration
WC44 - 1007,CENTRAL INSULATION & ENVIRONM,Premises,Premises-Repairs & Maintenance,"40000-REPAIRS,ALTERATIONS & MAINTENANCE-PREM",250.00,Revenue,12/05/2014,Regeneration
WC44 - 1008,CENTRAL INSULATION & ENVIRONM,Premises,Premises-Repairs & Maintenance,"40000-REPAIRS,ALTERATIONS & MAINTENANCE-PREM",450.00,Revenue,22/05/2014,Regeneration
WC44 - 1009,CENTRAL INSULATION & ENVIRONM,Capital,Capital,01006-SITE WORKS MAIN CONTRACTORS,"1,300.00",Capital,01/05/2014,Regeneration
WC44 - 1010,CENTRE FOR EDUCATION&FINANCE MANAGEMENT LTD,Supplies & Services,Other Supplies & Services,63124-FEES & LICENCES-SERVICES,"8,312.68",Revenue,07/05/2014,Childrens
WC44 - 1011,CENTRE FOR EDUCATION&FINANCE MANAGEMENT LTD,Supplies & Services,Other Supplies & Services,63124-FEES & LICENCES-SERVICES,"8,787.70",Revenue,07/05/2014,Childrens
WC44 - 1012,CENTRO WMPTA,Transport,Hire,52000-WITH DRIVER-HIRE OF VEHICLES,"1,107.60",Revenue,14/05/2014,Childrens
WC44 - 1013,CENTRO WMPTA,Transport,Hire,52000-WITH DRIVER-HIRE OF VEHICLES,"24,644.10",Revenue,14/05/2014,Childrens
WC44 - 1014,CENTRO WMPTA,Transfer Payments,Transfer Payments,76000-TRANSFER PAYMENTS - SOCIAL SERVICES CLIENTS,532.50,Revenue,07/05/2014,Social Care & Inclusion
WC44 - 1015,CERTAS ENERGY UK LIMITED,Transport,Other Transport,50301-FUEL-TRANSPORT RUN COSTS,618.20,Revenue,16/05/2014,Neighbourhood Services
WC44 - 1016,CERTAS ENERGY UK LIMITED,Transport,Other Transport,50301-FUEL-TRANSPORT RUN COSTS,928.97,Revenue,12/05/2014,Neighbourhood Services
WC44 - 1017,CERTAS ENERGY UK LIMITED,Transport,Other Transport,50301-FUEL-TRANSPORT RUN COSTS,"1,220.80",Revenue,28/05/2014,Neighbourhood Services
WC44 - 1018,CERTAS ENERGY UK LIMITED,Transport,Other Transport,50301-FUEL-TRANSPORT RUN COSTS,"1,801.80",Revenue,28/05/2014,Neighbourhood Services
WC44 - 1019,CERTAS ENERGY UK LIMITED,Transport,Other Transport,50301-FUEL-TRANSPORT RUN COSTS,"1,835.17",Revenue,07/05/2014,Neighbourhood Services
WC44 - 1020,CERTAS ENERGY UK LIMITED,Transport,Other Transport,50301-FUEL-TRANSPORT RUN COSTS,"1,848.60",Revenue,16/05/2014,Neighbourhood Services
WC44 - 1021,CERTAS ENERGY UK LIMITED,Transport,Other Transport,50301-FUEL-TRANSPORT RUN COSTS,"2,001.82",Revenue,16/05/2014,Neighbourhood Services
WC44 - 1022,CERTAS ENERGY UK LIMITED,Transport,Other Transport,50301-FUEL-TRANSPORT RUN COSTS,"6,096.95",Revenue,16/05/2014,Neighbourhood Services
WC44 - 1023,CERTAS ENERGY UK LIMITED,Transport,Other Transport,50301-FUEL-TRANSPORT RUN COSTS,"19,402.20",Revenue,12/05/2014,Neighbourhood Services
WC44 - 1024,CERTAS ENERGY UK LIMITED,Transport,Other Transport,50301-FUEL-TRANSPORT RUN COSTS,"21,227.59",Revenue,07/05/2014,Neighbourhood Services
WC44 - 1025,CEXC LIMITED,Supplies & Services,Communications & Computing,63800-COMPUTER EQUIPMENT AND SUPPLIES,504.18,Revenue,13/05/2014,Resources
WC44 - 1026,CF ASSET FINANCE LIMITED,Supplies & Services,"Equip,Furniture & Materials",60009-LEASING/HIRE/RENTAL-EQUIPMENT,272.86,Revenue,01/05/2014,Childrens
WC44 - 1027,CF CORPORATE FINANCE LTD,Supplies & Services,"Equip,Furniture & Materials",60009-LEASING/HIRE/RENTAL-EQUIPMENT,"1,290.34",Revenue,16/05/2014,Childrens
WC44 - 1028,CFAB,Third Party Payments,Private Contractor Fees,73025-PROFESSIONAL SERVICES-PRIV CONTRACTOR & OTHER AGENCIES,"1,750.00",Revenue,01/05/2014,Childrens
WC44 - 1029,CFT FOSTERING LIMITED,Third Party Payments,Private Contractor Fees,74037-INDEPENDENT FOSTER CARE-OTH AGENCY PROVISION,"5,850.32",Revenue,09/05/2014,Childrens
WC44 - 1030,REDACTED,Transfer Payments,Transfer Payments,76422-DIRECT PAYMENTS TO SOCIAL SERVICES CLIENTS,748.00,Revenue,13/05/2014,Social Care & Inclusion
WC44 - 1031,REDACTED,Third Party Payments,Private Contractor Fees,74006-HOLIDAY/CHRISTMAS ALLOWANCE-FOSTER CARERS-OTH AGENCY PROVISION,639.40,Revenue,12/05/2014,Childrens
WC44 - 1032,CHARLIE CATERPILLAR'S DAY NURSERY,Supplies & Services,Other Supplies & Services,63120-CRECHE FACILITIES-SERVICES-FEES,720.00,Revenue,01/05/2014,Childrens
WC44 - 1033,CHARLIE CATERPILLAR'S DAY NURSERY,Employees,Agency,34305-AGENCY STAFF-EMPLOYEES,"3,234.00",Revenue,02/05/2014,Childrens
WC44 - 1034,CHARLIE CATERPILLAR'S DAY NURSERY,Third Party Payments,Grants to Other Orgs,66505-OTHER-GRANTS TO OTHER ORGS,"7,136.96",Revenue,07/05/2014,Childrens
WC44 - 1035,CHARTER CARE,Third Party Payments,Private Contractor Fees,73372-DOMICILIARY CARE,"38,977.85",Revenue,28/05/2014,Social Care & Inclusion
WC44 - 1036,CHARTER OAKS LTD,Capital,Capital,01001-OTHER CONSULTANTS FEES,"6,900.00",Capital,20/05/2014,Regeneration
WC44 - 1037,CHASEVIEW CARE HOME,Third Party Payments,Private Contractor Fees,73373-RESIDENTIAL & NURSING CARE PLACEMENTS,"1,654.07",Revenue,13/05/2014,Social Care & Inclusion
WC44 - 1038,CHEMTECH WASTE MANAGEMENT LTD,Third Party Payments,Private Contractor Fees,73025-PROFESSIONAL SERVICES-PRIV CONTRACTOR & OTHER AGENCIES,"1,034.00",Revenue,28/05/2014,Neighbourhood Services
WC44 - 1039,REDACTED,Transfer Payments,Transfer Payments,76000-TRANSFER PAYMENTS - SOCIAL SERVICES CLIENTS,"1,300.00",Revenue,19/05/2014,Childrens
WC44 - 1040,REDACTED,Transfer Payments,Transfer Payments,76422-DIRECT PAYMENTS TO SOCIAL SERVICES CLIENTS,"1,601.60",Revenue,13/05/2014,Social Care & Inclusion
WC44 - 1041,CHILD POVERTY ACTION GROUP,Supplies & Services,"Equip,Furniture & Materials",69400-REFERENCE BOOKS,286.99,Revenue,28/05/2014,Resources
WC44 - 1042,CHILDLINK,Transport,Car Allowances,53001-OTHER/VOLUNTEERS-CAR ALLOWANCES,2.59,Revenue,20/05/2014,Childrens
WC44 - 1043,CHILDLINK,Transport,Car Allowances,53001-OTHER/VOLUNTEERS-CAR ALLOWANCES,4.00,Revenue,19/05/2014,Childrens
WC44 - 1044,CHILDLINK,Supplies & Services,Other Supplies & Services,63128-HIRE OF ROOM-SERVICES-FEES,17.88,Revenue,01/05/2014,Childrens
WC44 - 1045,CHILDLINK,Transport,Car Allowances,53001-OTHER/VOLUNTEERS-CAR ALLOWANCES,23.54,Revenue,01/05/2014,Childrens
WC44 - 1046,CHILDLINK,Transport,Car Allowances,53001-OTHER/VOLUNTEERS-CAR ALLOWANCES,23.76,Revenue,01/05/2014,Childrens
WC44 - 1047,CHILDLINK,Transport,Car Allowances,53001-OTHER/VOLUNTEERS-CAR ALLOWANCES,23.76,Revenue,12/05/2014,Childrens
WC44 - 1048,CHILDLINK,Transport,Car Allowances,53001-OTHER/VOLUNTEERS-CAR ALLOWANCES,26.29,Revenue,01/05/2014,Childrens
WC44 - 1049,CHILDLINK,Transport,Car Allowances,53001-OTHER/VOLUNTEERS-CAR ALLOWANCES,26.82,Revenue,01/05/2014,Childrens
WC44 - 1050,CHILDLINK,Transport,Car Allowances,53003-OTHER-TRAVEL ALLOWANCES,27.12,Revenue,01/05/2014,Childrens
WC44 - 1051,CHILDLINK,Transport,Car Allowances,53003-OTHER-TRAVEL ALLOWANCES,27.37,Revenue,01/05/2014,Childrens
WC44 - 1052,CHILDLINK,Transport,Car Allowances,53003-OTHER-TRAVEL ALLOWANCES,27.37,Revenue,12/05/2014,Childrens
WC44 - 1053,CHILDLINK,Supplies & Services,Other Supplies & Services,63128-HIRE OF ROOM-SERVICES-FEES,27.79,Revenue,12/05/2014,Childrens
WC44 - 1054,CHILDLINK,Transport,Car Allowances,53001-OTHER/VOLUNTEERS-CAR ALLOWANCES,28.91,Revenue,01/05/2014,Childrens
WC44 - 1055,CHILDLINK,Transport,Car Allowances,53001-OTHER/VOLUNTEERS-CAR ALLOWANCES,34.39,Revenue,12/05/2014,Childrens
WC44 - 1056,CHILDLINK,Supplies & Services,Other Supplies & Services,63128-HIRE OF ROOM-SERVICES-FEES,34.59,Revenue,02/05/2014,Childrens
WC44 - 1057,CHILDLINK,Transport,Car Allowances,53001-OTHER/VOLUNTEERS-CAR ALLOWANCES,34.97,Revenue,20/05/2014,Childrens
WC44 - 1058,CHILDLINK,Transport,Car Allowances,53001-OTHER/VOLUNTEERS-CAR ALLOWANCES,35.38,Revenue,12/05/2014,Childrens
WC44 - 1059,CHILDLINK,Transport,Car Allowances,53001-OTHER/VOLUNTEERS-CAR ALLOWANCES,35.47,Revenue,02/05/2014,Childrens
WC44 - 1060,CHILDLINK,Transport,Car Allowances,53003-OTHER-TRAVEL ALLOWANCES,39.59,Revenue,20/05/2014,Childrens
WC44 - 1061,CHILDLINK,Transport,Car Allowances,53001-OTHER/VOLUNTEERS-CAR ALLOWANCES,39.68,Revenue,12/05/2014,Childrens
WC44 - 1062,CHILDLINK,Transport,Car Allowances,53003-OTHER-TRAVEL ALLOWANCES,39.70,Revenue,20/05/2014,Childrens
WC44 - 1063,CHILDLINK,Transport,Car Allowances,53003-OTHER-TRAVEL ALLOWANCES,40.17,Revenue,12/05/2014,Childrens
WC44 - 1064,CHILDLINK,Transport,Car Allowances,53001-OTHER/VOLUNTEERS-CAR ALLOWANCES,43.66,Revenue,20/05/2014,Childrens
WC44 - 1065,CHILDLINK,Transport,Car Allowances,53003-OTHER-TRAVEL ALLOWANCES,44.70,Revenue,01/05/2014,Childrens
WC44 - 1066,CHILDLINK,Third Party Payments,Private Contractor Fees,76003-SECTION 34 (CONTACT),46.69,Revenue,20/05/2014,Childrens
WC44 - 1067,CHILDLINK,Supplies & Services,Other Supplies & Services,63128-HIRE OF ROOM-SERVICES-FEES,46.70,Revenue,06/05/2014,Childrens
WC44 - 1068,CHILDLINK,Supplies & Services,Other Supplies & Services,63128-HIRE OF ROOM-SERVICES-FEES,47.86,Revenue,20/05/2014,Childrens
WC44 - 1069,CHILDLINK,Transport,Car Allowances,53001-OTHER/VOLUNTEERS-CAR ALLOWANCES,49.40,Revenue,02/05/2014,Childrens
WC44 - 1070,CHILDLINK,Supplies & Services,Other Supplies & Services,63128-HIRE OF ROOM-SERVICES-FEES,50.70,Revenue,20/05/2014,Childrens
WC44 - 1071,CHILDLINK,Supplies & Services,Other Supplies & Services,63128-HIRE OF ROOM-SERVICES-FEES,52.30,Revenue,02/05/2014,Childrens
WC44 - 1072,CHILDLINK,Transport,Car Allowances,53001-OTHER/VOLUNTEERS-CAR ALLOWANCES,52.81,Revenue,06/05/2014,Childrens
WC44 - 1073,CHILDLINK,Supplies & Services,Other Supplies & Services,63128-HIRE OF ROOM-SERVICES-FEES,52.93,Revenue,06/05/2014,Childrens
WC44 - 1074,CHILDLINK,Supplies & Services,Other Supplies & Services,63128-HIRE OF ROOM-SERVICES-FEES,53.13,Revenue,01/05/2014,Childrens
WC44 - 1075,CHILDLINK,Supplies & Services,Other Supplies & Services,63128-HIRE OF ROOM-SERVICES-FEES,53.65,Revenue,20/05/2014,Childrens
WC44 - 1076,CHILDLINK,Supplies & Services,Other Supplies & Services,63128-HIRE OF ROOM-SERVICES-FEES,55.02,Revenue,02/05/2014,Childrens
WC44 - 1077,CHILDLINK,Transport,Car Allowances,53003-OTHER-TRAVEL ALLOWANCES,55.67,Revenue,02/05/2014,Childrens
WC44 - 1078,CHILDLINK,Transport,Car Allowances,53001-OTHER/VOLUNTEERS-CAR ALLOWANCES,56.50,Revenue,02/05/2014,Childrens
WC44 - 1079,CHILDLINK,Transport,Car Allowances,53001-OTHER/VOLUNTEERS-CAR ALLOWANCES,60.66,Revenue,20/05/2014,Childrens
WC44 - 1080,CHILDLINK,Transport,Car Allowances,53003-OTHER-TRAVEL ALLOWANCES,61.16,Revenue,19/05/2014,Childrens
WC44 - 1081,CHILDLINK,Transport,Car Allowances,53001-OTHER/VOLUNTEERS-CAR ALLOWANCES,62.22,Revenue,02/05/2014,Childrens
WC44 - 1082,CHILDLINK,Supplies & Services,Other Supplies & Services,63128-HIRE OF ROOM-SERVICES-FEES,65.54,Revenue,01/05/2014,Childrens
WC44 - 1083,CHILDLINK,Transport,Car Allowances,53001-OTHER/VOLUNTEERS-CAR ALLOWANCES,66.41,Revenue,01/05/2014,Childrens
WC44 - 1084,CHILDLINK,Transport,Car Allowances,53001-OTHER/VOLUNTEERS-CAR ALLOWANCES,67.62,Revenue,02/05/2014,Childrens
WC44 - 1085,CHILDLINK,Transport,Car Allowances,53001-OTHER/VOLUNTEERS-CAR ALLOWANCES,68.33,Revenue,20/05/2014,Childrens
WC44 - 1086,CHILDLINK,Transport,Car Allowances,53001-OTHER/VOLUNTEERS-CAR ALLOWANCES,68.53,Revenue,06/05/2014,Childrens
WC44 - 1087,CHILDLINK,Supplies & Services,Other Supplies & Services,63128-HIRE OF ROOM-SERVICES-FEES,70.42,Revenue,01/05/2014,Childrens
WC44 - 1088,CHILDLINK,Transport,Car Allowances,53001-OTHER/VOLUNTEERS-CAR ALLOWANCES,71.01,Revenue,12/05/2014,Childrens
WC44 - 1089,CHILDLINK,Transport,Car Allowances,53003-OTHER-TRAVEL ALLOWANCES,71.20,Revenue,01/05/2014,Childrens
WC44 - 1090,CHILDLINK,Third Party Payments,Private Contractor Fees,76003-SECTION 34 (CONTACT),71.96,Revenue,12/05/2014,Childrens
WC44 - 1091,CHILDLINK,Third Party Payments,Private Contractor Fees,76003-SECTION 34 (CONTACT),72.15,Revenue,19/05/2014,Childrens
WC44 - 1092,CHILDLINK,Supplies & Services,Other Supplies & Services,63128-HIRE OF ROOM-SERVICES-FEES,72.51,Revenue,12/05/2014,Childrens
WC44 - 1093,CHILDLINK,Transport,Car Allowances,53001-OTHER/VOLUNTEERS-CAR ALLOWANCES,73.16,Revenue,06/05/2014,Childrens
WC44 - 1094,CHILDLINK,Transport,Car Allowances,53001-OTHER/VOLUNTEERS-CAR ALLOWANCES,74.08,Revenue,12/05/2014,Childrens
WC44 - 1095,CHILDLINK,Transport,Car Allowances,53001-OTHER/VOLUNTEERS-CAR ALLOWANCES,74.72,Revenue,01/05/2014,Childrens
WC44 - 1096,CHILDLINK,Transport,Car Allowances,53001-OTHER/VOLUNTEERS-CAR ALLOWANCES,75.58,Revenue,06/05/2014,Childrens
WC44 - 1097,CHILDLINK,Third Party Payments,Private Contractor Fees,76003-SECTION 34 (CONTACT),78.83,Revenue,12/05/2014,Childrens
WC44 - 1098,CHILDLINK,Transport,Car Allowances,53001-OTHER/VOLUNTEERS-CAR ALLOWANCES,79.21,Revenue,01/05/2014,Childrens
WC44 - 1099,CHILDLINK,Transport,Car Allowances,53001-OTHER/VOLUNTEERS-CAR ALLOWANCES,79.63,Revenue,01/05/2014,Childrens
WC44 - 1100,CHILDLINK,Transport,Car Allowances,53001-OTHER/VOLUNTEERS-CAR ALLOWANCES,80.82,Revenue,06/05/2014,Childrens
WC44 - 1101,CHILDLINK,Transport,Car Allowances,53001-OTHER/VOLUNTEERS-CAR ALLOWANCES,80.82,Revenue,20/05/2014,Childrens
WC44 - 1102,CHILDLINK,Transport,Car Allowances,53001-OTHER/VOLUNTEERS-CAR ALLOWANCES,82.00,Revenue,12/05/2014,Childrens
WC44 - 1103,CHILDLINK,Supplies & Services,Other Supplies & Services,63128-HIRE OF ROOM-SERVICES-FEES,82.07,Revenue,20/05/2014,Childrens
WC44 - 1104,CHILDLINK,Supplies & Services,Other Supplies & Services,63128-HIRE OF ROOM-SERVICES-FEES,82.45,Revenue,12/05/2014,Childrens
WC44 - 1105,CHILDLINK,Transport,Car Allowances,53001-OTHER/VOLUNTEERS-CAR ALLOWANCES,82.96,Revenue,06/05/2014,Childrens
WC44 - 1106,CHILDLINK,Supplies & Services,Other Supplies & Services,63128-HIRE OF ROOM-SERVICES-FEES,83.04,Revenue,12/05/2014,Childrens
WC44 - 1107,CHILDLINK,Supplies & Services,Other Supplies & Services,63128-HIRE OF ROOM-SERVICES-FEES,83.34,Revenue,06/05/2014,Childrens
WC44 - 1108,CHILDLINK,Transport,Car Allowances,53001-OTHER/VOLUNTEERS-CAR ALLOWANCES,84.15,Revenue,02/05/2014,Childrens
WC44 - 1109,CHILDLINK,Supplies & Services,Other Supplies & Services,63128-HIRE OF ROOM-SERVICES-FEES,84.54,Revenue,02/05/2014,Childrens
WC44 - 1110,CHILDLINK,Supplies & Services,Other Supplies & Services,63128-HIRE OF ROOM-SERVICES-FEES,84.99,Revenue,02/05/2014,Childrens
WC44 - 1111,CHILDLINK,Supplies & Services,Other Supplies & Services,63128-HIRE OF ROOM-SERVICES-FEES,86.13,Revenue,06/05/2014,Childrens
WC44 - 1112,CHILDLINK,Transport,Car Allowances,53003-OTHER-TRAVEL ALLOWANCES,86.24,Revenue,01/05/2014,Childrens
WC44 - 1113,CHILDLINK,Third Party Payments,Private Contractor Fees,76003-SECTION 34 (CONTACT),86.25,Revenue,01/05/2014,Childrens
WC44 - 1114,CHILDLINK,Transport,Car Allowances,53001-OTHER/VOLUNTEERS-CAR ALLOWANCES,87.87,Revenue,06/05/2014,Childrens
WC44 - 1115,CHILDLINK,Transport,Car Allowances,53001-OTHER/VOLUNTEERS-CAR ALLOWANCES,87.95,Revenue,01/05/2014,Childrens
WC44 - 1116,CHILDLINK,Supplies & Services,Other Supplies & Services,63128-HIRE OF ROOM-SERVICES-FEES,88.98,Revenue,20/05/2014,Childrens
WC44 - 1117,CHILDLINK,Supplies & Services,Other Supplies & Services,63128-HIRE OF ROOM-SERVICES-FEES,89.12,Revenue,01/05/2014,Childrens
WC44 - 1118,CHILDLINK,Third Party Payments,Private Contractor Fees,76003-SECTION 34 (CONTACT),89.57,Revenue,02/05/2014,Childrens
WC44 - 1119,CHILDLINK,Transport,Car Allowances,53003-OTHER-TRAVEL ALLOWANCES,89.93,Revenue,01/05/2014,Childrens
WC44 - 1120,CHILDLINK,Supplies & Services,Other Supplies & Services,63128-HIRE OF ROOM-SERVICES-FEES,90.19,Revenue,01/05/2014,Childrens
WC44 - 1121,CHILDLINK,Third Party Payments,Private Contractor Fees,76003-SECTION 34 (CONTACT),90.22,Revenue,01/05/2014,Childrens
WC44 - 1122,CHILDLINK,Transport,Car Allowances,53003-OTHER-TRAVEL ALLOWANCES,90.87,Revenue,06/05/2014,Childrens
WC44 - 1123,CHILDLINK,Third Party Payments,Private Contractor Fees,76003-SECTION 34 (CONTACT),90.87,Revenue,06/05/2014,Childrens
WC44 - 1124,CHILDLINK,Transport,Car Allowances,53001-OTHER/VOLUNTEERS-CAR ALLOWANCES,91.35,Revenue,02/05/2014,Childrens
WC44 - 1125,CHILDLINK,Transport,Car Allowances,53003-OTHER-TRAVEL ALLOWANCES,92.01,Revenue,12/05/2014,Childrens
WC44 - 1126,CHILDLINK,Third Party Payments,Private Contractor Fees,76003-SECTION 34 (CONTACT),92.01,Revenue,12/05/2014,Childrens
WC44 - 1127,CHILDLINK,Transport,Car Allowances,53003-OTHER-TRAVEL ALLOWANCES,93.13,Revenue,12/05/2014,Childrens
WC44 - 1128,CHILDLINK,Transport,Car Allowances,53003-OTHER-TRAVEL ALLOWANCES,93.96,Revenue,01/05/2014,Childrens
WC44 - 1129,CHILDLINK,Transport,Car Allowances,53001-OTHER/VOLUNTEERS-CAR ALLOWANCES,94.13,Revenue,12/05/2014,Childrens
WC44 - 1130,CHILDLINK,Transport,Car Allowances,53003-OTHER-TRAVEL ALLOWANCES,94.18,Revenue,06/05/2014,Childrens
WC44 - 1131,CHILDLINK,Transport,Car Allowances,53003-OTHER-TRAVEL ALLOWANCES,94.29,Revenue,06/05/2014,Childrens
WC44 - 1132,CHILDLINK,Transport,Car Allowances,53003-OTHER-TRAVEL ALLOWANCES,94.70,Revenue,20/05/2014,Childrens
WC44 - 1133,CHILDLINK,Transport,Car Allowances,53003-OTHER-TRAVEL ALLOWANCES,95.54,Revenue,02/05/2014,Childrens
WC44 - 1134,CHILDLINK,Supplies & Services,Other Supplies & Services,63128-HIRE OF ROOM-SERVICES-FEES,95.71,Revenue,06/05/2014,Childrens
WC44 - 1135,CHILDLINK,Transport,Car Allowances,53003-OTHER-TRAVEL ALLOWANCES,95.99,Revenue,01/05/2014,Childrens
WC44 - 1136,CHILDLINK,Transport,Car Allowances,53001-OTHER/VOLUNTEERS-CAR ALLOWANCES,96.13,Revenue,20/05/2014,Childrens
WC44 - 1137,CHILDLINK,Transport,Car Allowances,53001-OTHER/VOLUNTEERS-CAR ALLOWANCES,97.44,Revenue,01/05/2014,Childrens
WC44 - 1138,CHILDLINK,Transport,Car Allowances,53003-OTHER-TRAVEL ALLOWANCES,98.84,Revenue,02/05/2014,Childrens
WC44 - 1139,CHILDLINK,Transport,Car Allowances,53001-OTHER/VOLUNTEERS-CAR ALLOWANCES,100.09,Revenue,01/05/2014,Childrens
WC44 - 1140,CHILDLINK,Transport,Car Allowances,53003-OTHER-TRAVEL ALLOWANCES,100.11,Revenue,06/05/2014,Childrens
WC44 - 1141,CHILDLINK,Transport,Car Allowances,53001-OTHER/VOLUNTEERS-CAR ALLOWANCES,101.51,Revenue,06/05/2014,Childrens
WC44 - 1142,CHILDLINK,Transport,Car Allowances,53003-OTHER-TRAVEL ALLOWANCES,101.86,Revenue,06/05/2014,Childrens
WC44 - 1143,CHILDLINK,Transport,Car Allowances,53001-OTHER/VOLUNTEERS-CAR ALLOWANCES,101.94,Revenue,12/05/2014,Childrens
WC44 - 1144,CHILDLINK,Transport,Car Allowances,53001-OTHER/VOLUNTEERS-CAR ALLOWANCES,103.40,Revenue,06/05/2014,Childrens
WC44 - 1145,CHILDLINK,Third Party Payments,Private Contractor Fees,76003-SECTION 34 (CONTACT),103.98,Revenue,06/05/2014,Childrens
WC44 - 1146,CHILDLINK,Third Party Payments,Private Contractor Fees,76003-SECTION 34 (CONTACT),107.21,Revenue,06/05/2014,Childrens
WC44 - 1147,CHILDLINK,Third Party Payments,Private Contractor Fees,76003-SECTION 34 (CONTACT),107.21,Revenue,20/05/2014,Childrens
WC44 - 1148,CHILDLINK,Transport,Car Allowances,53003-OTHER-TRAVEL ALLOWANCES,108.32,Revenue,20/05/2014,Childrens
WC44 - 1149,CHILDLINK,Transport,Car Allowances,53001-OTHER/VOLUNTEERS-CAR ALLOWANCES,109.21,Revenue,01/05/2014,Childrens
WC44 - 1150,CHILDLINK,Third Party Payments,Private Contractor Fees,76003-SECTION 34 (CONTACT),110.45,Revenue,06/05/2014,Childrens
WC44 - 1151,CHILDLINK,Transport,Car Allowances,53003-OTHER-TRAVEL ALLOWANCES,110.88,Revenue,06/05/2014,Childrens
WC44 - 1152,CHILDLINK,Transport,Car Allowances,53001-OTHER/VOLUNTEERS-CAR ALLOWANCES,110.91,Revenue,01/05/2014,Childrens
WC44 - 1153,CHILDLINK,Transport,Car Allowances,53003-OTHER-TRAVEL ALLOWANCES,111.09,Revenue,02/05/2014,Childrens
WC44 - 1154,CHILDLINK,Supplies & Services,Other Supplies & Services,63128-HIRE OF ROOM-SERVICES-FEES,111.42,Revenue,01/05/2014,Childrens
WC44 - 1155,CHILDLINK,Transport,Car Allowances,53003-OTHER-TRAVEL ALLOWANCES,111.66,Revenue,01/05/2014,Childrens
WC44 - 1156,CHILDLINK,Third Party Payments,Private Contractor Fees,76003-SECTION 34 (CONTACT),112.03,Revenue,01/05/2014,Childrens
WC44 - 1157,CHILDLINK,Transport,Car Allowances,53003-OTHER-TRAVEL ALLOWANCES,115.29,Revenue,02/05/2014,Childrens
WC44 - 1158,CHILDLINK,Transport,Car Allowances,53003-OTHER-TRAVEL ALLOWANCES,117.37,Revenue,06/05/2014,Childrens
WC44 - 1159,CHILDLINK,Transport,Car Allowances,53003-OTHER-TRAVEL ALLOWANCES,117.37,Revenue,20/05/2014,Childrens
WC44 - 1160,CHILDLINK,Transport,Car Allowances,53001-OTHER/VOLUNTEERS-CAR ALLOWANCES,117.57,Revenue,01/05/2014,Childrens
WC44 - 1161,CHILDLINK,Transport,Car Allowances,53001-OTHER/VOLUNTEERS-CAR ALLOWANCES,118.16,Revenue,01/05/2014,Childrens
WC44 - 1162,CHILDLINK,Third Party Payments,Private Contractor Fees,76003-SECTION 34 (CONTACT),121.19,Revenue,02/05/2014,Childrens
WC44 - 1163,CHILDLINK,Third Party Payments,Private Contractor Fees,76003-SECTION 34 (CONTACT),123.91,Revenue,20/05/2014,Childrens
WC44 - 1164,CHILDLINK,Third Party Payments,Private Contractor Fees,76003-SECTION 34 (CONTACT),125.81,Revenue,01/05/2014,Childrens
WC44 - 1165,CHILDLINK,Transport,Car Allowances,53003-OTHER-TRAVEL ALLOWANCES,125.91,Revenue,01/05/2014,Childrens
WC44 - 1166,CHILDLINK,Transport,Car Allowances,53003-OTHER-TRAVEL ALLOWANCES,126.30,Revenue,01/05/2014,Childrens
WC44 - 1167,CHILDLINK,Third Party Payments,Private Contractor Fees,76003-SECTION 34 (CONTACT),127.11,Revenue,20/05/2014,Childrens
WC44 - 1168,CHILDLINK,Third Party Payments,Private Contractor Fees,76003-SECTION 34 (CONTACT),127.12,Revenue,06/05/2014,Childrens
WC44 - 1169,CHILDLINK,Transport,Car Allowances,53001-OTHER/VOLUNTEERS-CAR ALLOWANCES,127.26,Revenue,01/05/2014,Childrens
WC44 - 1170,CHILDLINK,Third Party Payments,Private Contractor Fees,76003-SECTION 34 (CONTACT),128.14,Revenue,12/05/2014,Childrens
WC44 - 1171,CHILDLINK,Transport,Car Allowances,53003-OTHER-TRAVEL ALLOWANCES,128.62,Revenue,12/05/2014,Childrens
WC44 - 1172,CHILDLINK,Third Party Payments,Private Contractor Fees,76003-SECTION 34 (CONTACT),128.97,Revenue,02/05/2014,Childrens
WC44 - 1173,CHILDLINK,Transport,Car Allowances,53003-OTHER-TRAVEL ALLOWANCES,132.66,Revenue,02/05/2014,Childrens
WC44 - 1174,CHILDLINK,Third Party Payments,Private Contractor Fees,76003-SECTION 34 (CONTACT),137.06,Revenue,06/05/2014,Childrens
WC44 - 1175,CHILDLINK,Transport,Car Allowances,53003-OTHER-TRAVEL ALLOWANCES,142.18,Revenue,01/05/2014,Childrens
WC44 - 1176,CHILDLINK,Transport,Car Allowances,53003-OTHER-TRAVEL ALLOWANCES,146.42,Revenue,12/05/2014,Childrens
WC44 - 1177,CHILDLINK,Third Party Payments,Private Contractor Fees,76003-SECTION 34 (CONTACT),147.78,Revenue,01/05/2014,Childrens
WC44 - 1178,CHILDLINK,Transport,Car Allowances,53003-OTHER-TRAVEL ALLOWANCES,148.35,Revenue,01/05/2014,Childrens
WC44 - 1179,CHILDLINK,Third Party Payments,Private Contractor Fees,76003-SECTION 34 (CONTACT),151.35,Revenue,01/05/2014,Childrens
WC44 - 1180,CHILDLINK,Transport,Car Allowances,53001-OTHER/VOLUNTEERS-CAR ALLOWANCES,151.79,Revenue,20/05/2014,Childrens
WC44 - 1181,CHILDLINK,Transport,Car Allowances,53003-OTHER-TRAVEL ALLOWANCES,154.19,Revenue,02/05/2014,Childrens
WC44 - 1182,CHILDLINK,Transport,Car Allowances,53003-OTHER-TRAVEL ALLOWANCES,156.25,Revenue,06/05/2014,Childrens
WC44 - 1183,CHILDLINK,Third Party Payments,Private Contractor Fees,76003-SECTION 34 (CONTACT),156.75,Revenue,01/05/2014,Childrens
WC44 - 1184,CHILDLINK,Transport,Car Allowances,53003-OTHER-TRAVEL ALLOWANCES,158.32,Revenue,01/05/2014,Childrens
WC44 - 1185,CHILDLINK,Third Party Payments,Private Contractor Fees,76003-SECTION 34 (CONTACT),158.54,Revenue,06/05/2014,Childrens
WC44 - 1186,CHILDLINK,Third Party Payments,Private Contractor Fees,76003-SECTION 34 (CONTACT),167.10,Revenue,06/05/2014,Childrens
WC44 - 1187,CHILDLINK,Third Party Payments,Private Contractor Fees,76003-SECTION 34 (CONTACT),169.96,Revenue,01/05/2014,Childrens
WC44 - 1188,CHILDLINK,Transport,Car Allowances,53003-OTHER-TRAVEL ALLOWANCES,171.59,Revenue,01/05/2014,Childrens
WC44 - 1189,CHILDLINK,Transport,Car Allowances,53003-OTHER-TRAVEL ALLOWANCES,184.67,Revenue,12/05/2014,Childrens
WC44 - 1190,CHILDLINK,Third Party Payments,Private Contractor Fees,76003-SECTION 34 (CONTACT),187.93,Revenue,01/05/2014,Childrens
WC44 - 1191,CHILDLINK,Transport,Car Allowances,53001-OTHER/VOLUNTEERS-CAR ALLOWANCES,189.32,Revenue,06/05/2014,Childrens
WC44 - 1192,CHILDLINK,Third Party Payments,Private Contractor Fees,76003-SECTION 34 (CONTACT),191.97,Revenue,20/05/2014,Childrens
WC44 - 1193,CHILDLINK,Third Party Payments,Private Contractor Fees,76003-SECTION 34 (CONTACT),196.87,Revenue,02/05/2014,Childrens
WC44 - 1194,CHILDLINK,Third Party Payments,Private Contractor Fees,76003-SECTION 34 (CONTACT),203.24,Revenue,01/05/2014,Childrens
WC44 - 1195,CHILDLINK,Third Party Payments,Private Contractor Fees,76003-SECTION 34 (CONTACT),205.17,Revenue,01/05/2014,Childrens
WC44 - 1196,CHILDLINK,Third Party Payments,Private Contractor Fees,76003-SECTION 34 (CONTACT),205.17,Revenue,12/05/2014,Childrens
WC44 - 1197,CHILDLINK,Third Party Payments,Private Contractor Fees,76003-SECTION 34 (CONTACT),213.61,Revenue,01/05/2014,Childrens
WC44 - 1198,CHILDLINK,Third Party Payments,Private Contractor Fees,76003-SECTION 34 (CONTACT),222.38,Revenue,02/05/2014,Childrens
WC44 - 1199,CHILDLINK,Third Party Payments,Private Contractor Fees,76003-SECTION 34 (CONTACT),223.90,Revenue,02/05/2014,Childrens
WC44 - 1200,CHILDLINK,Transport,Car Allowances,53003-OTHER-TRAVEL ALLOWANCES,225.31,Revenue,20/05/2014,Childrens
WC44 - 1201,CHILDLINK,Third Party Payments,Private Contractor Fees,76003-SECTION 34 (CONTACT),226.89,Revenue,06/05/2014,Childrens
WC44 - 1202,CHILDLINK,Third Party Payments,Private Contractor Fees,76003-SECTION 34 (CONTACT),227.11,Revenue,01/05/2014,Childrens
WC44 - 1203,CHILDLINK,Third Party Payments,Private Contractor Fees,76003-SECTION 34 (CONTACT),230.59,Revenue,02/05/2014,Childrens
WC44 - 1204,CHILDLINK,Third Party Payments,Private Contractor Fees,76003-SECTION 34 (CONTACT),230.77,Revenue,01/05/2014,Childrens
WC44 - 1205,CHILDLINK,Transport,Car Allowances,53003-OTHER-TRAVEL ALLOWANCES,240.64,Revenue,12/05/2014,Childrens
WC44 - 1206,CHILDLINK,Third Party Payments,Private Contractor Fees,76003-SECTION 34 (CONTACT),241.36,Revenue,20/05/2014,Childrens
WC44 - 1207,CHILDLINK,Third Party Payments,Private Contractor Fees,76003-SECTION 34 (CONTACT),244.21,Revenue,12/05/2014,Childrens
WC44 - 1208,CHILDLINK,Third Party Payments,Private Contractor Fees,76003-SECTION 34 (CONTACT),251.97,Revenue,01/05/2014,Childrens
WC44 - 1209,CHILDLINK,Third Party Payments,Private Contractor Fees,76003-SECTION 34 (CONTACT),253.53,Revenue,20/05/2014,Childrens
WC44 - 1210,CHILDLINK,Transport,Car Allowances,53003-OTHER-TRAVEL ALLOWANCES,254.65,Revenue,01/05/2014,Childrens
WC44 - 1211,CHILDLINK,Third Party Payments,Private Contractor Fees,76003-SECTION 34 (CONTACT),259.47,Revenue,12/05/2014,Childrens
WC44 - 1212,CHILDLINK,Transport,Car Allowances,53001-OTHER/VOLUNTEERS-CAR ALLOWANCES,271.20,Revenue,01/05/2014,Childrens
WC44 - 1213,CHILDLINK,Third Party Payments,Private Contractor Fees,76003-SECTION 34 (CONTACT),279.38,Revenue,12/05/2014,Childrens
WC44 - 1214,CHILDLINK,Supplies & Services,Other Supplies & Services,63128-HIRE OF ROOM-SERVICES-FEES,291.83,Revenue,20/05/2014,Childrens
WC44 - 1215,CHILDLINK,Third Party Payments,Private Contractor Fees,76003-SECTION 34 (CONTACT),302.20,Revenue,01/05/2014,Childrens
WC44 - 1216,CHILDLINK,Transport,Car Allowances,53003-OTHER-TRAVEL ALLOWANCES,304.90,Revenue,01/05/2014,Childrens
WC44 - 1217,CHILDLINK,Transport,Car Allowances,53003-OTHER-TRAVEL ALLOWANCES,318.00,Revenue,20/05/2014,Childrens
WC44 - 1218,CHILDLINK,Transport,Car Allowances,53001-OTHER/VOLUNTEERS-CAR ALLOWANCES,321.76,Revenue,12/05/2014,Childrens
WC44 - 1219,CHILDLINK,Transport,Car Allowances,53003-OTHER-TRAVEL ALLOWANCES,324.39,Revenue,01/05/2014,Childrens
WC44 - 1220,CHILDLINK,Third Party Payments,Private Contractor Fees,76003-SECTION 34 (CONTACT),340.19,Revenue,12/05/2014,Childrens
WC44 - 1221,CHILDLINK,Transport,Car Allowances,53003-OTHER-TRAVEL ALLOWANCES,341.25,Revenue,12/05/2014,Childrens
WC44 - 1222,CHILDLINK,Transport,Car Allowances,53003-OTHER-TRAVEL ALLOWANCES,351.73,Revenue,06/05/2014,Childrens
WC44 - 1223,CHILDLINK,Transport,Car Allowances,53003-OTHER-TRAVEL ALLOWANCES,366.43,Revenue,12/05/2014,Childrens
WC44 - 1224,CHILDLINK,Third Party Payments,Private Contractor Fees,76003-SECTION 34 (CONTACT),378.34,Revenue,20/05/2014,Childrens
WC44 - 1225,CHILDLINK,Third Party Payments,Private Contractor Fees,76003-SECTION 34 (CONTACT),383.48,Revenue,01/05/2014,Childrens
WC44 - 1226,CHILDLINK,Transport,Car Allowances,53003-OTHER-TRAVEL ALLOWANCES,388.00,Revenue,20/05/2014,Childrens
WC44 - 1227,CHILDLINK,Third Party Payments,Private Contractor Fees,76003-SECTION 34 (CONTACT),406.93,Revenue,06/05/2014,Childrens
WC44 - 1228,CHILDLINK,Third Party Payments,Private Contractor Fees,76003-SECTION 34 (CONTACT),412.31,Revenue,12/05/2014,Childrens
WC44 - 1229,CHILDLINK,Third Party Payments,Private Contractor Fees,76003-SECTION 34 (CONTACT),429.18,Revenue,01/05/2014,Childrens
WC44 - 1230,CHILDLINK,Supplies & Services,Other Supplies & Services,63128-HIRE OF ROOM-SERVICES-FEES,450.89,Revenue,19/05/2014,Childrens
WC44 - 1231,CHILDLINK,Transport,Car Allowances,53003-OTHER-TRAVEL ALLOWANCES,483.94,Revenue,06/05/2014,Childrens
WC44 - 1232,CHILDRENS RESIDENTIAL SERVS,Transport,Car Allowances,53000-OFFICERS/STAFF-CAR ALLOWANCES,1.50,Revenue,06/05/2014,Childrens
WC44 - 1233,CHILDRENS RESIDENTIAL SERVS,Premises,Cleaning & Caretaking,46000-EQUIP NEW-CLEANING,1.67,Revenue,21/05/2014,Childrens
WC44 - 1234,CHILDRENS RESIDENTIAL SERVS,Premises,Cleaning & Caretaking,46000-EQUIP NEW-CLEANING,4.99,Revenue,21/05/2014,Childrens
WC44 - 1235,CHILDRENS RESIDENTIAL SERVS,Transport,Car Allowances,53000-OFFICERS/STAFF-CAR ALLOWANCES,5.00,Revenue,21/05/2014,Childrens
WC44 - 1236,CHILDRENS RESIDENTIAL SERVS,Supplies & Services,"Equip,Furniture & Materials",60000-FURNITURE & EQUIPMENT,6.00,Revenue,21/05/2014,Childrens
WC44 - 1237,CHILDRENS RESIDENTIAL SERVS,Transport,Car Allowances,53000-OFFICERS/STAFF-CAR ALLOWANCES,7.00,Revenue,29/05/2014,Childrens
WC44 - 1238,CHILDRENS RESIDENTIAL SERVS,Premises,Premises-Repairs & Maintenance,"40000-REPAIRS,ALTERATIONS & MAINTENANCE-PREM",7.99,Revenue,21/05/2014,Childrens
WC44 - 1239,CHILDRENS RESIDENTIAL SERVS,Supplies & Services,Services,63000-PROFESSIONAL FEES AND SERVICES,8.80,Revenue,06/05/2014,Childrens
WC44 - 1240,CHILDRENS RESIDENTIAL SERVS,Transport,Car Allowances,53000-OFFICERS/STAFF-CAR ALLOWANCES,9.00,Revenue,29/05/2014,Childrens
WC44 - 1241,CHILDRENS RESIDENTIAL SERVS,Premises,Cleaning & Caretaking,46000-EQUIP NEW-CLEANING,10.00,Revenue,29/05/2014,Childrens
WC44 - 1242,CHILDRENS RESIDENTIAL SERVS,Premises,Cleaning & Caretaking,46000-EQUIP NEW-CLEANING,11.02,Revenue,06/05/2014,Childrens
WC44 - 1243,CHILDRENS RESIDENTIAL SERVS,Supplies & Services,"Equip,Furniture & Materials",60000-FURNITURE & EQUIPMENT,11.44,Revenue,06/05/2014,Childrens
WC44 - 1244,CHILDRENS RESIDENTIAL SERVS,Premises,Cleaning & Caretaking,46000-EQUIP NEW-CLEANING,12.00,Revenue,06/05/2014,Childrens
WC44 - 1245,CHILDRENS RESIDENTIAL SERVS,Supplies & Services,"Equip,Furniture & Materials",60000-FURNITURE & EQUIPMENT,12.80,Revenue,06/05/2014,Childrens
WC44 - 1246,CHILDRENS RESIDENTIAL SERVS,Supplies & Services,Services,63000-PROFESSIONAL FEES AND SERVICES,20.70,Revenue,06/05/2014,Childrens
WC44 - 1247,CHILDRENS RESIDENTIAL SERVS,Transport,Car Allowances,53000-OFFICERS/STAFF-CAR ALLOWANCES,22.00,Revenue,06/05/2014,Childrens
WC44 - 1248,CHILDRENS RESIDENTIAL SERVS,Premises,Premises-Repairs & Maintenance,"40000-REPAIRS,ALTERATIONS & MAINTENANCE-PREM",25.74,Revenue,29/05/2014,Childrens
WC44 - 1249,CHILDRENS RESIDENTIAL SERVS,Supplies & Services,"Equip,Furniture & Materials",60000-FURNITURE & EQUIPMENT,30.83,Revenue,29/05/2014,Childrens
WC44 - 1250,CHILDRENS RESIDENTIAL SERVS,Transfer Payments,Transfer Payments,76408-OUTINGS-ALLOWANCES TO S/S CLIENTS,31.29,Revenue,21/05/2014,Childrens
WC44 - 1251,CHILDRENS RESIDENTIAL SERVS,Supplies & Services,Provisions,61014-GENERAL PROVISIONS-PROVISIONS,38.57,Revenue,21/05/2014,Childrens
WC44 - 1252,CHILDRENS RESIDENTIAL SERVS,Transfer Payments,Transfer Payments,76408-OUTINGS-ALLOWANCES TO S/S CLIENTS,49.65,Revenue,06/05/2014,Childrens
WC44 - 1253,CHILDRENS RESIDENTIAL SERVS,Supplies & Services,Provisions,61014-GENERAL PROVISIONS-PROVISIONS,60.11,Revenue,21/05/2014,Childrens
WC44 - 1254,CHILDRENS RESIDENTIAL SERVS,Supplies & Services,Provisions,61014-GENERAL PROVISIONS-PROVISIONS,63.87,Revenue,06/05/2014,Childrens
WC44 - 1255,CHILDRENS RESIDENTIAL SERVS,Supplies & Services,Provisions,61014-GENERAL PROVISIONS-PROVISIONS,68.13,Revenue,21/05/2014,Childrens
WC44 - 1256,CHILDRENS RESIDENTIAL SERVS,Supplies & Services,Provisions,61014-GENERAL PROVISIONS-PROVISIONS,71.04,Revenue,06/05/2014,Childrens
WC44 - 1257,CHILDRENS RESIDENTIAL SERVS,Supplies & Services,Provisions,61014-GENERAL PROVISIONS-PROVISIONS,82.78,Revenue,06/05/2014,Childrens
WC44 - 1258,CHILDRENS RESIDENTIAL SERVS,Supplies & Services,Provisions,61014-GENERAL PROVISIONS-PROVISIONS,84.30,Revenue,06/05/2014,Childrens
WC44 - 1259,CHILDRENS RESIDENTIAL SERVS,Supplies & Services,Provisions,61014-GENERAL PROVISIONS-PROVISIONS,93.74,Revenue,29/05/2014,Childrens
WC44 - 1260,CHILDRENS RESIDENTIAL SERVS,Transfer Payments,Transfer Payments,76400-RESIDENTS PERSONAL EXPENSES-ALLOWANCES TO S/S CLIENTS,101.18,Revenue,06/05/2014,Childrens
WC44 - 1261,CHILDRENS RESIDENTIAL SERVS,Transfer Payments,Transfer Payments,76400-RESIDENTS PERSONAL EXPENSES-ALLOWANCES TO S/S CLIENTS,105.53,Revenue,06/05/2014,Childrens
WC44 - 1262,CHILDRENS RESIDENTIAL SERVS,Transfer Payments,Transfer Payments,76400-RESIDENTS PERSONAL EXPENSES-ALLOWANCES TO S/S CLIENTS,139.56,Revenue,29/05/2014,Childrens
WC44 - 1263,CHILDRENS RESIDENTIAL SERVS,Supplies & Services,Provisions,61014-GENERAL PROVISIONS-PROVISIONS,148.85,Revenue,06/05/2014,Childrens
WC44 - 1264,CHILDRENS RESIDENTIAL SERVS,Transfer Payments,Transfer Payments,76400-RESIDENTS PERSONAL EXPENSES-ALLOWANCES TO S/S CLIENTS,163.99,Revenue,21/05/2014,Childrens
WC44 - 1265,CHILDRENS RESIDENTIAL SERVS,Supplies & Services,Provisions,61014-GENERAL PROVISIONS-PROVISIONS,190.32,Revenue,29/05/2014,Childrens
WC44 - 1266,CHILDRENS RESIDENTIAL SERVS,Transfer Payments,Transfer Payments,76400-RESIDENTS PERSONAL EXPENSES-ALLOWANCES TO S/S CLIENTS,216.78,Revenue,21/05/2014,Childrens
WC44 - 1267,CHILDRENS RESIDENTIAL SERVS,Transfer Payments,Transfer Payments,76400-RESIDENTS PERSONAL EXPENSES-ALLOWANCES TO S/S CLIENTS,224.98,Revenue,21/05/2014,Childrens
WC44 - 1268,CHILDRENS RESIDENTIAL SERVS,Transfer Payments,Transfer Payments,76408-OUTINGS-ALLOWANCES TO S/S CLIENTS,226.35,Revenue,29/05/2014,Childrens
WC44 - 1269,CHILDRENS RESIDENTIAL SERVS,Transfer Payments,Transfer Payments,76400-RESIDENTS PERSONAL EXPENSES-ALLOWANCES TO S/S CLIENTS,231.32,Revenue,06/05/2014,Childrens
WC44 - 1270,CHILDRENS RESIDENTIAL SERVS,Transfer Payments,Transfer Payments,76400-RESIDENTS PERSONAL EXPENSES-ALLOWANCES TO S/S CLIENTS,376.35,Revenue,29/05/2014,Childrens
WC44 - 1271,CHILDRENS RESIDENTIAL SERVS,Transfer Payments,Transfer Payments,76400-RESIDENTS PERSONAL EXPENSES-ALLOWANCES TO S/S CLIENTS,470.85,Revenue,06/05/2014,Childrens
WC44 - 1272,REDACTED,Transfer Payments,Transfer Payments,76422-DIRECT PAYMENTS TO SOCIAL SERVICES CLIENTS,"1,489.62",Revenue,13/05/2014,Social Care & Inclusion
WC44 - 1273,REDACTED,Transfer Payments,Transfer Payments,76422-DIRECT PAYMENTS TO SOCIAL SERVICES CLIENTS,755.30,Revenue,13/05/2014,Social Care & Inclusion
WC44 - 1274,REDACTED,Transfer Payments,Transfer Payments,76422-DIRECT PAYMENTS TO SOCIAL SERVICES CLIENTS,489.60,Revenue,13/05/2014,Social Care & Inclusion
WC44 - 1275,REDACTED,Transfer Payments,Transfer Payments,76422-DIRECT PAYMENTS TO SOCIAL SERVICES CLIENTS,630.80,Revenue,13/05/2014,Social Care & Inclusion
WC44 - 1276,REDACTED,Transfer Payments,Transfer Payments,76422-DIRECT PAYMENTS TO SOCIAL SERVICES CLIENTS,"1,125.97",Revenue,13/05/2014,Social Care & Inclusion
WC44 - 1277,REDACTED,Third Party Payments,Private Contractor Fees,74006-HOLIDAY/CHRISTMAS ALLOWANCE-FOSTER CARERS-OTH AGENCY PROVISION,643.20,Revenue,12/05/2014,Childrens
WC44 - 1278,REDACTED,Transfer Payments,Transfer Payments,76422-DIRECT PAYMENTS TO SOCIAL SERVICES CLIENTS,276.00,Revenue,13/05/2014,Social Care & Inclusion
WC44 - 1279,REDACTED,Transfer Payments,Transfer Payments,76422-DIRECT PAYMENTS TO SOCIAL SERVICES CLIENTS,844.08,Revenue,13/05/2014,Social Care & Inclusion
WC44 - 1280,REDACTED,Transfer Payments,Transfer Payments,76422-DIRECT PAYMENTS TO SOCIAL SERVICES CLIENTS,588.00,Revenue,13/05/2014,Social Care & Inclusion
WC44 - 1281,CHUBB ELECTRONIC SECURITY LTD,Supplies & Services,"Equip,Furniture & Materials",60000-FURNITURE & EQUIPMENT,"1,010.44",Revenue,01/05/2014,Childrens
WC44 - 1282,CHUBB ELECTRONIC SECURITY LTD,Supplies & Services,"Equip,Furniture & Materials",60008-MAINTENANCE-FURNITURE & EQUIPMENT,647.87,Revenue,19/05/2014,Neighbourhood Services
WC44 - 1283,CHUBB FIRE & SECURITY LTD,Supplies & Services,"Equip,Furniture & Materials",60008-MAINTENANCE-FURNITURE & EQUIPMENT,269.00,Revenue,09/05/2014,Childrens
WC44 - 1284,CHUBB FIRE & SECURITY LTD,Supplies & Services,"Equip,Furniture & Materials",60008-MAINTENANCE-FURNITURE & EQUIPMENT,690.87,Revenue,16/05/2014,Childrens
WC44 - 1285,CHUBB FIRE & SECURITY LTD,Supplies & Services,"Equip,Furniture & Materials",60006-NEW-FURNITURE & EQUIPMENT,945.10,Revenue,28/05/2014,Childrens
WC44 - 1286,CHUBB FIRE & SECURITY LTD,Supplies & Services,"Equip,Furniture & Materials",60008-MAINTENANCE-FURNITURE & EQUIPMENT,-250.27,Revenue,19/05/2014,Neighbourhood Services
WC44 - 1287,CHUBB FIRE & SECURITY LTD,Supplies & Services,"Equip,Furniture & Materials",60008-MAINTENANCE-FURNITURE & EQUIPMENT,529.86,Revenue,14/05/2014,Neighbourhood Services
WC44 - 1288,CHUBB FIRE & SECURITY LTD,Premises,Premises-Repairs & Maintenance,"40000-REPAIRS,ALTERATIONS & MAINTENANCE-PREM","1,148.60",Revenue,19/05/2014,Regeneration
WC44 - 1289,CILT (UK),Supplies & Services,"Equip,Furniture & Materials",60008-MAINTENANCE-FURNITURE & EQUIPMENT,"1,020.00",Revenue,27/05/2014,Neighbourhood Services
WC44 - 1290,CIPFA 001,Supplies & Services,Services,63000-PROFESSIONAL FEES AND SERVICES,"2,509.95",Revenue,20/05/2014,Neighbourhood Services
WC44 - 1291,CIPFA 001,Supplies & Services,Subscriptions,64500-PUBLICATIONS/ORGANISATIONS-SUBSCRIPTIONS,"3,785.00",Revenue,13/05/2014,Resources
WC44 - 1292,CIPFA BUSINESS LIMITED,Supplies & Services,Subscriptions,64500-PUBLICATIONS/ORGANISATIONS-SUBSCRIPTIONS,"5,200.00",Revenue,01/05/2014,Resources
WC44 - 1293,CITY RADIATOR SERVICES,Supplies & Services,"Equip,Furniture & Materials",60500-GENERAL MATERIALS,350.00,Revenue,15/05/2014,Neighbourhood Services
WC44 - 1294,CIVICA UK LIMITED,Supplies & Services,Communications & Computing,63820-RECHARGE FOR MAINTENANCE/APPLICATION COSTS-COMPUTER,500.00,Revenue,08/05/2014,Resources
WC44 - 1295,CIVICARE MIDLANDS LTD,Third Party Payments,Private Contractor Fees,73374-SUPPORTED & OTHER ACCOMMODATION,443.52,Revenue,12/05/2014,Social Care & Inclusion
WC44 - 1296,CIVICARE MIDLANDS LTD,Third Party Payments,Private Contractor Fees,73374-SUPPORTED & OTHER ACCOMMODATION,443.52,Revenue,12/05/2014,Social Care & Inclusion
WC44 - 1297,CIVICARE MIDLANDS LTD,Third Party Payments,Private Contractor Fees,73374-SUPPORTED & OTHER ACCOMMODATION,443.52,Revenue,14/05/2014,Social Care & Inclusion
WC44 - 1298,CIVICARE MIDLANDS LTD,Third Party Payments,Private Contractor Fees,73374-SUPPORTED & OTHER ACCOMMODATION,443.52,Revenue,14/05/2014,Social Care & Inclusion
WC44 - 1299,CIVICARE MIDLANDS LTD,Employees,Agency,34305-AGENCY STAFF-EMPLOYEES,466.85,Revenue,01/05/2014,Social Care & Inclusion
WC44 - 1300,CIVICARE MIDLANDS LTD,Third Party Payments,Private Contractor Fees,73372-DOMICILIARY CARE,"9,930.75",Revenue,28/05/2014,Social Care & Inclusion
WC44 - 1301,CJM TRANSPORT TRAINING & CONSULTANCY LTD,Employees,Training,30030-EXTERNAL TRAINING,"1,312.50",Revenue,20/05/2014,Neighbourhood Services
WC44 - 1302,CJM TRANSPORT TRAINING & CONSULTANCY LTD,Employees,Training,30030-EXTERNAL TRAINING,"3,386.25",Revenue,20/05/2014,Neighbourhood Services
WC44 - 1303,CJP SAFETY,Supplies & Services,Services,73047-CONSULTANTS FEES,831.60,Revenue,09/05/2014,Childrens
WC44 - 1304,REDACTED,Transfer Payments,Transfer Payments,76422-DIRECT PAYMENTS TO SOCIAL SERVICES CLIENTS,"1,088.00",Revenue,13/05/2014,Social Care & Inclusion
WC44 - 1305,REDACTED,Transfer Payments,Transfer Payments,76422-DIRECT PAYMENTS TO SOCIAL SERVICES CLIENTS,909.80,Revenue,13/05/2014,Social Care & Inclusion
WC44 - 1306,REDACTED,Transfer Payments,Transfer Payments,76422-DIRECT PAYMENTS TO SOCIAL SERVICES CLIENTS,504.90,Revenue,13/05/2014,Social Care & Inclusion
WC44 - 1307,CLAREMONT CARE LTD,Third Party Payments,Private Contractor Fees,73373-RESIDENTIAL & NURSING CARE PLACEMENTS,"1,268.60",Revenue,27/05/2014,Social Care & Inclusion
WC44 - 1308,CLIFFORD HOUSE FOSTERING LTD,Supplies & Services,Services,63000-PROFESSIONAL FEES AND SERVICES,312.02,Revenue,20/05/2014,Childrens
WC44 - 1309,CLIFFORD HOUSE FOSTERING LTD,Third Party Payments,Private Contractor Fees,74037-INDEPENDENT FOSTER CARE-OTH AGENCY PROVISION,828.65,Revenue,01/05/2014,Childrens
